Body Name,Supplier Name,Account Number,Invoice Date,Document File Name,Cost Centre / Project Code,Cost Centre/Project Description,Subjective Account,Subjective description,Invoice Amount (Excluding VAT)
Cambridge City Council,10:AM,10302900,01/04/21,80929,780002,,62800,Design And Photographic Costs,800.00
Cambridge City Council,A & B Contractors Ltd,10546800,24/03/21,79740,100259,Environmental Improvements Programme,70013,CAPEX - Landscaping,"5,752.23"
Cambridge City Council,Access & Automation Ltd,10115300,15/04/21,82120,300000,Disabled Adaptions,70007,CAPEX - Building Contractor/Works - Major Adaptations (HRA),"1,345.00"
Cambridge City Council,Access & Automation Ltd,10115300,21/04/21,82550,300000,Disabled Adaptions,70007,CAPEX - Building Contractor/Works - Major Adaptations (HRA),"2,795.00"
Cambridge City Council,Acorn Thorn Ltd,10224800,19/04/21,82409,100259,Environmental Improvements Programme,70013,CAPEX - Landscaping,"3,035.00"
Cambridge City Council,ADC (East Anglia) Ltd,10002500,09/04/21,81536,1883,Flood Risk Management,60501,Cleaning Services,"4,995.00"
Cambridge City Council,Aecom Ltd,10003200,28/04/21,83297,300035,Ditchburn Place,70010,CAPEX - Other Professional Fees,"1,297.50"
Cambridge City Council,AJ Wilks Environmental Health Consultancy Ltd,10770500,17/04/21,82364,1426,Delivery of COVID-19 Prevention & Outbreak Mgt Intervention,50000,Government Grants Revenue Income - Ringfenced,"2,070.00"
Cambridge City Council,Albany Beck Consultancy Services Ltd,10476400,26/03/21,80928,1207,Programme Office,62400,Consultancy Fees,"7,400.00"
Cambridge City Council,Albany Beck Consultancy Services Ltd,10476400,26/03/21,80940,1207,Programme Office,62400,Consultancy Fees,"8,550.00"
Cambridge City Council,Albany Beck Consultancy Services Ltd,10476400,26/03/21,80936,1207,Programme Office,62400,Consultancy Fees,"4,000.00"
Cambridge City Council,Albany Beck Consultancy Services Ltd,10476400,07/04/21,81294,1207,Programme Office,62400,Consultancy Fees,"2,025.00"
Cambridge City Council,Albany Beck Consultancy Services Ltd,10476400,07/04/21,81294,1207,Programme Office,62400,Consultancy Fees,"5,300.00"
Cambridge City Council,Albany Beck Consultancy Services Ltd,10476400,26/03/21,80913,1207,Programme Office,62400,Consultancy Fees,"7,875.00"
Cambridge City Council,Albany Beck Consultancy Services Ltd,10476400,07/04/21,81274,1207,Programme Office,62400,Consultancy Fees,"6,400.00"
Cambridge City Council,Alboro Developments Ltd,10133300,31/03/21,81445,1031,Fleet Management - Operational,60303,Electricity,"1,533.01"
Cambridge City Council,Alboro Developments Ltd,10133300,01/04/21,81138,1031,Fleet Management - Operational,60400,Rents Payable,"15,124.00"
Cambridge City Council,Algar Signcraft Services (Cambridge) Ltd,10004300,08/04/21,81456,6215,Risk and Compliance,60205,Fire Assessment And Safety,716.30
Cambridge City Council,Allia Ltd,10196200,06/04/21,81013,1057,Community Development Voluntary Support,64600,Grants And Contributions,"7,000.00"
Cambridge City Council,Alliance Asbestos Services Ltd,10115400,14/04/21,81947,300007,Asbestos Removal,70003,CAPEX - Building Contractor/Works - Voids & Emergencies,"1,841.00"
Cambridge City Council,Altone Limited,10004700,09/04/21,82085,6002,Resident Involvement,62001,Printing,"1,215.00"
Cambridge City Council,AMGK Investments Ltd,10568500,09/04/21,81601,1524,COVID-19 Rough Sleepers Services,64401,B&B Accommodation,"6,371.40"
Cambridge City Council,AMS Sensors UK Ltd,10802900,08/04/21,82216,5077,Collection Fund - Business,69402,Collection Fund-NNDR Refund,"1,476.20"
Cambridge City Council,Amulet (Churchill Security Solutions) Ltd,10220900,31/03/21,81878,5024,E_invoicing Suspense Accounts,69100,Expenditure In Holding Account Awaiting Allocation,"1,620.00"
Cambridge City Council,Amulet (Churchill Security Solutions) Ltd,10220900,31/03/21,81871,5024,E_invoicing Suspense Accounts,69100,Expenditure In Holding Account Awaiting Allocation,"11,352.79"
Cambridge City Council,Amulet (Churchill Security Solutions) Ltd,10220900,31/03/21,81875,5024,E_invoicing Suspense Accounts,69100,Expenditure In Holding Account Awaiting Allocation,"9,533.03"
Cambridge City Council,APEM Ltd,10513400,23/03/21,81455,1883,Flood Risk Management,60501,Cleaning Services,"2,669.30"
Cambridge City Council,Apex Roofing Anglia Ltd,10115600,19/04/21,82243,1102,Leisure Contract Client Costs,60201,Cyclical/Planned Maintenance - Building,"2,439.50"
Cambridge City Council,Apply4 Technology Ltd,10285100,01/04/20,79754,1865,Lettings & Events on Open Spaces,64071,ICT Software,"2,160.00"
Cambridge City Council,APT Skidata Ltd,10115700,01/04/21,81590,1653,Grafton Centre West Car Park,61702,"Maintenance - Equipment, Furniture And Materials","1,064.37"
Cambridge City Council,APT Skidata Ltd,10115700,01/04/21,81589,1652,Park Street Car Park,61702,"Maintenance - Equipment, Furniture And Materials","1,791.46"
Cambridge City Council,APT Skidata Ltd,10115700,01/04/21,81593,1655,Queen Anne Terrace Car Park,61702,"Maintenance - Equipment, Furniture And Materials","1,074.41"
Cambridge City Council,APT Skidata Ltd,10115700,25/11/19,82075,1654,Grafton Centre East Car Park,61702,"Maintenance - Equipment, Furniture And Materials",936.70
Cambridge City Council,APT Skidata Ltd,10115700,01/04/21,81609,1652,Park Street Car Park,61702,"Maintenance - Equipment, Furniture And Materials","1,170.11"
Cambridge City Council,APT Skidata Ltd,10115700,16/04/21,82313,1651,Grand Arcade Car Park,61702,"Maintenance - Equipment, Furniture And Materials","3,323.54"
Cambridge City Council,Bangladesh Welfare & Cultural Association Cambridge,10010800,06/04/21,81204,1057,Community Development Voluntary Support,64600,Grants And Contributions,"1,000.00"
Cambridge City Council,Ben Wills,10116100,21/04/21,82595,6000,Housing Revenue Account - Net Cost of Service,61703,"Purchase - Equipment, Furniture And Materials",674.02
Cambridge City Council,Ben Wills,10116100,10/04/21,81909,6000,Housing Revenue Account - Net Cost of Service,61703,"Purchase - Equipment, Furniture And Materials",624.30
Cambridge City Council,Ben Wills,10116100,21/04/21,82526,6000,Housing Revenue Account - Net Cost of Service,61703,"Purchase - Equipment, Furniture And Materials",674.02
Cambridge City Council,Benson Area Residents Association,10488500,29/03/21,80947,1077,Community Resilience,64600,Grants And Contributions,500.00
Cambridge City Council,Bevan Brittan LLP,10012600,29/03/21,81140,300093,POD Homes,70010,CAPEX - Other Professional Fees,575.00
Cambridge City Council,Bevan Brittan LLP,10012600,25/02/21,81432,300085,New Build Cromwell Road Redevelopment (HRA),70010,CAPEX - Other Professional Fees,"2,229.00"
Cambridge City Council,Bevan Brittan LLP,10012600,29/03/21,82013,300042,Acquisitions & Disposals,70001,CAPEX - Acquisition of Land & Existing Building,942.20
Cambridge City Council,Boishakhi Cultural Association,10344900,21/04/21,82534,1057,Community Development Voluntary Support,64600,Grants And Contributions,800.00
Cambridge City Council,Boldfield Computing Ltd,10306300,01/04/21,81141,1263,Cambridge Live - Central,64077,Telephone And Mobile Phone Costs,797.94
Cambridge City Council,Boldfield Computing Ltd,10306300,01/04/21,81142,1263,Cambridge Live - Central,64073,ICT Maintenance and Support,"1,366.01"
Cambridge City Council,Borley Brothers Engineering,10116600,31/03/21,81264,6214,Estate Investment Scheme,60235,Housing Repairs - Other Premises Related Costs,597.00
Cambridge City Council,Borley Brothers Engineering,10116600,08/04/21,81937,300088,Estate Investment,70002,CAPEX - Building Contractor/Works,539.00
Cambridge City Council,Borley Brothers Engineering,10116600,08/04/21,81848,6208,Voids,60233,Housing Repairs - Work Given To External Contractors,660.00
Cambridge City Council,BRE - Building Research Establishment Ltd,10014800,19/04/21,82359,1701,3C Building Control,60115,Staff Development And Training,"6,000.00"
Cambridge City Council,Breadboard Labs Ltd,10343400,01/04/21,82385,1890,2 Seas,64072,ICT Licences,"4,319.87"
Cambridge City Council,Breadboard Labs Ltd,10343400,01/04/21,82385,1890,2 Seas,64072,ICT Licences,"1,296.22"
Cambridge City Council,Bsg Property Services Ltd,10015900,25/01/21,82366,1519,Shared Home Improvement Agency,60266,Rechargeable Repairs,"5,873.00"
Cambridge City Council,BSI Standards Ltd,10016100,01/03/21,81596,6203,Asset Management and Compliance,64800,Membership And Subscriptions,836.00
Cambridge City Council,Businessclean (Cambridge) Ltd,10016800,31/03/21,80911,6102,Temporary Accommodation,60501,Cleaning Services,533.00
Cambridge City Council,Businessclean (Cambridge) Ltd,10016800,31/03/21,80924,1502,Homelessness Costs,60501,Cleaning Services,605.00
Cambridge City Council,Businessclean (Cambridge) Ltd,10016800,31/03/21,80872,6208,Voids,60220,Housing Repairs - Work To Void Properties,"1,011.00"
Cambridge City Council,Businessclean (Cambridge) Ltd,10016800,31/03/21,80922,6102,Temporary Accommodation,60501,Cleaning Services,546.00
Cambridge City Council,Businessclean (Cambridge) Ltd,10016800,01/04/21,80998,6102,Temporary Accommodation,60501,Cleaning Services,"1,228.00"
Cambridge City Council,Businessclean (Cambridge) Ltd,10016800,21/04/21,82556,6208,Voids,60220,Housing Repairs - Work To Void Properties,"1,236.00"
Cambridge City Council,Calfordseaden LLP,10339400,27/04/21,83239,300090,Meadows and Buchan Street,70010,CAPEX - Other Professional Fees,"6,817.19"
Cambridge City Council,Calfordseaden LLP,10339400,27/04/21,83200,300064,New Build - Akeman Street,70010,CAPEX - Other Professional Fees,"1,932.38"
Cambridge City Council,Calfordseaden LLP,10339400,27/04/21,83206,300064,New Build - Akeman Street,70010,CAPEX - Other Professional Fees,"1,171.87"
Cambridge City Council,Cambridge & District Citizen's Advice Bureau,10017500,01/04/21,80930,1057,Community Development Voluntary Support,64600,Grants And Contributions,"73,750.00"
Cambridge City Council,Cambridge & District Citizen's Advice Bureau,10017500,01/04/21,80930,1509,Grants to Housing Agencies,64600,Grants And Contributions,"8,750.00"
Cambridge City Council,Cambridge Arts & Sciences Ltd,10017800,21/04/21,82551,1524,COVID-19 Rough Sleepers Services,64401,B&B Accommodation,"41,286.68"
Cambridge City Council,Cambridge Bid Limited,10017900,15/04/21,82104,5025,Business Improvement District (BID) Collection Fund,58702,BID Levy - Payment to BID Company,"27,948.77"
Cambridge City Council,Cambridge Bid Limited,10017900,15/04/21,82105,5025,Business Improvement District (BID) Collection Fund,58702,BID Levy - Payment to BID Company,"150,000.00"
Cambridge City Council,Cambridge Community Arts,10018200,15/04/21,82060,1057,Community Development Voluntary Support,64600,Grants And Contributions,"4,000.00"
Cambridge City Council,Cambridge Community Arts,10018200,15/04/21,82060,1057,Community Development Voluntary Support,64600,Grants And Contributions,"3,500.00"
Cambridge City Council,Cambridge Council For Voluntary Service CVS,10018500,01/04/21,80916,1057,Community Development Voluntary Support,64600,Grants And Contributions,"18,000.00"
Cambridge City Council,Cambridge Cyrenians Ltd,10018700,15/04/21,82061,1509,Grants to Housing Agencies,64600,Grants And Contributions,"5,000.00"
Cambridge City Council,Cambridge Cyrenians Ltd,10018700,15/04/21,82061,1509,Grants to Housing Agencies,64600,Grants And Contributions,"5,000.00"
Cambridge City Council,Cambridge Disabled Kids Swimming Club,10177100,08/04/21,81417,1057,Community Development Voluntary Support,64600,Grants And Contributions,"3,000.00"
Cambridge City Council,Cambridge Ethnic Community Forum,10019300,01/04/21,80931,1057,Community Development Voluntary Support,64600,Grants And Contributions,"9,375.00"
Cambridge City Council,Cambridge Ethnic Community Forum,10019300,17/04/21,82211,1517,Syrian Resettlement,63900,Miscellaneous Expenses,"6,125.00"
Cambridge City Council,Cambridge Housing Society Ltd,10019600,21/04/21,82535,1057,Community Development Voluntary Support,64600,Grants And Contributions,"4,000.00"
Cambridge City Council,Cambridge Housing Society Ltd,10019600,21/04/21,82535,1509,Grants to Housing Agencies,64600,Grants And Contributions,"7,500.00"
Cambridge City Council,Cambridge Housing Society Ltd,10019600,21/04/21,82535,1509,Grants to Housing Agencies,64600,Grants And Contributions,"3,750.00"
Cambridge City Council,Cambridge Housing Society Ltd,10019600,21/04/21,82535,1509,Grants to Housing Agencies,64600,Grants And Contributions,"3,500.00"
Cambridge City Council,Cambridge Investment Partnership LLP,10145700,15/04/21,82091,300069,New Build - Ventress Close,70002,CAPEX - Building Contractor/Works,"50,123.98"
Cambridge City Council,Cambridge Online,10154400,01/04/21,81021,1057,Community Development Voluntary Support,64600,Grants And Contributions,"10,000.00"
Cambridge City Council,Cambridge Re-Use,10021200,15/04/21,82063,1057,Community Development Voluntary Support,64600,Grants And Contributions,"8,000.00"
Cambridge City Council,Cambridge Sports Hall Trust Ltd T/A Kelsey Kerridge,10021400,15/04/21,82066,1057,Community Development Voluntary Support,64600,Grants And Contributions,"5,000.00"
Cambridge City Council,Cambridge Tool Hire,10021600,03/03/21,81421,9900,General Fund Balance Sheet,11600,Consumable Stores,660.00
Cambridge City Council,Cambridge Womens Aid,10022300,01/04/21,80917,1057,Community Development Voluntary Support,64600,Grants And Contributions,"1,250.00"
Cambridge City Council,Cambridge Womens Aid,10022300,01/04/21,80917,1509,Grants to Housing Agencies,64600,Grants And Contributions,"10,750.00"
Cambridge City Council,Cambridge Womens Resource Centre,10022400,15/04/21,82059,1057,Community Development Voluntary Support,64600,Grants And Contributions,"8,250.00"
Cambridge City Council,Cambridgeshire & Peterborough Fire Authority,10022500,26/04/21,83163,1201,Emergency Planning,62400,Consultancy Fees,"5,576.96"
Cambridge City Council,Cambridgeshire Community Foundation,10263800,06/04/21,81022,1509,Grants to Housing Agencies,64600,Grants And Contributions,"10,000.00"
Cambridge City Council,Cambridgeshire County Council,10022802,01/04/21,81515,1711,Public Transport Subsidy,62900,Events,"53,750.31"
Cambridge City Council,Cambridgeshire County Council,10022802,08/04/21,81622,1888,Open Space Mgt Salaries,60011,Agency Staff,"2,894.00"
Cambridge City Council,Cambridgeshire County Council,10022802,08/04/21,81418,1509,Grants to Housing Agencies,64600,Grants And Contributions,"5,000.00"
Cambridge City Council,Cambridgeshire County Council,10022802,17/02/21,81872,1512,Sub-Regional Housing Strategy Co-ordinator,64800,Membership And Subscriptions,"3,000.00"
Cambridge City Council,Cambs Lock & Safe Ltd,10023300,20/04/21,83184,1260,Corn Exchange and Guildhalls,60209,R & M Minor Works,563.08
Cambridge City Council,Carter Jonas LLP,10141403,26/02/21,82172,1506,Housing Development Agency,62400,Consultancy Fees,"1,500.00"
Cambridge City Council,Carter Jonas LLP,10141403,16/04/21,82212,1750,Property Services,62400,Consultancy Fees,750.00
Cambridge City Council,CCPM Ltd,10283000,02/03/21,80962,100300,Park Street car park development,70010,CAPEX - Other Professional Fees,"2,200.00"
Cambridge City Council,CCPM Ltd,10283000,07/04/21,83815,100300,Park Street car park development,70010,CAPEX - Other Professional Fees,"2,200.00"
Cambridge City Council,Centre 33,10025400,01/04/21,80934,1057,Community Development Voluntary Support,64600,Grants And Contributions,"9,125.00"
Cambridge City Council,Centre 33,10025400,01/04/21,80934,1509,Grants to Housing Agencies,64600,Grants And Contributions,"10,750.00"
Cambridge City Council,CFH Docmail Ltd,10025900,14/04/21,81994,1352,Electoral Registration,62001,Printing,"1,133.42"
Cambridge City Council,CFH Docmail Ltd,10025900,31/03/21,81440,1352,Electoral Registration,62001,Printing,595.03
Cambridge City Council,CFH Docmail Ltd,10025900,21/04/21,82461,1352,Electoral Registration,62001,Printing,"1,509.54"
Cambridge City Council,CGM Group (East Anglia) Ltd,10117300,01/04/21,81046,1876,Arboriculture,64040,Tree Works,620.00
Cambridge City Council,Changing Directions,10176800,08/04/21,81420,1057,Community Development Voluntary Support,64600,Grants And Contributions,500.00
Cambridge City Council,Chartered Institute of Logistics & Transport UK,10026700,27/04/21,83240,1031,Fleet Management - Operational,64800,Membership And Subscriptions,"1,124.00"
Cambridge City Council,Chassis Cab Ltd,10027000,18/03/21,81238,1031,Fleet Management - Operational,61703,"Purchase - Equipment, Furniture And Materials",923.33
Cambridge City Council,Chassis Cab Ltd,10027000,01/04/21,81486,1031,Fleet Management - Operational,61703,"Purchase - Equipment, Furniture And Materials",697.37
Cambridge City Council,Chassis Cab Ltd,10027000,27/03/21,81166,1032,Garage- External Work,61703,"Purchase - Equipment, Furniture And Materials",534.32
Cambridge City Council,Chassis Cab Ltd,10027000,31/03/21,81166,1032,Garage- External Work,61703,"Purchase - Equipment, Furniture And Materials",595.00
Cambridge City Council,Chassis Cab Ltd,10027000,14/04/21,82356,1032,Garage- External Work,61703,"Purchase - Equipment, Furniture And Materials",745.64
Cambridge City Council,Chassis Cab Ltd,10027000,27/04/21,83802,1032,Garage- External Work,61703,"Purchase - Equipment, Furniture And Materials","1,023.20"
Cambridge City Council,Chassis Cab Ltd,10027000,26/04/21,83231,1032,Garage- External Work,61703,"Purchase - Equipment, Furniture And Materials",557.23
Cambridge City Council,Cherry Hinton Residents Association,10232600,08/04/21,81422,1057,Community Development Voluntary Support,64600,Grants And Contributions,795.00
Cambridge City Council,Childcare Vouchers Limited,10028300,09/04/21,81597,5000,Salary Sacrifice Schemes Holding Account,60106,Childcare Admin Vouchers,"4,481.00"
Cambridge City Council,Chinese Families Together,10028600,15/04/21,82069,1057,Community Development Voluntary Support,64600,Grants And Contributions,"1,950.00"
Cambridge City Council,Chubb Fire & Security Limited,10029100,27/04/21,83308,300000,Disabled Adaptions,70007,CAPEX - Building Contractor/Works - Major Adaptations (HRA),"1,250.00"
Cambridge City Council,Churchill Contract Services Ltd,10029300,31/03/21,83237,5024,E_invoicing Suspense Accounts,69100,Expenditure In Holding Account Awaiting Allocation,"120,860.69"
Cambridge City Council,CIP (Cromwell Road) LLP,10366900,01/04/21,81911,300085,New Build Cromwell Road Redevelopment (HRA),70002,CAPEX - Building Contractor/Works,"322,350.00"
Cambridge City Council,CIP (Cromwell Road) LLP,10366900,01/04/21,81911,100225,Cromwell Road Redevelopment (GF),70001,CAPEX - Acquisition of Land & Existing Building,"270,392.00"
Cambridge City Council,CIP (Mill Road Development) LLP,10474400,01/04/21,81362,300077,New Build - Mill Road,70002,CAPEX - Building Contractor/Works,"235,237.00"
Cambridge City Council,CIP (Mill Road Development) LLP,10474400,01/04/21,81363,300077,New Build - Mill Road,70002,CAPEX - Building Contractor/Works,"250,000.00"
Cambridge City Council,City View Digital Media Ltd,10030200,01/04/21,81050,1862,Open Space Asset Management,62005,"Advertising, Publicity And Marketing","1,995.00"
Cambridge City Council,City View Digital Media Ltd,10030200,01/04/21,81052,1426,Delivery of COVID-19 Prevention & Outbreak Mgt Intervention,62005,"Advertising, Publicity And Marketing","1,995.00"
Cambridge City Council,City View Digital Media Ltd,10030200,01/04/21,81051,1862,Open Space Asset Management,62006,Statutory Advertising,"1,995.00"
Cambridge City Council,CMS Training Ltd,10031300,26/04/21,83122,1300,Customer Access Strategy - Customer Service Centre,64300,Conference Expenses,"1,170.00"
Cambridge City Council,CN Security Ltd,10291400,30/03/21,80633,1427,COVID-19 Local Authority Compliance and Enforcement Grant,63800,Security Services (Excluding Premises),"5,952.93"
Cambridge City Council,CN Security Ltd,10291400,06/04/21,81062,1427,COVID-19 Local Authority Compliance and Enforcement Grant,63800,Security Services (Excluding Premises),"7,416.93"
Cambridge City Council,CN Security Ltd,10291400,14/04/21,81996,1427,COVID-19 Local Authority Compliance and Enforcement Grant,63800,Security Services (Excluding Premises),"6,448.00"
Cambridge City Council,CN Security Ltd,10291400,28/04/21,83312,1427,COVID-19 Local Authority Compliance and Enforcement Grant,63800,Security Services (Excluding Premises),"10,506.50"
Cambridge City Council,Cocksedge Building Contractors Limited,10117400,27/01/21,79771,300035,Ditchburn Place,70002,CAPEX - Building Contractor/Works,"80,287.43"
Cambridge City Council,Cocksedge Building Contractors Limited,10117400,27/01/21,82251,300035,Ditchburn Place,70002,CAPEX - Building Contractor/Works,663.51
Cambridge City Council,Come Clean Ltd T/A CCL Supplies,10031800,31/03/21,80894,1856,Streets & Open Spaces (Operations) - Indirect Costs,61703,"Purchase - Equipment, Furniture And Materials","1,902.00"
Cambridge City Council,Come Clean Ltd T/A CCL Supplies,10031800,31/03/21,80894,1856,Streets & Open Spaces (Operations) - Indirect Costs,61703,"Purchase - Equipment, Furniture And Materials",634.00
Cambridge City Council,Comensura Ltd,10031900,07/04/21,81183,5024,E_invoicing Suspense Accounts,69100,Expenditure In Holding Account Awaiting Allocation,"47,285.07"
Cambridge City Council,Comensura Ltd,10031900,14/04/21,81941,5024,E_invoicing Suspense Accounts,69100,Expenditure In Holding Account Awaiting Allocation,"46,313.26"
Cambridge City Council,Comensura Ltd,10031900,21/04/21,82396,5024,E_invoicing Suspense Accounts,69100,Expenditure In Holding Account Awaiting Allocation,"65,183.93"
Cambridge City Council,Comensura Ltd,10031900,28/04/21,83232,5024,E_invoicing Suspense Accounts,69100,Expenditure In Holding Account Awaiting Allocation,"65,936.37"
Cambridge City Council,Compserve Ltd,10032400,29/03/21,80713,8024,130 Cowley Road,60400,Rents Payable,"12,500.00"
Cambridge City Council,Compserve Ltd,10032400,29/03/21,80714,9900,General Fund Balance Sheet,11721,Payments In Advance - Other Entities And Individuals,950.00
Cambridge City Council,Contego Safety Solutions LLP,10032700,01/04/21,81218,9900,General Fund Balance Sheet,11600,Consumable Stores,650.00
Cambridge City Council,Cooleraid Ltd,10033001,20/04/21,82370,8018,Admin Building Allocation,64200,Subsistence,919.36
Cambridge City Council,COPE,10033300,23/04/21,83070,1057,Community Development Voluntary Support,64600,Grants And Contributions,"8,000.00"
Cambridge City Council,Cornerstone (East Anglia) Ltd,10033600,30/03/21,80577,300006,Insulation / Energy Efficiency,70002,CAPEX - Building Contractor/Works,"71,168.83"
Cambridge City Council,Cornerstone (East Anglia) Ltd,10033600,30/03/21,80576,300006,Insulation / Energy Efficiency,70002,CAPEX - Building Contractor/Works,"110,799.25"
Cambridge City Council,Cornerstone Barristers,10073801,14/04/21,82051,1862,Open Space Asset Management,63200,Legal Fees,"2,000.00"
Cambridge City Council,Countryside Properties (UK) Ltd,10033800,07/04/21,82056,100020,Development Of land at Clay Farm,70002,CAPEX - Building Contractor/Works,924.96
Cambridge City Council,Countryside Properties (UK) Ltd,10033800,07/04/21,82056,100020,Development Of land at Clay Farm,70013,CAPEX - Landscaping,"2,045.93"
Cambridge City Council,Countryside Properties (UK) Ltd,10033800,07/04/21,82056,100020,Development Of land at Clay Farm,70024,CAPEX - Other Capital Expenditure,"75,731.44"
Cambridge City Council,Cyclescheme Ltd,10376200,06/04/21,81085,5000,Salary Sacrifice Schemes Holding Account,60106,Childcare Admin Vouchers,"1,586.67"
Cambridge City Council,DAC Beachcroft Claims Ltd,10187201,26/01/21,83096,9900,General Fund Balance Sheet,11708,Vat Debtor (Input Tax),876.40
Cambridge City Council,Data Capture Solutions Ltd,10345300,13/04/21,82362,8006,Accountancy and Support Services,64073,ICT Maintenance and Support,"1,138.09"
Cambridge City Council,David Powell t/a D J Kitchens,10137900,24/02/21,81672,1761,Ronald Rolph Court,60503,Grounds Maintenance,510.00
Cambridge City Council,David Powell t/a D J Kitchens,10137900,28/03/21,81838,1762,Barnwell Drive-excl Barnwell House,60503,Grounds Maintenance,"5,480.00"
Cambridge City Council,David Powell t/a D J Kitchens,10137900,28/03/21,81847,1762,Barnwell Drive-excl Barnwell House,60503,Grounds Maintenance,"2,250.00"
Cambridge City Council,Dawson Asbestos Consulting Ltd,10036300,19/04/21,82413,6201,Building Services - Indirect,60115,Staff Development And Training,850.00
Cambridge City Council,DB Electrical and Building Services Ltd,10123000,30/03/21,81266,6000,Housing Revenue Account - Net Cost of Service,61703,"Purchase - Equipment, Furniture And Materials",880.00
Cambridge City Council,DB Electrical and Building Services Ltd,10123000,25/03/21,81840,1754,Barnwell House Offices,60266,Rechargeable Repairs,925.00
Cambridge City Council,Denis Wilson Court Social Club,10171700,06/04/21,81061,1057,Community Development Voluntary Support,64600,Grants And Contributions,825.00
Cambridge City Council,Dennis Eagle Ltd,10036900,23/03/21,81166,1032,Garage- External Work,61703,"Purchase - Equipment, Furniture And Materials","1,543.89"
Cambridge City Council,Dennis Eagle Ltd,10036900,22/03/21,81166,1032,Garage- External Work,61703,"Purchase - Equipment, Furniture And Materials",533.70
Cambridge City Council,Dennis Eagle Ltd,10036900,31/03/21,81441,1031,Fleet Management - Operational,61703,"Purchase - Equipment, Furniture And Materials",525.26
Cambridge City Council,Dennis Eagle Ltd,10036900,08/04/21,81925,1032,Garage- External Work,61703,"Purchase - Equipment, Furniture And Materials",661.87
Cambridge City Council,Dennis Eagle Ltd,10036900,08/04/21,81925,1032,Garage- External Work,61703,"Purchase - Equipment, Furniture And Materials",563.89
Cambridge City Council,Dennis Eagle Ltd,10036900,25/02/21,82416,1031,Fleet Management - Operational,61703,"Purchase - Equipment, Furniture And Materials","1,981.36"
Cambridge City Council,Dennis Eagle Ltd,10036900,16/03/21,82356,1032,Garage- External Work,61703,"Purchase - Equipment, Furniture And Materials",682.96
Cambridge City Council,Dennis Eagle Ltd,10036900,16/03/21,82356,1032,Garage- External Work,61703,"Purchase - Equipment, Furniture And Materials",978.90
Cambridge City Council,Dennis Eagle Ltd,10036900,26/04/21,83809,1031,Fleet Management - Operational,61703,"Purchase - Equipment, Furniture And Materials",883.52
Cambridge City Council,Dennis Eagle Ltd,10036900,20/04/21,83802,1031,Fleet Management - Operational,61703,"Purchase - Equipment, Furniture And Materials",649.03
Cambridge City Council,Dennis Eagle Ltd,10036900,20/04/21,83802,1031,Fleet Management - Operational,61703,"Purchase - Equipment, Furniture And Materials",588.16
Cambridge City Council,Dennis Eagle Ltd,10036900,20/04/21,83231,1031,Fleet Management - Operational,61703,"Purchase - Equipment, Furniture And Materials",533.70
Cambridge City Council,Display Wizard Ltd,10621200,15/04/21,82194,1935,Markets,61702,"Maintenance - Equipment, Furniture And Materials","1,784.25"
Cambridge City Council,District Councils Network,10038000,21/04/21,83019,1200,Corporate Management,64800,Membership And Subscriptions,"1,884.00"
Cambridge City Council,Drainco Services Ltd,10038800,20/10/20,81143,1100,Sport & Recreation Administration,60201,Cyclical/Planned Maintenance - Building,960.00
Cambridge City Council,DSB Engineering Supplies,10039000,09/04/21,82414,1031,Fleet Management - Operational,61500,Consumables,622.26
Cambridge City Council,East Anglian Chambers,10599000,13/04/21,81948,1050,Community Safety,62400,Consultancy Fees,"1,250.00"
Cambridge City Council,East of England Local Government Association,10040000,31/03/21,80932,8005,Depot Management - Indirect,62400,Consultancy Fees,"11,857.50"
Cambridge City Council,Eastfield Guest House Ltd,10262600,05/04/21,81614,1524,COVID-19 Rough Sleepers Services,64401,B&B Accommodation,935.00
Cambridge City Council,Eastfield Guest House Ltd,10262600,05/04/21,81614,1502,Homelessness Costs,64401,B&B Accommodation,865.00
Cambridge City Council,Eastfield Guest House Ltd,10262600,12/04/21,82083,1524,COVID-19 Rough Sleepers Services,64401,B&B Accommodation,805.00
Cambridge City Council,Eaton Electrical Systems Ltd,10437000,21/12/20,83207,1260,Corn Exchange and Guildhalls,60209,R & M Minor Works,"1,113.94"
Cambridge City Council,Eddie Barcan t/a Splendid Events,10215402,01/04/21,80926,780002,,62400,Consultancy Fees,"1,250.00"
Cambridge City Council,Eddie Barcan t/a Splendid Events,10215402,16/04/21,82290,780002,,62400,Consultancy Fees,"1,250.00"
Cambridge City Council,Eddington Residents Association,10472000,15/04/21,82072,1057,Community Development Voluntary Support,64600,Grants And Contributions,"2,190.00"
Cambridge City Council,Eddisons Commercial Ltd,10420000,26/04/21,83221,9900,General Fund Balance Sheet,30004,Capital Receipts Reserve,"6,865.00"
Cambridge City Council,Eddisons Commercial Ltd,10420000,26/04/21,83220,9900,General Fund Balance Sheet,30004,Capital Receipts Reserve,"4,930.00"
Cambridge City Council,Edmundson Electrical Ltd,10040600,29/03/21,81936,9900,General Fund Balance Sheet,11600,Consumable Stores,723.10
Cambridge City Council,Edmundson Electrical Ltd,10040600,15/04/21,83242,9900,General Fund Balance Sheet,11600,Consumable Stores,613.52
Cambridge City Council,Edmundson Electrical Ltd,10040600,22/04/21,83242,9900,General Fund Balance Sheet,11600,Consumable Stores,682.50
Cambridge City Council,Edmundson Electrical Ltd,10040600,14/04/21,82369,9900,General Fund Balance Sheet,11600,Consumable Stores,560.75
Cambridge City Council,Edmundson Electrical Ltd,10040600,09/04/21,82127,9900,General Fund Balance Sheet,11600,Consumable Stores,"1,211.70"
Cambridge City Council,Edmundson Electrical Ltd,10040600,27/04/21,83796,9900,General Fund Balance Sheet,11600,Consumable Stores,723.10
Cambridge City Council,Edwards Hart Ltd,10535000,31/03/21,81002,1701,3C Building Control,60115,Staff Development And Training,"1,200.00"
Cambridge City Council,EMS Lifts Ltd,10041800,31/03/21,81291,6205,Citywide Schemes,60227,Housing Repairs - Lift Maintenance (Disabled),545.78
Cambridge City Council,EMS Lifts Ltd,10041800,31/03/21,80969,6205,Citywide Schemes,60227,Housing Repairs - Lift Maintenance (Disabled),720.26
Cambridge City Council,Encompass Network,10163100,06/04/21,81023,1057,Community Development Voluntary Support,64600,Grants And Contributions,"9,000.00"
Cambridge City Council,Entertee Hire Services Ltd,10311400,11/04/21,81637,1426,Delivery of COVID-19 Prevention & Outbreak Mgt Intervention,60207,Health And Safety Supplies And Services,"1,320.00"
Cambridge City Council,Entertee Hire Services Ltd,10311400,21/04/21,82573,1427,COVID-19 Local Authority Compliance and Enforcement Grant,60207,Health And Safety Supplies And Services,"1,080.00"
Cambridge City Council,Entertee Hire Services Ltd,10311400,21/04/21,83063,1427,COVID-19 Local Authority Compliance and Enforcement Grant,60207,Health And Safety Supplies And Services,"1,440.00"
Cambridge City Council,Entitledto Ltd,10042600,01/03/21,81103,5062,3C ICT,64073,ICT Maintenance and Support,"2,600.00"
Cambridge City Council,Ermine Construction Services Ltd,10462100,03/04/21,82016,100308,S106 Chesterton Rec pavilion,70001,CAPEX - Acquisition of Land & Existing Building,"23,416.85"
Cambridge City Council,Ernest Doe & Sons Ltd,10043400,21/04/21,83125,1866,Open Space Asset Maintenance,61702,"Maintenance - Equipment, Furniture And Materials",791.67
Cambridge City Council,Ernest Doe & Sons Ltd,10043400,12/04/21,82356,1031,Fleet Management - Operational,61703,"Purchase - Equipment, Furniture And Materials",659.00
Cambridge City Council,Essex County Council,10044100,14/04/21,82579,8014,3C Legal Practice,64800,Membership And Subscriptions,"2,120.00"
Cambridge City Council,Euclid Limited,10044300,31/03/21,81137,1712,Taxicard Service,62001,Printing,879.52
Cambridge City Council,Evolve Guards Ltd,10506900,04/04/21,81127,1524,COVID-19 Rough Sleepers Services,64401,B&B Accommodation,"1,450.00"
Cambridge City Council,Evolve Guards Ltd,10506900,11/04/21,81628,1524,COVID-19 Rough Sleepers Services,64401,B&B Accommodation,"11,880.00"
Cambridge City Council,Evolve Guards Ltd,10506900,04/04/21,81125,1524,COVID-19 Rough Sleepers Services,64401,B&B Accommodation,"11,880.00"
Cambridge City Council,Evolve Guards Ltd,10506900,04/04/21,81126,1524,COVID-19 Rough Sleepers Services,64401,B&B Accommodation,"11,880.00"
Cambridge City Council,Evolve Guards Ltd,10506900,11/04/21,81624,1524,COVID-19 Rough Sleepers Services,64401,B&B Accommodation,"11,880.00"
Cambridge City Council,Evolve Guards Ltd,10506900,11/04/21,81629,1524,COVID-19 Rough Sleepers Services,64401,B&B Accommodation,"1,160.00"
Cambridge City Council,Evolve Guards Ltd,10506900,18/04/21,82184,1524,COVID-19 Rough Sleepers Services,64401,B&B Accommodation,"9,660.00"
Cambridge City Council,Evolve Guards Ltd,10506900,18/04/21,82188,1524,COVID-19 Rough Sleepers Services,64401,B&B Accommodation,"1,160.00"
Cambridge City Council,Evolve Guards Ltd,10506900,25/04/21,83134,1524,COVID-19 Rough Sleepers Services,64401,B&B Accommodation,"1,160.00"
Cambridge City Council,Evolve Guards Ltd,10506900,18/04/21,82186,1524,COVID-19 Rough Sleepers Services,64401,B&B Accommodation,"8,040.00"
Cambridge City Council,Evolve Guards Ltd,10506900,25/04/21,83113,1524,COVID-19 Rough Sleepers Services,64401,B&B Accommodation,"12,390.00"
Cambridge City Council,Fenland District Council,10449300,25/03/21,82415,1100,Sport & Recreation Administration,64600,Grants And Contributions,"10,071.27"
Cambridge City Council,Fenland District Council,10449300,25/03/21,82424,1100,Sport & Recreation Administration,64600,Grants And Contributions,"20,142.54"
Cambridge City Council,Fenners Chambers,10045600,19/04/21,82421,1758,Other Commercial Properties,63200,Legal Fees,"6,000.00"
Cambridge City Council,Foster Property Maintenance Ltd,10046700,08/04/21,81477,5024,E_invoicing Suspense Accounts,69100,Expenditure In Holding Account Awaiting Allocation,"691,218.22"
Cambridge City Council,Freeths LLP,10128501,31/03/21,81269,1506,Housing Development Agency,63200,Legal Fees,"2,250.00"
Cambridge City Council,Freeths LLP,10128501,22/03/21,81344,300093,POD Homes,70010,CAPEX - Other Professional Fees,821.50
Cambridge City Council,Freight Transport Association,10046900,08/02/21,81857,1031,Fleet Management - Operational,64800,Membership And Subscriptions,"1,100.00"
Cambridge City Council,Friends of Histon Road Cemetery,10047100,06/04/21,81065,1057,Community Development Voluntary Support,64600,Grants And Contributions,"1,100.00"
Cambridge City Council,Gaskin Brothers Ltd,10118700,06/04/21,81053,1100,Sport & Recreation Administration,60201,Cyclical/Planned Maintenance - Building,850.00
Cambridge City Council,Gaskin Brothers Ltd,10118700,06/04/21,81054,1102,Leisure Contract Client Costs,60201,Cyclical/Planned Maintenance - Building,"2,047.50"
Cambridge City Council,Gaskin Brothers Ltd,10118700,06/04/21,81919,1878,Local Nature Reserves,60503,Grounds Maintenance,715.00
Cambridge City Council,Gaskin Brothers Ltd,10118700,19/04/21,82296,1100,Sport & Recreation Administration,60201,Cyclical/Planned Maintenance - Building,550.00
Cambridge City Council,Gaskin Brothers Ltd,10118700,19/04/21,82419,300088,Estate Investment,70002,CAPEX - Building Contractor/Works,"1,395.00"
Cambridge City Council,Gaskin Brothers Ltd,10118700,19/04/21,82420,300088,Estate Investment,70002,CAPEX - Building Contractor/Works,"2,488.50"
Cambridge City Council,Gaskin Brothers Ltd,10118700,19/04/21,82303,1102,Leisure Contract Client Costs,60201,Cyclical/Planned Maintenance - Building,"1,445.00"
Cambridge City Council,Gatenbysanderson Limited,10048500,08/04/21,81451,8012,Procurement,60011,Agency Staff,"1,856.00"
Cambridge City Council,Gatenbysanderson Limited,10048500,31/03/21,80971,8012,Procurement,60011,Agency Staff,"2,320.00"
Cambridge City Council,Gatenbysanderson Limited,10048500,13/04/21,81874,8012,Procurement,60011,Agency Staff,"1,392.00"
Cambridge City Council,Gatenbysanderson Limited,10048500,19/04/21,82232,8012,Procurement,60011,Agency Staff,"2,320.00"
Cambridge City Council,Glo-Bell London Ltd,10119000,09/04/21,81557,8025,Cowley Road Compound,60201,Cyclical/Planned Maintenance - Building,990.00
Cambridge City Council,Glo-Bell London Ltd,10119000,01/04/21,80991,8017,Mandela House,60201,Cyclical/Planned Maintenance - Building,811.00
Cambridge City Council,Green Energy Switch Ltd,10051400,15/04/21,82502,6209,Energy Rating,62400,Consultancy Fees,"1,000.00"
Cambridge City Council,Greenwich Leisure Limited (GLL),10051900,09/04/21,81631,1101,Leisure Contract Management Fees,64600,Grants And Contributions,"185,000.00"
Cambridge City Council,Greenwich Leisure Limited (GLL),10051900,14/04/21,82197,1101,Leisure Contract Management Fees,61800,Contract Charges,"41,161.80"
Cambridge City Council,Ground Control Ltd,10264600,28/04/21,83797,1774,"Cambridge Road Retail Park, Haverhill",60503,Grounds Maintenance,"1,342.89"
Cambridge City Council,Hako Machines Ltd,10052800,22/03/21,82217,1856,Streets & Open Spaces (Operations) - Indirect Costs,61703,"Purchase - Equipment, Furniture And Materials","3,760.00"
Cambridge City Council,Hako Machines Ltd,10052800,22/03/21,82217,1856,Streets & Open Spaces (Operations) - Indirect Costs,65461,Revenue VAT: Pending Recovery,"4,746.00"
Cambridge City Council,Hako Machines Ltd,10052800,31/03/21,83013,1856,Streets & Open Spaces (Operations) - Indirect Costs,60907,Other Vehicle Costs,760.00
Cambridge City Council,Headway Cambridgeshire,10054000,15/04/21,82079,1057,Community Development Voluntary Support,64600,Grants And Contributions,"3,000.00"
Cambridge City Council,Henry Riley LLP,10288400,23/03/21,81990,1506,Housing Development Agency,62400,Consultancy Fees,750.00
Cambridge City Council,Hill Partnerships Limited,10214300,06/04/21,82207,300091,Campkin Road Phase 2,70002,CAPEX - Building Contractor/Works,"414,751.14"
Cambridge City Council,Hill Partnerships Limited,10214300,13/04/21,82308,300090,Meadows and Buchan Street,70002,CAPEX - Building Contractor/Works,"62,743.11"
Cambridge City Council,Hill Partnerships Limited,10214300,06/04/21,83137,300087,New Build Colville Road (Phase 2),70002,CAPEX - Building Contractor/Works,"272,790.77"
Cambridge City Council,Histon Road Area Residents Association,10338200,15/04/21,82080,1057,Community Development Voluntary Support,64600,Grants And Contributions,800.00
Cambridge City Council,HM Revenue & Customs,10144208,08/04/21,81349,9900,General Fund Balance Sheet,21003,Construction Industry Tax (Cis),"8,501.10"
Cambridge City Council,HM Revenue & Customs (SDLT),10144205,31/03/21,82218,300042,Acquisitions & Disposals,70001,CAPEX - Acquisition of Land & Existing Building,"8,175.00"
Cambridge City Council,Home-Start Cambridgeshire,10055700,06/04/21,82053,1057,Community Development Voluntary Support,64600,Grants And Contributions,"5,000.00"
Cambridge City Council,Hometrack Data Systems Limited,10055800,31/03/21,81502,1512,Sub-Regional Housing Strategy Co-ordinator,64800,Membership And Subscriptions,"14,500.00"
Cambridge City Council,Housing Reviews Ltd,10056100,08/04/21,81879,1502,Homelessness Costs,63200,Legal Fees,950.00
Cambridge City Council,Housing Reviews Ltd,10056100,16/03/21,82392,1502,Homelessness Costs,63200,Legal Fees,950.00
Cambridge City Council,Huntingdonshire District Council,10056901,30/03/21,81317,1031,Fleet Management - Operational,64077,Telephone And Mobile Phone Costs,987.00
Cambridge City Council,Huntingdonshire District Council,10056901,31/03/21,81480,6012,City Homes Expenditure,61703,"Purchase - Equipment, Furniture And Materials",658.00
Cambridge City Council,Huntingdonshire District Council,10056901,31/03/21,81556,1802,Housing Benefits,64073,ICT Maintenance and Support,"1,875.00"
Cambridge City Council,Huntingdonshire District Council,10056901,30/03/21,81252,1260,Corn Exchange and Guildhalls,64073,ICT Maintenance and Support,764.72
Cambridge City Council,Huntingdonshire District Council,10056901,31/03/21,81484,6200,Building Maintenance Response - Direct,61702,"Maintenance - Equipment, Furniture And Materials",546.00
Cambridge City Council,Huntingdonshire District Council,10056901,31/03/21,81488,6203,Asset Management and Compliance,64070,ICT Hardware,"1,637.97"
Cambridge City Council,Huntingdonshire District Council,10056901,30/03/21,81255,1506,Housing Development Agency,61703,"Purchase - Equipment, Furniture And Materials",726.85
Cambridge City Council,Huntingdonshire District Council,10056901,31/03/21,81342,1200,Corporate Management,64073,ICT Maintenance and Support,829.88
Cambridge City Council,Huntingdonshire District Council,10056901,31/03/21,81485,6104,Independent Living Services,64073,ICT Maintenance and Support,791.20
Cambridge City Council,Huntingdonshire District Council,10056901,30/03/21,81330,1260,Corn Exchange and Guildhalls,64073,ICT Maintenance and Support,791.20
Cambridge City Council,Huntingdonshire District Council,10056901,30/03/21,81334,100220,Shared ICT waste management software - Alloy/Yotta,70023,CAPEX - ICT Software,"7,793.88"
Cambridge City Council,Huntingdonshire District Council,10056901,30/03/21,81338,1661,Parking Administration,64073,ICT Maintenance and Support,921.00
Cambridge City Council,Huntingdonshire District Council,10056901,31/03/21,81491,100285,[Completed] Data centre capacity growth 2020-2024,70000,CAPEX - Capital Scheme Budget,"25,942.13"
Cambridge City Council,Huntingdonshire District Council,10056901,31/03/21,81482,8014,3C Legal Practice,64073,ICT Maintenance and Support,"1,120.20"
Cambridge City Council,Huntingdonshire District Council,10056901,30/03/21,81320,1519,Shared Home Improvement Agency,64073,ICT Maintenance and Support,"12,211.01"
Cambridge City Council,Huntingdonshire District Council,10056901,30/03/21,81327,1701,3C Building Control,64077,Telephone And Mobile Phone Costs,678.86
Cambridge City Council,Huntingdonshire District Council,10056901,30/03/21,81328,1260,Corn Exchange and Guildhalls,64071,ICT Software,"1,337.98"
Cambridge City Council,Huntingdonshire District Council,10056901,30/03/21,81336,6007,Departmental Overheads-Client,64072,ICT Licences,698.54
Cambridge City Council,Huntingdonshire District Council,10056901,31/03/21,81398,100243,Property Management software,70010,CAPEX - Other Professional Fees,"1,250.00"
Cambridge City Council,Huntingdonshire District Council,10056901,31/03/21,81501,8021,IT Contract Costs,63900,Miscellaneous Expenses,"10,206.89"
Cambridge City Council,Huntingdonshire District Council,10056901,09/04/21,81632,8021,IT Contract Costs,64073,ICT Maintenance and Support,"26,000.00"
Cambridge City Council,Huntingdonshire District Council,10056901,12/04/21,81844,100255,[Completed] HRIS new system,70023,CAPEX - ICT Software,"40,000.00"
Cambridge City Council,Huntingdonshire District Council,10056901,12/04/21,81844,8001,Human Resources Operations (Staff-General),64073,ICT Maintenance and Support,989.00
Cambridge City Council,Huntingdonshire District Council,10056901,30/03/21,82365,8023,Business Support - Centralised Overheads,64073,ICT Maintenance and Support,"3,157.15"
Cambridge City Council,Huntingdonshire District Council,10056901,16/04/21,82367,8021,IT Contract Costs,63900,Miscellaneous Expenses,"16,565.21"
Cambridge City Council,Huntingdonshire District Council,10056901,10/03/21,83825,6007,Departmental Overheads-Client,64072,ICT Licences,"21,969.88"
Cambridge City Council,Idox Software Limited,10057600,31/03/21,80832,1352,Electoral Registration,62001,Printing,"1,133.55"
Cambridge City Council,Idox Software Limited,10057600,29/01/21,82165,1425,Tascomi - Env Health Software,60000,Salaries,"40,825.00"
Cambridge City Council,Idox Software Limited,10057600,21/04/21,83106,1353,Elections,64073,ICT Maintenance and Support,"3,716.00"
Cambridge City Council,IHS Global Limited,10057800,20/04/21,83222,6203,Asset Management and Compliance,64072,ICT Licences,"7,760.00"
Cambridge City Council,Inform CPI Ltd,10164200,01/04/21,81627,8006,Accountancy and Support Services,64073,ICT Maintenance and Support,"3,500.00"
Cambridge City Council,Inform CPI Ltd,10164200,01/04/21,81627,1801,Local Taxation,64073,ICT Maintenance and Support,"3,500.00"
Cambridge City Council,It Takes a City (Cambridge),10452200,08/04/21,81426,1509,Grants to Housing Agencies,64600,Grants And Contributions,"10,000.00"
Cambridge City Council,It Takes a City (Cambridge),10452200,08/04/21,81554,1524,COVID-19 Rough Sleepers Services,64401,B&B Accommodation,"1,028.30"
Cambridge City Council,It Takes a City (Cambridge),10452200,08/04/21,81553,1524,COVID-19 Rough Sleepers Services,64401,B&B Accommodation,"8,200.00"
Cambridge City Council,JAM Removals Ltd,10060500,26/04/21,83171,8015,Guildhall,60500,Refuse Collection /Skips,"1,220.00"
Cambridge City Council,Johnsons Workwear,10062300,27/03/21,82504,1031,Fleet Management - Operational,62000,"Clothes, Uniform And Laundry",591.95
Cambridge City Council,Key Conveyancing LLP,10803000,08/04/21,82219,300042,Acquisitions & Disposals,70001,CAPEX - Acquisition of Land & Existing Building,"27,000.00"
Cambridge City Council,KH Construction (Cambridge) Ltd,10475200,16/03/21,79768,6204,Client and Third Party Repairs,60219,Housing Repairs - Insurances,870.00
Cambridge City Council,Khidmat Sisters,10165500,23/04/21,83072,1057,Community Development Voluntary Support,64600,Grants And Contributions,800.00
Cambridge City Council,LA Directories Ltd,10164900,01/04/21,83088,1802,Housing Benefits,64800,Membership And Subscriptions,"5,391.00"
Cambridge City Council,LAVAT Consulting Limited,10065800,30/03/21,83108,8006,Accountancy and Support Services,62400,Consultancy Fees,"2,300.00"
Cambridge City Council,Leisure-Net Solutions Ltd,10792300,24/03/21,80787,1100,Sport & Recreation Administration,64600,Grants And Contributions,"1,542.00"
Cambridge City Council,LG Improve LLP,10794300,13/04/21,82149,8006,Accountancy and Support Services,62400,Consultancy Fees,"1,995.00"
Cambridge City Council,LNRS Data Services Ltd,10087300,12/03/21,82148,8001,Human Resources Operations (Staff-General),64073,ICT Maintenance and Support,"6,605.97"
Cambridge City Council,Locata (Housing Services) Ltd,10067500,31/03/21,81856,1504,Housing Advice Service,64073,ICT Maintenance and Support,500.00
Cambridge City Council,Lodge Roofing Ltd,10120500,31/03/21,80994,6207,Repairs Day to Day,60233,Housing Repairs - Work Given To External Contractors,"2,125.00"
Cambridge City Council,Lubbe & Sons (Bulbs) Ltd,10067700,31/03/21,81459,6110,City Homes Estate Management,60503,Grounds Maintenance,"1,935.00"
Cambridge City Council,Mace Ltd,10290900,30/04/21,81942,300038,Wall Structure,70002,CAPEX - Building Contractor/Works,"6,392.00"
Cambridge City Council,Maintel Europe Ltd,10009800,22/04/21,83253,5024,E_invoicing Suspense Accounts,69100,Expenditure In Holding Account Awaiting Allocation,"1,822.82"
Cambridge City Council,Makers Construction Ltd,10120600,07/04/21,81460,1651,Grand Arcade Car Park,60201,Cyclical/Planned Maintenance - Building,950.00
Cambridge City Council,Maskearaid Industrial Supplies,10069900,19/04/21,82369,9900,General Fund Balance Sheet,11600,Consumable Stores,800.00
Cambridge City Council,Mattison Contract Beds,10059800,26/04/21,83111,6000,Housing Revenue Account - Net Cost of Service,61703,"Purchase - Equipment, Furniture And Materials","1,500.00"
Cambridge City Council,Maydencroft Limited,10121100,01/04/21,81547,1876,Arboriculture,64040,Tree Works,"1,700.00"
Cambridge City Council,Mayfield Seniors Group,10351600,21/04/21,82538,1057,Community Development Voluntary Support,64600,Grants And Contributions,650.00
Cambridge City Council,Meadows Children & Family Wing,10070500,01/04/21,81028,1057,Community Development Voluntary Support,64600,Grants And Contributions,"15,625.00"
Cambridge City Council,Milton Keynes Council,10203700,30/03/21,81454,1203,Corporate Policy,62900,Events,"1,250.00"
Cambridge City Council,"Ministry of Housing, Communities & Local Government",10134000,14/04/21,82000,9901,Housing Revenue Account Balance Sheet,30004,Capital Receipts Reserve,"381,122.26"
Cambridge City Council,Mr Michael Mullin,10831700,23/03/21,83289,1502,Homelessness Costs,63200,Legal Fees,600.00
Cambridge City Council,Mrs P Phipps T/A Community Health,10074000,20/04/21,83248,6201,Building Services - Indirect,60207,Health And Safety Supplies And Services,960.48
Cambridge City Council,Munro Building Services Limited,10122100,13/04/21,81923,1870,Public Toilets,60201,Cyclical/Planned Maintenance - Building,"1,050.00"
Cambridge City Council,NABMA,10074400,01/04/21,81504,1935,Markets,64800,Membership And Subscriptions,738.00
Cambridge City Council,Nationwide Training & Safety Services Ltd,10251000,19/04/21,83251,6201,Building Services - Indirect,60115,Staff Development And Training,625.00
Cambridge City Council,Nemco Utilities Ltd,10075300,16/04/21,82225,1260,Corn Exchange and Guildhalls,60207,Health And Safety Supplies And Services,"1,514.00"
Cambridge City Council,Newlyn PLC,10075600,27/03/21,80903,9900,General Fund Balance Sheet,11708,Vat Debtor (Input Tax),717.64
Cambridge City Council,Nightingale Gardeners,10470300,06/04/21,81029,1057,Community Development Voluntary Support,64600,Grants And Contributions,730.00
Cambridge City Council,NLA Media Access Ltd,10144300,19/03/21,80403,1203,Corporate Policy,64800,Membership And Subscriptions,"1,251.00"
Cambridge City Council,Northgate Public Services (UK) Ltd,,20/04/21,83114,1504,Housing Advice Service,64072,ICT Licences,555.94
Cambridge City Council,Nuaire Ltd,10122400,07/04/21,81936,9900,General Fund Balance Sheet,11600,Consumable Stores,689.50
Cambridge City Council,Nuaire Ltd,10122400,13/04/21,82369,9900,General Fund Balance Sheet,11600,Consumable Stores,716.10
Cambridge City Council,OASIS - Offsite Storage & Integrated Services UK Ltd,10155800,31/03/21,81636,8023,Business Support - Centralised Overheads,63700,Removal Services,931.82
Cambridge City Council,Oasis Hotel Harlow Ltd,10195300,02/04/21,81186,1502,Homelessness Costs,64401,B&B Accommodation,"1,741.90"
Cambridge City Council,Oasis Hotel Harlow Ltd,10195300,02/04/21,81192,1524,COVID-19 Rough Sleepers Services,64401,B&B Accommodation,"1,255.50"
Cambridge City Council,Oblique Arts,10159100,21/04/21,82539,1057,Community Development Voluntary Support,64600,Grants And Contributions,"4,500.00"
Cambridge City Council,Only First Aid Ltd,10342800,30/04/21,82533,1205,Quality/Health & Safety Management - Indirect,62400,Consultancy Fees,535.00
Cambridge City Council,Only First Aid Ltd,10342800,22/04/21,83115,6104,Independent Living Services,60115,Staff Development And Training,535.00
Cambridge City Council,Orchard Information Systems Ltd,10078400,31/03/21,81633,300030,Orchard Upgrade,70024,CAPEX - Other Capital Expenditure,"7,687.50"
Cambridge City Council,Orchard Information Systems Ltd,10078400,13/04/21,83216,300030,Orchard Upgrade,70024,CAPEX - Other Capital Expenditure,"9,525.00"
Cambridge City Council,Outspoken Delivery LLP,10078900,31/03/21,81639,8011,Corporate Business Support,64100,Postage And Courier Services,"1,673.80"
Cambridge City Council,Oxford Archaeology Limited t/a Oxford Archaeology East,10769600,08/04/21,81463,1779,Market Square Project,64020,Surveys,"8,985.00"
Cambridge City Council,Panoramic Associates Ltd,10619400,07/04/21,81368,8012,Procurement,60011,Agency Staff,741.00
Cambridge City Council,Panoramic Associates Ltd,10619400,12/04/21,81859,8012,Procurement,60011,Agency Staff,741.00
Cambridge City Council,Panoramic Associates Ltd,10619400,27/04/21,83252,8012,Procurement,60011,Agency Staff,741.00
Cambridge City Council,Panther Taxis Ltd,10079600,31/03/21,81121,1712,Taxicard Service,63900,Miscellaneous Expenses,"1,295.00"
Cambridge City Council,Parts Plus Accounts Payable,10412400,14/04/21,82356,1031,Fleet Management - Operational,61703,"Purchase - Equipment, Furniture And Materials",960.30
Cambridge City Council,Pearce Sound & Lighting Ltd,10321200,29/03/21,82393,1260,Corn Exchange and Guildhalls,60209,R & M Minor Works,"5,094.30"
Cambridge City Council,Penna PLC,10080400,31/03/21,81113,1303,Corporate Business Processing,62005,"Advertising, Publicity And Marketing",753.13
Cambridge City Council,People Asset Management Ltd,10145100,26/03/21,81004,8001,Human Resources Operations (Staff-General),60111,Occupational Health,"2,975.00"
Cambridge City Council,People Asset Management Ltd,10145100,31/03/21,80993,8001,Human Resources Operations (Staff-General),60111,Occupational Health,680.00
Cambridge City Council,People Asset Management Ltd,10145100,31/03/21,80993,8001,Human Resources Operations (Staff-General),60111,Occupational Health,"1,090.00"
Cambridge City Council,Phillip Ellis t/a The Cambridge Landscaper,10729300,13/04/21,82254,6207,Repairs Day to Day,60233,Housing Repairs - Work Given To External Contractors,"2,500.00"
Cambridge City Council,Phillip Ellis t/a The Cambridge Landscaper,10729300,13/04/21,82254,300037,New Build - Barnwell Road,70010,CAPEX - Other Professional Fees,"3,150.00"
Cambridge City Council,PHS Group Ltd,10082000,25/02/21,80634,1001,Cambridge Crematorium,60501,Cleaning Services,604.37
Cambridge City Council,PHS Group Ltd,10082000,26/03/21,83175,1001,Cambridge Crematorium,60501,Cleaning Services,"1,402.27"
Cambridge City Council,PHS Group Ltd,10082000,27/03/21,83181,1001,Cambridge Crematorium,60501,Cleaning Services,630.37
Cambridge City Council,Pocock & Shaw Ltd,10138301,26/04/21,83831,6004,Leasehold Property Management,62400,Consultancy Fees,"2,530.00"
Cambridge City Council,Pocock & Shaw Ltd,10138301,26/04/21,83832,6004,Leasehold Property Management,62400,Consultancy Fees,920.00
Cambridge City Council,Post office Ltd,10082800,21/04/21,82408,1850,Grounds Maintenance & Street Cleaning,60905,Vehicle Licensing,565.00
Cambridge City Council,Post office Ltd,10082800,21/04/21,82408,6200,Building Maintenance Response - Direct,60905,Vehicle Licensing,795.00
Cambridge City Council,Potter Raper Partnership,10294300,31/03/21,81094,300087,New Build Colville Road (Phase 2),70010,CAPEX - Other Professional Fees,"2,935.29"
Cambridge City Council,Potter Raper Partnership,10294300,31/03/21,81099,300085,New Build Cromwell Road Redevelopment (HRA),70010,CAPEX - Other Professional Fees,750.00
Cambridge City Council,Potter Raper Partnership,10294300,26/02/21,82253,300085,New Build Cromwell Road Redevelopment (HRA),70010,CAPEX - Other Professional Fees,750.00
Cambridge City Council,Potter Raper Partnership,10294300,31/03/21,82248,300091,Campkin Road Phase 2,70010,CAPEX - Other Professional Fees,"3,238.73"
Cambridge City Council,Potter Raper Partnership,10294300,26/02/21,82252,300089,Clerk Maxwell Road,70010,CAPEX - Other Professional Fees,"16,021.00"
Cambridge City Council,Print.UK.Com,10083800,30/03/21,81928,1353,Elections,64100,Postage And Courier Services,"8,714.28"
Cambridge City Council,Print.UK.Com,10083800,30/03/21,81928,5064,Elections-County Council,64100,Postage And Courier Services,"10,457.13"
Cambridge City Council,Print.UK.Com,10083800,30/03/21,81928,5069,Police & Crime Commissioner Election,64100,Postage And Courier Services,"10,457.13"
Cambridge City Council,Print.UK.Com,10083800,30/03/21,81928,5079,Combined Authority Mayoral Elections,64100,Postage And Courier Services,"10,457.13"
Cambridge City Council,Print.UK.Com,10083800,30/03/21,81924,1353,Elections,62001,Printing,581.54
Cambridge City Council,Print.UK.Com,10083800,30/03/21,81924,5064,Elections-County Council,62001,Printing,697.83
Cambridge City Council,Print.UK.Com,10083800,30/03/21,81924,5069,Police & Crime Commissioner Election,62001,Printing,697.84
Cambridge City Council,Print.UK.Com,10083800,30/03/21,81924,5079,Combined Authority Mayoral Elections,62001,Printing,697.84
Cambridge City Council,Proactive Personnel Ltd,10367100,08/04/21,81465,1031,Fleet Management - Operational,60011,Agency Staff,962.00
Cambridge City Council,Proactive Personnel Ltd,10367100,15/04/21,82209,1031,Fleet Management - Operational,60011,Agency Staff,819.00
Cambridge City Council,Proactive Personnel Ltd,10367100,21/04/21,83022,1031,Fleet Management - Operational,60011,Agency Staff,715.00
Cambridge City Council,Pro-Flat Specialist Services Ltd,10123200,31/03/21,81507,6207,Repairs Day to Day,60233,Housing Repairs - Work Given To External Contractors,"1,285.00"
Cambridge City Council,Pro-Flat Specialist Services Ltd,10123200,31/03/21,81390,6207,Repairs Day to Day,60233,Housing Repairs - Work Given To External Contractors,"1,120.00"
Cambridge City Council,Pro-Flat Specialist Services Ltd,10123200,13/04/21,82084,6207,Repairs Day to Day,60233,Housing Repairs - Work Given To External Contractors,"2,858.00"
Cambridge City Council,Prompt Glazing Ltd,10283900,09/04/21,81542,300012,External Doors,70003,CAPEX - Building Contractor/Works - Voids & Emergencies,689.00
Cambridge City Council,Prompt Glazing Ltd,10283900,09/04/21,81542,300012,External Doors,70003,CAPEX - Building Contractor/Works - Voids & Emergencies,510.00
Cambridge City Council,Prompt Glazing Ltd,10283900,09/04/21,81540,300012,External Doors,70003,CAPEX - Building Contractor/Works - Voids & Emergencies,754.78
Cambridge City Council,Propotec Ltd,10123300,09/04/21,81658,300025,HHSRS,70003,CAPEX - Building Contractor/Works - Voids & Emergencies,"2,060.00"
Cambridge City Council,Protector Insurance UK,10565800,12/04/21,81818,8009,Insurance Fund,67302,Insurance,"5,608.77"
Cambridge City Council,Quartix Ltd,10206900,07/04/21,81521,5001,City Services Holding Account,69100,Expenditure In Holding Account Awaiting Allocation,"5,045.70"
Cambridge City Council,R J Warren Ltd,10123500,08/04/21,81470,1868,Play Maintenance,61702,"Maintenance - Equipment, Furniture And Materials",977.59
Cambridge City Council,R J Warren Ltd,10123500,12/04/21,81917,1868,Play Maintenance,61703,"Purchase - Equipment, Furniture And Materials",653.75
Cambridge City Council,R J Warren Ltd,10123500,12/04/21,81918,1868,Play Maintenance,61703,"Purchase - Equipment, Furniture And Materials",835.00
Cambridge City Council,Realife Trust,10086900,20/04/21,82380,1766,Orwell House Offices-Internal,62004,General Office Expenses,"1,520.84"
Cambridge City Council,Regency Aerials (Cambridge) Ltd,10123400,22/04/21,82547,6207,Repairs Day to Day,60224,Housing Repairs - Tv Aerial Maintenance,"1,275.00"
Cambridge City Council,Regency Guest House,10492200,31/03/21,80871,1516,CLG Supplementary Homelessness Grants,64401,B&B Accommodation,"1,400.00"
Cambridge City Council,Regency Guest House,10492200,12/04/21,81956,1516,CLG Supplementary Homelessness Grants,64401,B&B Accommodation,"7,957.98"
Cambridge City Council,Relx (UK) Ltd T/A Lexisnexis UK,10087600,15/03/21,81185,8014,3C Legal Practice,62003,"Books, Publications And Resources","1,856.00"
Cambridge City Council,Relx (UK) Ltd T/A Lexisnexis UK,10087600,13/04/21,82495,8014,3C Legal Practice,62003,"Books, Publications And Resources","1,732.00"
Cambridge City Council,Rentokil Ltd/Rentokil Initial Pest Control Ltd,,30/03/21,81656,6207,Repairs Day to Day,60233,Housing Repairs - Work Given To External Contractors,"15,581.75"
Cambridge City Council,Richard Herrmann Associates Ltd,10637400,06/04/21,81145,300038,Wall Structure,70009,CAPEX - Engineers Fees,"4,015.00"
Cambridge City Council,RICS - Royal Institution of Chartered Surveyors,10089101,22/04/21,83024,6203,Asset Management and Compliance,64800,Membership And Subscriptions,"1,280.00"
Cambridge City Council,Ridgeons Ltd,10089200,09/04/21,83118,1866,Open Space Asset Maintenance,61702,"Maintenance - Equipment, Furniture And Materials",600.00
Cambridge City Council,Risk Warden Ltd,10441100,19/04/21,82255,6215,Risk and Compliance,60205,Fire Assessment And Safety,"11,349.00"
Cambridge City Council,Robert Pochin Limited,10089700,19/03/21,81936,9900,General Fund Balance Sheet,11600,Consumable Stores,530.90
Cambridge City Council,Rock Choir Ltd,10442200,28/04/21,83260,9900,General Fund Balance Sheet,20118,Receipts In Advance - Other Entities And Individuals,"9,000.00"
Cambridge City Council,Romsey Mill Trust Ltd - Youth Centre,10090201,01/04/21,80937,1057,Community Development Voluntary Support,64600,Grants And Contributions,"6,125.00"
Cambridge City Council,Royal Mail Group Ltd,10128401,05/04/21,81660,8023,Business Support - Centralised Overheads,64100,Postage And Courier Services,"1,059.25"
Cambridge City Council,Royal Mail Group Ltd,10128401,13/04/21,82241,8023,Business Support - Centralised Overheads,64100,Postage And Courier Services,"4,589.35"
Cambridge City Council,Royal Mail Group Ltd,10128401,12/04/21,82426,8023,Business Support - Centralised Overheads,64100,Postage And Courier Services,"1,212.70"
Cambridge City Council,S & B Commercials Ltd,10078700,27/04/21,83802,1032,Garage- External Work,61703,"Purchase - Equipment, Furniture And Materials",659.30
Cambridge City Council,S P Landscapes & Tree Contractors Ltd,10124100,31/03/21,81503,1883,Flood Risk Management,60501,Cleaning Services,"1,250.00"
Cambridge City Council,S P Landscapes & Tree Contractors Ltd,10124100,31/03/21,82019,1876,Arboriculture,64040,Tree Works,"1,382.00"
Cambridge City Council,S P Landscapes & Tree Contractors Ltd,10124100,20/04/21,83025,1876,Arboriculture,64040,Tree Works,750.00
Cambridge City Council,S P Landscapes & Tree Contractors Ltd,10124100,27/04/21,83193,1876,Arboriculture,64040,Tree Works,"2,275.00"
Cambridge City Council,S P Landscapes & Tree Contractors Ltd,10124100,20/04/21,83141,1876,Arboriculture,64040,Tree Works,600.00
Cambridge City Council,Saint Andrews Bureau Ltd,10551500,19/04/21,82220,9900,General Fund Balance Sheet,20119,Other Creditors - Other Entities And Individuals,"1,394.25"
Cambridge City Council,Saint-Gobain Building Distribution Ltd t/a Jewson,10061400,12/04/21,83242,9900,General Fund Balance Sheet,11600,Consumable Stores,559.92
Cambridge City Council,Scotsdales Nursery & Garden Centre Ltd,10092400,02/03/21,80995,6000,Housing Revenue Account - Net Cost of Service,61703,"Purchase - Equipment, Furniture And Materials","1,513.41"
Cambridge City Council,Secure Haven Ltd,10488900,12/04/21,81602,1001,Cambridge Crematorium,53006,Bereavement  - Fees And Charges (E),922.00
Cambridge City Council,Secure Haven Ltd,10488900,12/04/21,81640,1001,Cambridge Crematorium,53006,Bereavement  - Fees And Charges (E),"1,197.50"
Cambridge City Council,Secure Haven Ltd,10488900,12/04/21,81642,1001,Cambridge Crematorium,53006,Bereavement  - Fees And Charges (E),"1,025.50"
Cambridge City Council,Secure Haven Ltd,10488900,21/04/21,82549,1001,Cambridge Crematorium,53006,Bereavement  - Fees And Charges (E),"2,595.00"
Cambridge City Council,Sedgwick International UK,10822100,22/02/21,82460,6204,Client and Third Party Repairs,60219,Housing Repairs - Insurances,"2,512.00"
Cambridge City Council,Shaw & Sons Ltd,10093400,12/04/21,83157,1353,Elections,61703,"Purchase - Equipment, Furniture And Materials","1,447.10"
Cambridge City Council,Siemens Financial Services Limited,10093900,10/04/21,81643,1001,Cambridge Crematorium,61700,Hire - Equipment Furniture And Materials,788.00
Cambridge City Council,Smith & Ouzman Ltd,,31/03/21,81000,8023,Business Support - Centralised Overheads,64100,Postage And Courier Services,668.94
Cambridge City Council,Smith & Ouzman Ltd,,31/03/21,81117,1801,Local Taxation,62001,Printing,764.54
Cambridge City Council,Smith & Ouzman Ltd,,13/04/21,81883,1801,Local Taxation,62001,Printing,"1,844.00"
Cambridge City Council,Smith & Ouzman Ltd,,13/04/21,82249,1801,Local Taxation,62001,Printing,"2,204.71"
Cambridge City Council,Smith & Ouzman Ltd,,13/04/21,82249,1802,Housing Benefits,62001,Printing,855.41
Cambridge City Council,Smith & Ouzman Ltd,,26/03/21,82166,1203,Corporate Policy,62005,"Advertising, Publicity And Marketing",509.00
Cambridge City Council,Socotec UK Ltd,10095700,31/03/21,81388,1404,Scientific Team,61703,"Purchase - Equipment, Furniture And Materials",816.00
Cambridge City Council,South Cambridgeshire District Council,10096103,16/04/21,82292,1510,Housing Strategy,64060,Shared Service Contribution,"4,169.00"
Cambridge City Council,South Cambridgeshire District Council,10096103,27/04/21,83213,1702,City Development,63900,Miscellaneous Expenses,"273,460.85"
Cambridge City Council,South Cambridgeshire District Council,10096103,27/04/21,83215,1625,Land Charges and Searches,63900,Miscellaneous Expenses,"12,198.67"
Cambridge City Council,South Cambridgeshire District Council,10096103,27/04/21,83212,9900,General Fund Balance Sheet,30001,Gf Earmarked Reserves Balance,"58,913.50"
Cambridge City Council,South Cambridgeshire District Council,10096103,27/04/21,83210,9900,General Fund Balance Sheet,30001,Gf Earmarked Reserves Balance,"122,500.00"
Cambridge City Council,South Cambridgeshire District Council,10096103,27/04/21,83214,1708,Urban Design & Conservation,63900,Miscellaneous Expenses,"1,794.00"
Cambridge City Council,Sports Surface Maintenance Ltd,10144600,17/04/21,82286,1102,Leisure Contract Client Costs,60201,Cyclical/Planned Maintenance - Building,687.00
Cambridge City Council,St Andrews Church Cherry Hinton,10096900,21/04/21,82541,1057,Community Development Voluntary Support,64600,Grants And Contributions,"1,642.00"
Cambridge City Council,Student Community Action,10099200,06/04/21,81106,1057,Community Development Voluntary Support,64600,Grants And Contributions,"6,000.00"
Cambridge City Council,Summit Landscapes,10728000,20/04/21,82515,300049,New Build - Water Lane,70010,CAPEX - Other Professional Fees,"2,800.00"
Cambridge City Council,Swarco UK Ltd,10169900,20/04/20,82487,100112,Electric vehicle charging points - taxis,70002,CAPEX - Building Contractor/Works,"3,648.24"
Cambridge City Council,Swarco UK Ltd,10169900,20/04/20,82501,100112,Electric vehicle charging points - taxis,70002,CAPEX - Building Contractor/Works,910.00
Cambridge City Council,Swarco UK Ltd,10169900,17/09/20,82488,100112,Electric vehicle charging points - taxis,70002,CAPEX - Building Contractor/Works,"20,763.51"
Cambridge City Council,Synectics Security Ltd,10151000,31/03/21,81148,100193,[Completed] Cambridge City CCTV infrastructure,70002,CAPEX - Building Contractor/Works,"15,003.51"
Cambridge City Council,Synectics Security Ltd,10151000,31/03/21,82001,100193,[Completed] Cambridge City CCTV infrastructure,70002,CAPEX - Building Contractor/Works,"56,709.80"
Cambridge City Council,Tailor Made Metal Fabrications Ltd,10100800,16/04/21,82261,1866,Open Space Asset Maintenance,60245,Responsive Repairs - Mechanical And Electrical,878.85
Cambridge City Council,Tameside MBC,10101000,01/04/21,81067,1802,Housing Benefits,64800,Membership And Subscriptions,"1,600.00"
Cambridge City Council,TDSI,10791600,18/03/21,82576,8018,Admin Building Allocation,61703,"Purchase - Equipment, Furniture And Materials","2,968.00"
Cambridge City Council,Temerity Media Limited,10798000,08/04/21,81664,790008,,61703,"Purchase - Equipment, Furniture And Materials","1,198.54"
Cambridge City Council,Tempo Time Credits Limited,10180600,06/04/21,81108,1057,Community Development Voluntary Support,64600,Grants And Contributions,"10,000.00"
Cambridge City Council,Terberg Matec UK Ltd,10101500,12/04/21,82131,1032,Garage- External Work,61703,"Purchase - Equipment, Furniture And Materials",934.10
Cambridge City Council,Terberg Matec UK Ltd,10101500,12/04/21,82131,1031,Fleet Management - Operational,61703,"Purchase - Equipment, Furniture And Materials",533.64
Cambridge City Council,Terberg Matec UK Ltd,10101500,12/04/21,82131,1031,Fleet Management - Operational,61703,"Purchase - Equipment, Furniture And Materials",533.64
Cambridge City Council,Thames Laboratories Ltd,10101600,31/03/21,81473,6215,Risk and Compliance,60237,Asbestos Investigation/Surveys,"2,655.27"
Cambridge City Council,Thames Laboratories Ltd,10101600,31/03/21,82518,6215,Risk and Compliance,60237,Asbestos Investigation/Surveys,"5,002.80"
Cambridge City Council,The Beck Co Ltd,10101800,31/03/21,81483,9900,General Fund Balance Sheet,11600,Consumable Stores,"1,050.91"
Cambridge City Council,The BSS Group PLC t/a PTS Plumbing Trade Supplies,10102000,22/04/21,83242,9900,General Fund Balance Sheet,11600,Consumable Stores,825.00
Cambridge City Council,The Cambridge Royal Albert Homes,10105100,06/04/21,81207,1057,Community Development Voluntary Support,64600,Grants And Contributions,500.00
Cambridge City Council,The Combined Services Provider Ltd,10770200,31/03/21,81457,1935,Markets,60000,Salaries,"2,710.57"
Cambridge City Council,The Combined Services Provider Ltd,10770200,23/04/21,83123,1935,Markets,60000,Salaries,"2,064.65"
Cambridge City Council,The GET Group,10103000,15/04/21,82065,1057,Community Development Voluntary Support,64600,Grants And Contributions,"6,000.00"
Cambridge City Council,The Kings Hedges Family Support Project,10260200,15/04/21,82081,1057,Community Development Voluntary Support,64600,Grants And Contributions,"10,000.00"
Cambridge City Council,The Kite Trust,10103700,01/04/21,81027,1057,Community Development Voluntary Support,64600,Grants And Contributions,"6,250.00"
Cambridge City Council,The Richmond Fellowship Ltd,10104900,01/04/21,81030,1057,Community Development Voluntary Support,64600,Grants And Contributions,"7,500.00"
Cambridge City Council,The Riverside Group Ltd - ECHG,10105001,08/04/21,81433,1509,Grants to Housing Agencies,64600,Grants And Contributions,"10,000.00"
Cambridge City Council,The Urban Forest Consultancy Ltd,10105700,20/04/21,82287,1876,Arboriculture,62400,Consultancy Fees,"4,000.00"
Cambridge City Council,Thistle Insurance Services Ltd,10105900,07/04/21,81217,6502,Holding Accounts,69343,Insurance Premium - Other,"1,914.46"
Cambridge City Council,Thomson Reuters Professional UK Ltd T/A Sweet & Maxwell,10106000,31/03/21,81001,1352,Electoral Registration,62003,"Books, Publications And Resources",616.95
Cambridge City Council,Thomson Reuters Professional UK Ltd T/A Sweet & Maxwell,10106000,31/03/21,81001,1352,Electoral Registration,62003,"Books, Publications And Resources",616.95
Cambridge City Council,Thomson Reuters Professional UK Ltd T/A Sweet & Maxwell,10106000,01/04/21,81517,8014,3C Legal Practice,62003,"Books, Publications And Resources",555.00
Cambridge City Council,Thomson Reuters Professional UK Ltd T/A Sweet & Maxwell,10106000,01/04/21,81513,8014,3C Legal Practice,62003,"Books, Publications And Resources","4,452.33"
Cambridge City Council,Town & Country Memorials Ltd,10107100,22/02/21,82199,1004,Commemoration,61400,Goods For Resale,535.76
Cambridge City Council,Treeconomics Ltd,10461300,01/04/21,82077,1890,2 Seas,62400,Consultancy Fees,960.00
Cambridge City Council,Treeconomics Ltd,10461300,01/04/21,82077,1890,2 Seas,62400,Consultancy Fees,780.00
Cambridge City Council,Treeconomics Ltd,10461300,01/04/21,82077,1890,2 Seas,62400,Consultancy Fees,780.00
Cambridge City Council,Treeconomics Ltd,10461300,01/04/21,82077,1890,2 Seas,62400,Consultancy Fees,"5,760.00"
Cambridge City Council,Treeconomics Ltd,10461300,01/04/21,82077,1890,2 Seas,62400,Consultancy Fees,"3,840.00"
Cambridge City Council,Tructyre Fleet Management Ltd,10364500,01/04/21,81119,1032,Garage- External Work,61703,"Purchase - Equipment, Furniture And Materials","5,327.80"
Cambridge City Council,Trumpington Residents Association c/o Andrew Roberts,10108500,06/04/21,81109,1057,Community Development Voluntary Support,64600,Grants And Contributions,"2,400.00"
Cambridge City Council,Trumpington Residents Association c/o Andrew Roberts,10108500,26/04/21,83092,1059,Community Facilities (formerly St Lukes Community School),64600,Grants And Contributions,"7,625.00"
Cambridge City Council,Tunstall Healthcare (UK) Ltd,10109100,22/03/21,81543,6103,Emergency Alarms,61800,Contract Charges,"5,546.45"
Cambridge City Council,Turner Contracting Ltd,10125400,31/03/21,81072,6207,Repairs Day to Day,60233,Housing Repairs - Work Given To External Contractors,"5,325.00"
Cambridge City Council,Turner Contracting Ltd,10125400,31/03/21,81068,6207,Repairs Day to Day,60233,Housing Repairs - Work Given To External Contractors,653.00
Cambridge City Council,Turner Contracting Ltd,10125400,15/04/21,82154,6207,Repairs Day to Day,60233,Housing Repairs - Work Given To External Contractors,980.00
Cambridge City Council,Turner Contracting Ltd,10125400,13/04/21,81957,6207,Repairs Day to Day,60233,Housing Repairs - Work Given To External Contractors,680.00
Cambridge City Council,Turner Contracting Ltd,10125400,11/04/21,81841,6207,Repairs Day to Day,60233,Housing Repairs - Work Given To External Contractors,"1,560.00"
Cambridge City Council,Turner Contracting Ltd,10125400,15/04/21,82155,6207,Repairs Day to Day,60233,Housing Repairs - Work Given To External Contractors,585.00
Cambridge City Council,UK Fuels Limited,10192900,04/04/21,81505,5001,City Services Holding Account,69100,Expenditure In Holding Account Awaiting Allocation,"2,212.00"
Cambridge City Council,UK Fuels Limited,10192900,21/03/21,79725,5001,City Services Holding Account,69100,Expenditure In Holding Account Awaiting Allocation,"4,121.60"
Cambridge City Council,UK Fuels Limited,10192900,28/03/21,80909,5001,City Services Holding Account,69100,Expenditure In Holding Account Awaiting Allocation,"4,642.36"
Cambridge City Council,UK Fuels Limited,10192900,11/04/21,82082,5001,City Services Holding Account,69100,Expenditure In Holding Account Awaiting Allocation,"5,695.39"
Cambridge City Council,University of Cambridge,10110201,08/04/21,81438,1057,Community Development Voluntary Support,64600,Grants And Contributions,"6,000.00"
Cambridge City Council,University of Cambridge,10110201,21/04/21,82542,1057,Community Development Voluntary Support,64600,Grants And Contributions,"7,500.00"
Cambridge City Council,VEOLIA ES (UK) LIMITED,10566500,31/03/21,81665,6200,Building Maintenance Response - Direct,64050,Waste Disposal Costs,"1,924.68"
Cambridge City Council,Volvo Group UK Ltd,10111400,01/04/21,81441,1032,Garage- External Work,61703,"Purchase - Equipment, Furniture And Materials",733.76
Cambridge City Council,Volvo Group UK Ltd,10111400,16/04/21,82356,1032,Garage- External Work,61703,"Purchase - Equipment, Furniture And Materials","2,008.25"
Cambridge City Council,Volvo Group UK Ltd,10111400,16/04/21,82356,1032,Garage- External Work,61703,"Purchase - Equipment, Furniture And Materials",682.50
Cambridge City Council,VWS (UK) Limited t/a Veolia Water Technologies,10778300,12/04/21,81939,5024,E_invoicing Suspense Accounts,69100,Expenditure In Holding Account Awaiting Allocation,"1,699.98"
Cambridge City Council,Weightmans LLP,10112700,29/06/20,82490,9900,General Fund Balance Sheet,11708,Vat Debtor (Input Tax),504.80
Cambridge City Council,Weightmans LLP,10112700,22/12/20,82491,9900,General Fund Balance Sheet,11708,Vat Debtor (Input Tax),691.10
Cambridge City Council,WFL (UK) Ltd t/a Watson Fuels,10113200,19/03/21,79581,1031,Fleet Management - Operational,60306,Heating Oil,938.47
Cambridge City Council,Wintercomfort for the Homeless,10113600,01/04/21,80938,1509,Grants to Housing Agencies,64600,Grants And Contributions,"23,750.00"
Cambridge City Council,Wintercomfort for the Homeless,10113600,31/03/21,82451,1524,COVID-19 Rough Sleepers Services,64401,B&B Accommodation,"1,074.00"
Cambridge City Council,Witham Oil & Paint (Soham) Ltd,10113800,27/04/21,83257,1032,Garage- External Work,61703,"Purchase - Equipment, Furniture And Materials","1,014.18"
Cambridge City Council,Witham Oil & Paint (Soham) Ltd,10113800,27/04/21,83257,1032,Garage- External Work,61703,"Purchase - Equipment, Furniture And Materials",579.12
Cambridge City Council,Witham Oil & Paint (Soham) Ltd,10113800,27/04/21,83257,1032,Garage- External Work,61703,"Purchase - Equipment, Furniture And Materials",545.85
Cambridge City Council,Wood Green Animal Shelters,10114100,31/03/21,81058,1858,Public Realm Enforcement,61800,Contract Charges,"1,416.67"
Cambridge City Council,YMCA Trinity Group,10132200,31/03/21,80857,1509,Grants to Housing Agencies,69150,Other Services,"1,882.09"
Cambridge City Council,Zurich Insurance PLC,10115100,12/04/21,81819,8009,Insurance Fund,67302,Insurance,555.00
Cambridge City Council,10:AM,10302900,04/05/21,84918,780002,,62800,Design And Photographic Costs,800.00
Cambridge City Council,A & B Contractors Ltd,10546800,18/05/21,85909,100001,Environmental Improvements Programme - North Area,70002,CAPEX - Building Contractor/Works,"10,518.50"
Cambridge City Council,Abbey Bowls Club,10001200,18/05/21,85754,1102,Leisure Contract Client Costs,64600,Grants And Contributions,"5,380.00"
Cambridge City Council,Abbey People,10001300,07/05/21,84774,1057,Community Development Voluntary Support,64600,Grants And Contributions,"4,000.00"
Cambridge City Council,Abbeycroft Leisure,10229800,29/04/21,84912,1101,Leisure Contract Management Fees,64600,Grants And Contributions,"15,000.00"
Cambridge City Council,ADC (East Anglia) Ltd,10002500,29/04/21,84278,1883,Flood Risk Management,60501,Cleaning Services,"2,600.00"
Cambridge City Council,Aecom Ltd,10003200,28/04/21,83894,300035,Ditchburn Place,70010,CAPEX - Other Professional Fees,"10,000.00"
Cambridge City Council,Aecom Ltd,10003200,17/03/21,82358,300035,Ditchburn Place,70010,CAPEX - Other Professional Fees,"11,297.50"
Cambridge City Council,AJ & R Scambler & Sons Ltd,10003600,20/04/21,85799,1031,Fleet Management - Operational,61703,"Purchase - Equipment, Furniture And Materials",696.04
Cambridge City Council,Alboro Developments Ltd,10133300,30/04/21,84475,1031,Fleet Management - Operational,60904,Vehicle Repairs And Maintenance,610.00
Cambridge City Council,Alboro Developments Ltd,10133300,30/04/21,84829,1031,Fleet Management - Operational,60303,Electricity,642.69
Cambridge City Council,Aldwyck Housing Group Ltd-Houghton Regis,10200902,30/04/21,84757,1522,Flexible Homelessness Support Grant,60804,Other Premises Related Costs,"1,080.05"
Cambridge City Council,Alexandra & Beehive Bowls Club,10004100,19/05/21,85877,1102,Leisure Contract Client Costs,64600,Grants And Contributions,"5,380.00"
Cambridge City Council,Alliance Asbestos Services Ltd,10115400,25/05/21,86289,300007,Asbestos Removal,70002,CAPEX - Building Contractor/Works,"1,291.00"
Cambridge City Council,Ambroplastics Ltd,10770300,21/04/21,83921,1353,Elections,61703,"Purchase - Equipment, Furniture And Materials",787.50
Cambridge City Council,Ameycespa (East) Ltd,10005100,29/03/21,84879,1002,Bereavement Services - Burials & Grounds,60500,Refuse Collection /Skips,543.52
Cambridge City Council,Amulet (Churchill Security Solutions) Ltd,10220900,19/05/21,86016,5024,E_invoicing Suspense Accounts,69100,Expenditure In Holding Account Awaiting Allocation,"1,560.00"
Cambridge City Council,Amulet (Churchill Security Solutions) Ltd,10220900,30/04/21,86014,5024,E_invoicing Suspense Accounts,69100,Expenditure In Holding Account Awaiting Allocation,"10,041.98"
Cambridge City Council,Amulet (Churchill Security Solutions) Ltd,10220900,30/04/21,86003,5024,E_invoicing Suspense Accounts,69100,Expenditure In Holding Account Awaiting Allocation,"11,707.53"
Cambridge City Council,Andrew Firebrace Partnership Ltd,10005400,31/03/21,85306,1100,Sport & Recreation Administration,60201,Cyclical/Planned Maintenance - Building,750.00
Cambridge City Council,Andrew Firebrace Partnership Ltd,10005400,24/05/21,86442,300006,Insulation / Energy Efficiency,70002,CAPEX - Building Contractor/Works,509.00
Cambridge City Council,Anglian Water Business (National) Ltd T/A Wave,10006400,24/04/21,84006,1870,Public Toilets,60302,Water And Sewerage,524.56
Cambridge City Council,Anglian Water Business (National) Ltd T/A Wave,10006400,21/01/21,79443,1935,Markets,60302,Water And Sewerage,935.67
Cambridge City Council,APSE Manchester,10127800,06/04/21,84504,1857,Head of Environmental Services,64300,Conference Expenses,"2,512.00"
Cambridge City Council,APSE Manchester,10127800,28/04/21,85512,1206,Strategic Director#1,64800,Membership And Subscriptions,"2,280.00"
Cambridge City Council,APT Skidata Ltd,10115700,05/05/21,84797,1655,Queen Anne Terrace Car Park,64073,ICT Maintenance and Support,"1,470.41"
Cambridge City Council,APT Skidata Ltd,10115700,04/05/21,84798,1654,Grafton Centre East Car Park,61702,"Maintenance - Equipment, Furniture And Materials","1,791.46"
Cambridge City Council,APT Skidata Ltd,10115700,04/05/21,84799,1653,Grafton Centre West Car Park,61702,"Maintenance - Equipment, Furniture And Materials","1,064.37"
Cambridge City Council,APT Skidata Ltd,10115700,04/05/21,84800,1655,Queen Anne Terrace Car Park,61702,"Maintenance - Equipment, Furniture And Materials","1,074.41"
Cambridge City Council,APT Skidata Ltd,10115700,04/05/21,84795,1653,Grafton Centre West Car Park,64073,ICT Maintenance and Support,"1,470.41"
Cambridge City Council,APT Skidata Ltd,10115700,04/05/21,84801,1654,Grafton Centre East Car Park,64073,ICT Maintenance and Support,"1,470.41"
Cambridge City Council,APT Skidata Ltd,10115700,04/05/21,84796,1652,Park Street Car Park,64073,ICT Maintenance and Support,"1,470.41"
Cambridge City Council,APT Skidata Ltd,10115700,04/05/21,84899,1652,Park Street Car Park,61702,"Maintenance - Equipment, Furniture And Materials","1,170.11"
Cambridge City Council,APT Skidata Ltd,10115700,17/05/21,85751,1651,Grand Arcade Car Park,61702,"Maintenance - Equipment, Furniture And Materials","3,323.54"
Cambridge City Council,Arbury Road Baptist Church,10487501,11/05/21,84939,1077,Community Resilience,64600,Grants And Contributions,500.00
Cambridge City Council,Barnwell Electrical Company Ltd,10142400,14/05/21,86058,5099,S106 Clay Farm (Hobson Square) 13/0912/REM Rev Contr.,60503,Grounds Maintenance,710.00
Cambridge City Council,Benson Area Residents Association,10488500,30/04/21,83871,1057,Community Development Voluntary Support,64600,Grants And Contributions,950.00
Cambridge City Council,Bevan Brittan LLP,10012600,29/04/21,85449,300042,Acquisitions & Disposals,70001,CAPEX - Acquisition of Land & Existing Building,524.90
Cambridge City Council,Bevan Brittan LLP,10012600,28/04/21,85835,300085,New Build Cromwell Road Redevelopment (HRA),70010,CAPEX - Other Professional Fees,"1,598.00"
Cambridge City Council,Bidwells LLP  No 2 Account,10161000,30/04/21,84856,1750,Property Services,62400,Consultancy Fees,"21,480.00"
Cambridge City Council,Bidwells LLP  No 2 Account,10161000,30/04/21,84856,1453,Finance General Recharges,62400,Consultancy Fees,"5,370.00"
Cambridge City Council,BigChange Limited,10355800,11/05/21,85454,5062,3C ICT,64073,ICT Maintenance and Support,"3,011.24"
Cambridge City Council,Birdwood Area Residents Association,10013400,04/05/21,84080,1057,Community Development Voluntary Support,64600,Grants And Contributions,"1,405.00"
Cambridge City Council,Blyth Equipment Ltd,10511600,13/04/21,85307,1031,Fleet Management - Operational,61702,"Maintenance - Equipment, Furniture And Materials",955.00
Cambridge City Council,Boldfield Computing Ltd,10306300,01/05/21,84048,1263,Cambridge Live - Central,64073,ICT Maintenance and Support,"1,366.01"
Cambridge City Council,Boldfield Computing Ltd,10306300,01/05/21,84028,1263,Cambridge Live - Central,64077,Telephone And Mobile Phone Costs,797.94
Cambridge City Council,Border Food Machinery Ltd,10551100,05/05/21,84831,6000,Housing Revenue Account - Net Cost of Service,61703,"Purchase - Equipment, Furniture And Materials","1,260.00"
Cambridge City Council,Border Food Machinery Ltd,10551100,05/05/21,84831,6000,Housing Revenue Account - Net Cost of Service,65461,Revenue VAT: Pending Recovery,"1,512.00"
Cambridge City Council,Border Food Machinery Ltd,10551100,05/05/21,84830,6000,Housing Revenue Account - Net Cost of Service,61703,"Purchase - Equipment, Furniture And Materials","1,000.00"
Cambridge City Council,Border Food Machinery Ltd,10551100,05/05/21,84830,6000,Housing Revenue Account - Net Cost of Service,65461,Revenue VAT: Pending Recovery,"1,200.00"
Cambridge City Council,Borley Brothers Engineering,10116600,28/04/21,86035,1762,Barnwell Drive-excl Barnwell House,60503,Grounds Maintenance,"2,585.00"
Cambridge City Council,Bouygues Energies & Services FM UK Ltd,10126400,29/03/21,86390,100155,Building works at the Guildhall to reduce carbon emissions,70002,CAPEX - Building Contractor/Works,"51,143.56"
Cambridge City Council,BPHA Limited,10014401,25/05/21,86334,9900,General Fund Balance Sheet,20119,Other Creditors - Other Entities And Individuals,661.72
Cambridge City Council,BPHA Limited,10014401,26/05/21,86416,9900,General Fund Balance Sheet,20119,Other Creditors - Other Entities And Individuals,"2,180.82"
Cambridge City Council,Breadcrumb Marketing & Media Ltd,10781200,14/05/21,85515,1104,Sport - Ex Ref,62900,Events,"3,900.00"
Cambridge City Council,British Parking Association,10015500,24/05/21,86341,1661,Parking Administration,64800,Membership And Subscriptions,"1,252.00"
Cambridge City Council,Bsg Property Services Ltd,10015900,16/04/21,84283,200000,Repairs Assistance (Owner Occupiers),70015,CAPEX - Grants Paid,"4,346.40"
Cambridge City Council,Bsg Property Services Ltd,10015900,31/03/21,85516,200001,Mandatory Disabled Facilities Grants (Tenants),70015,CAPEX - Grants Paid,"3,063.00"
Cambridge City Council,Bsg Property Services Ltd,10015900,25/01/21,85303,200001,Mandatory Disabled Facilities Grants (Tenants),70015,CAPEX - Grants Paid,780.00
Cambridge City Council,Bsg Property Services Ltd,10015900,11/12/20,85546,200001,Mandatory Disabled Facilities Grants (Tenants),70015,CAPEX - Grants Paid,"6,215.66"
Cambridge City Council,Businessclean (Cambridge) Ltd,10016800,30/04/21,83834,6102,Temporary Accommodation,60501,Cleaning Services,545.00
Cambridge City Council,Businessclean (Cambridge) Ltd,10016800,30/04/21,83839,1502,Homelessness Costs,60501,Cleaning Services,618.00
Cambridge City Council,Businessclean (Cambridge) Ltd,10016800,30/04/21,83837,6102,Temporary Accommodation,60501,Cleaning Services,558.00
Cambridge City Council,Businessclean (Cambridge) Ltd,10016800,30/04/21,85503,6208,Voids,60220,Housing Repairs - Work To Void Properties,"1,143.00"
Cambridge City Council,Businessclean (Cambridge) Ltd,10016800,15/05/21,85878,6208,Voids,60220,Housing Repairs - Work To Void Properties,696.00
Cambridge City Council,Calfordseaden LLP,10339400,29/03/21,80413,300086,New Build - Teddar Way,70010,CAPEX - Other Professional Fees,540.00
Cambridge City Council,Calfordseaden LLP,10339400,27/04/21,83950,300090,Meadows and Buchan Street,70010,CAPEX - Other Professional Fees,"1,999.19"
Cambridge City Council,Calfordseaden LLP,10339400,26/05/21,86413,300064,New Build - Akeman Street,70010,CAPEX - Other Professional Fees,"1,171.95"
Cambridge City Council,Cambridge Arts & Sciences Ltd,10017800,24/05/21,86062,1524,COVID-19 Rough Sleepers Services,64401,B&B Accommodation,"41,449.20"
Cambridge City Council,Cambridge Bid Limited,10017900,14/05/21,85505,5025,Business Improvement District (BID) Collection Fund,58702,BID Levy - Payment to BID Company,"399,335.28"
Cambridge City Council,Cambridge Car Solutions,10758100,13/05/21,85659,1858,Public Realm Enforcement,62401,Subcontractors,540.00
Cambridge City Council,Cambridge Carbon Footprint Ltd,10018000,19/05/21,85841,1209,Sustainability Grants,64600,Grants And Contributions,"10,000.00"
Cambridge City Council,Cambridge City Housing Company Ltd,10018100,10/05/21,84943,1522,Flexible Homelessness Support Grant,63900,Miscellaneous Expenses,"1,415.30"
Cambridge City Council,Cambridge Garage Doors,10117100,24/05/21,86301,6012,City Homes Expenditure,60221,Housing Repairs - Work To Void Garages,818.00
Cambridge City Council,Cambridge Investment Partnership LLP,10145700,14/04/21,82021,300099,New Build - Fen Road,70010,CAPEX - Other Professional Fees,"9,983.86"
Cambridge City Council,Cambridge Investment Partnership LLP,10145700,15/04/21,82102,300072,New Build In-Fill - Queensmeadow,70007,CAPEX - Building Contractor/Works - Major Adaptations (HRA),"6,173.64"
Cambridge City Council,Cambridge Investment Partnership LLP,10145700,21/04/21,84110,100261,Cromwell Road Redevelopment - development loan to CIP,70018,CAPEX - Loans,"2,000,000.00"
Cambridge City Council,Cambridge Investment Partnership LLP,10145700,01/04/21,81160,300064,New Build - Akeman Street,70002,CAPEX - Building Contractor/Works,"38,117.60"
Cambridge City Council,Cambridge Investment Partnership LLP,10145700,01/04/21,81160,300064,New Build - Akeman Street,70002,CAPEX - Building Contractor/Works,"31,764.67"
Cambridge City Council,Cambridge Investment Partnership LLP,10145700,01/04/21,81160,300064,New Build - Akeman Street,70002,CAPEX - Building Contractor/Works,"61,455.23"
Cambridge City Council,Cambridge Investment Partnership LLP,10145700,01/04/21,81160,300064,New Build - Akeman Street,70002,CAPEX - Building Contractor/Works,"18,662.50"
Cambridge City Council,Cambridge Investment Partnership LLP,10145700,14/04/21,82024,300103,New Build - Borrowdale,70008,CAPEX - Architects Fees,654.00
Cambridge City Council,Cambridge Investment Partnership LLP,10145700,15/04/21,82094,300073,New Build - Wulfstan Way,70002,CAPEX - Building Contractor/Works,"13,906.65"
Cambridge City Council,Cambridge Investment Partnership LLP,10145700,15/04/21,82101,300047,New Build - Colville Road (Phase 1),70002,CAPEX - Building Contractor/Works,"5,852.58"
Cambridge City Council,Cambridge Investment Partnership LLP,10145700,21/04/21,84107,100205,Mill Road Redevelopment - Development Loan to CIP,70018,CAPEX - Loans,"985,000.00"
Cambridge City Council,Cambridge Investment Partnership LLP,10145700,15/04/21,85297,300078,New Build - Gunhild Way,70002,CAPEX - Building Contractor/Works,915.07
Cambridge City Council,Cambridge Investment Partnership LLP,10145700,01/05/21,85315,300064,New Build - Akeman Street,70002,CAPEX - Building Contractor/Works,"5,222.91"
Cambridge City Council,Cambridge Investment Partnership LLP,10145700,01/05/21,85315,300064,New Build - Akeman Street,70002,CAPEX - Building Contractor/Works,"19,777.09"
Cambridge City Council,Cambridge Investment Partnership LLP,10145700,18/05/21,85832,300103,New Build - Borrowdale,70008,CAPEX - Architects Fees,"2,834.00"
Cambridge City Council,Cambridge Investment Partnership LLP,10145700,18/05/21,85832,300103,New Build - Borrowdale,70020,CAPEX - Feasibility/investigatory work,940.12
Cambridge City Council,Cambridge Investment Partnership LLP,10145700,18/05/21,85834,300101,New Build - Aragon Close,70020,CAPEX - Feasibility/investigatory work,"1,069.56"
Cambridge City Council,Cambridge Investment Partnership LLP,10145700,18/05/21,85834,300102,New Build - Sackville Close,70020,CAPEX - Feasibility/investigatory work,"1,069.56"
Cambridge City Council,Cambridge Investment Partnership LLP,10145700,18/05/21,85830,300099,New Build - Fen Road,70010,CAPEX - Other Professional Fees,"4,406.87"
Cambridge City Council,Cambridge Investment Partnership LLP,10145700,15/04/21,85296,300079,New Build - Markham Close,70002,CAPEX - Building Contractor/Works,"31,849.42"
Cambridge City Council,Cambridge Money Advice Centre,10510000,07/05/21,84847,1057,Community Development Voluntary Support,64600,Grants And Contributions,"5,000.00"
Cambridge City Council,Cambridge Tool Hire,10021600,07/04/21,84088,9900,General Fund Balance Sheet,11600,Consumable Stores,750.00
Cambridge City Council,Cambridge United Youth & Community Trust,10170800,30/04/21,83971,1057,Community Development Voluntary Support,64600,Grants And Contributions,"4,000.00"
Cambridge City Council,Cambridgeshire County Council,10022802,10/03/21,78450,1526,Homelessness Prevention Grant,63900,Miscellaneous Expenses,"55,822.00"
Cambridge City Council,Cambridgeshire County Council,10022802,23/03/21,82563,1509,Grants to Housing Agencies,64600,Grants And Contributions,"3,543.00"
Cambridge City Council,Cambridgeshire County Council,10022802,06/05/21,84964,1883,Flood Risk Management,60011,Agency Staff,"2,894.00"
Cambridge City Council,Camcab Ltd,10023600,30/04/21,83926,1712,Taxicard Service,63900,Miscellaneous Expenses,533.00
Cambridge City Council,Carter Jonas LLP,10141403,27/04/21,83165,1506,Housing Development Agency,62400,Consultancy Fees,"2,000.00"
Cambridge City Council,Cerc - Cambridge Environmental Research Consultants Ltd,10025500,05/05/21,85345,1404,Scientific Team,64073,ICT Maintenance and Support,"1,890.00"
Cambridge City Council,Cerc - Cambridge Environmental Research Consultants Ltd,10025500,24/05/21,86508,1422,GCP - Air Quality Work,53001,Fees & Charges Income (S),"10,250.00"
Cambridge City Council,CFH Docmail Ltd,10025900,28/04/21,83861,1352,Electoral Registration,62001,Printing,"1,190.48"
Cambridge City Council,CGM Group (East Anglia) Ltd,10117300,29/04/21,83952,1876,Arboriculture,64040,Tree Works,"1,095.00"
Cambridge City Council,CGM Group (East Anglia) Ltd,10117300,18/05/21,86040,1876,Arboriculture,64040,Tree Works,"1,350.00"
Cambridge City Council,CGM Group (East Anglia) Ltd,10117300,25/05/21,86509,1876,Arboriculture,64040,Tree Works,"1,432.65"
Cambridge City Council,CGM Group (East Anglia) Ltd,10117300,25/05/21,86510,1890,2 Seas,64040,Tree Works,"1,432.65"
Cambridge City Council,Chassis Cab Ltd,10027000,30/04/21,84096,1031,Fleet Management - Operational,61703,"Purchase - Equipment, Furniture And Materials",620.00
Cambridge City Council,Chassis Cab Ltd,10027000,25/05/21,86552,1031,Fleet Management - Operational,61703,"Purchase - Equipment, Furniture And Materials",529.28
Cambridge City Council,Chesterton Bowls Club Ltd,10027600,18/05/21,85755,1102,Leisure Contract Client Costs,64600,Grants And Contributions,"5,380.00"
Cambridge City Council,Chesterton Sports Centre,10141200,28/04/21,84914,1101,Leisure Contract Management Fees,64600,Grants And Contributions,"15,000.00"
Cambridge City Council,Childcare Vouchers Limited,10028300,12/05/21,85523,5000,Salary Sacrifice Schemes Holding Account,60106,Childcare Admin Vouchers,"4,331.00"
Cambridge City Council,Chubb Fire & Security Limited,10029100,27/04/21,84284,300088,Estate Investment,70002,CAPEX - Building Contractor/Works,"1,908.00"
Cambridge City Council,CIP (Cromwell Road) LLP,10366900,01/05/21,85598,300085,New Build Cromwell Road Redevelopment (HRA),70002,CAPEX - Building Contractor/Works,"322,350.00"
Cambridge City Council,CIP (Cromwell Road) LLP,10366900,01/05/21,85598,100225,Cromwell Road Redevelopment (GF),70001,CAPEX - Acquisition of Land & Existing Building,"270,392.00"
Cambridge City Council,CIP (Mill Road Development) LLP,10474400,21/04/21,84113,100206,Mill Road Redevelopment - Equity Loan to CIP,70024,CAPEX - Other Capital Expenditure,"1,000,000.00"
Cambridge City Council,CIP (Mill Road Development) LLP,10474400,01/05/21,85599,300077,New Build - Mill Road,70002,CAPEX - Building Contractor/Works,"250,000.00"
Cambridge City Council,CIP (Mill Road Development) LLP,10474400,01/05/21,86487,300077,New Build - Mill Road,70002,CAPEX - Building Contractor/Works,"235,237.00"
Cambridge City Council,CIPFA Business Limited,10029700,12/02/21,83862,1801,Local Taxation,64800,Membership And Subscriptions,"2,377.50"
Cambridge City Council,CIPFA Business Limited,10029700,12/02/21,83862,1802,Housing Benefits,64800,Membership And Subscriptions,"2,377.50"
Cambridge City Council,CIPFA Business Limited,10029700,17/03/21,86553,8012,Procurement,64800,Membership And Subscriptions,500.00
Cambridge City Council,CIRIA,10132900,06/04/21,85309,1883,Flood Risk Management,60501,Cleaning Services,550.00
Cambridge City Council,City of Cambridge Bowls Club,10030000,18/05/21,85757,1102,Leisure Contract Client Costs,64600,Grants And Contributions,"5,380.00"
Cambridge City Council,City View Digital Media Ltd,10030200,04/05/21,84870,1862,Open Space Asset Management,62005,"Advertising, Publicity And Marketing","4,500.00"
Cambridge City Council,CN Security Ltd,10291400,19/04/21,84247,1427,COVID-19 Local Authority Compliance and Enforcement Grant,63800,Security Services (Excluding Premises),"8,562.87"
Cambridge City Council,CN Security Ltd,10291400,05/05/21,84250,1427,COVID-19 Local Authority Compliance and Enforcement Grant,63800,Security Services (Excluding Premises),"10,581.50"
Cambridge City Council,CN Security Ltd,10291400,25/05/21,86361,1427,COVID-19 Local Authority Compliance and Enforcement Grant,63800,Security Services (Excluding Premises),"12,344.15"
Cambridge City Council,CN Security Ltd,10291400,02/05/21,84966,1427,COVID-19 Local Authority Compliance and Enforcement Grant,63800,Security Services (Excluding Premises),"11,396.00"
Cambridge City Council,CN Security Ltd,10291400,26/05/21,86450,1938,Reopening of the High Street Grant,63800,Security Services (Excluding Premises),"8,090.50"
Cambridge City Council,Coleridge Bowls Club,10518400,18/05/21,85758,1102,Leisure Contract Client Costs,64600,Grants And Contributions,"5,380.00"
Cambridge City Council,Comensura Ltd,10031900,05/05/21,84280,5024,E_invoicing Suspense Accounts,69100,Expenditure In Holding Account Awaiting Allocation,"47,401.80"
Cambridge City Council,Comensura Ltd,10031900,26/05/21,86373,5024,E_invoicing Suspense Accounts,69100,Expenditure In Holding Account Awaiting Allocation,"51,298.16"
Cambridge City Council,Comensura Ltd,10031900,12/05/21,85261,5024,E_invoicing Suspense Accounts,69100,Expenditure In Holding Account Awaiting Allocation,"63,613.92"
Cambridge City Council,Comensura Ltd,10031900,19/05/21,85806,5024,E_invoicing Suspense Accounts,69100,Expenditure In Holding Account Awaiting Allocation,"47,567.42"
Cambridge City Council,Cooleraid Ltd,10033001,17/05/21,85662,6012,City Homes Expenditure,60804,Other Premises Related Costs,540.96
Cambridge City Council,Cooper Lighting Solutions UK Ltd,10746200,17/03/21,83958,5099,S106 Clay Farm (Hobson Square) 13/0912/REM Rev Contr.,60503,Grounds Maintenance,625.00
Cambridge City Council,Cooper Lighting Solutions UK Ltd,10746200,17/03/21,83958,5099,S106 Clay Farm (Hobson Square) 13/0912/REM Rev Contr.,65461,Revenue VAT: Pending Recovery,750.00
Cambridge City Council,Cornerstone (East Anglia) Ltd,10033600,04/05/21,84103,300006,Insulation / Energy Efficiency,70002,CAPEX - Building Contractor/Works,"165,227.05"
Cambridge City Council,Cornerstone (East Anglia) Ltd,10033600,04/05/21,84105,300006,Insulation / Energy Efficiency,70002,CAPEX - Building Contractor/Works,"107,008.01"
Cambridge City Council,CWRP Relocation Ltd,10504300,28/04/21,84777,5104,Housing Infrastructure Fund,64600,Grants And Contributions,"100,869.06"
Cambridge City Council,Cyclescheme Ltd,10376200,04/05/21,83927,5000,Salary Sacrifice Schemes Holding Account,60106,Childcare Admin Vouchers,733.33
Cambridge City Council,Cyclescheme Ltd,10376200,25/05/21,86302,5000,Salary Sacrifice Schemes Holding Account,60106,Childcare Admin Vouchers,750.00
Cambridge City Council,D Carman BSSR Ltd,10118100,26/03/21,84145,1001,Cambridge Crematorium,60503,Grounds Maintenance,965.00
Cambridge City Council,D Carman BSSR Ltd,10118100,26/03/21,84145,1001,Cambridge Crematorium,60503,Grounds Maintenance,"3,185.00"
Cambridge City Council,D2D Distribution Ltd,10035400,30/03/21,84448,1202,Corporate Marketing,62005,"Advertising, Publicity And Marketing","3,638.00"
Cambridge City Council,Dalrod,10824600,29/04/21,83322,6207,Repairs Day to Day,60233,Housing Repairs - Work Given To External Contractors,889.98
Cambridge City Council,Dalrod,10824600,27/04/21,83864,6207,Repairs Day to Day,60233,Housing Repairs - Work Given To External Contractors,"1,133.40"
Cambridge City Council,David Powell t/a D J Kitchens,10137900,13/04/21,83082,6208,Voids,60233,Housing Repairs - Work Given To External Contractors,"2,340.00"
Cambridge City Council,David Powell t/a D J Kitchens,10137900,25/04/21,83089,6208,Voids,60233,Housing Repairs - Work Given To External Contractors,"1,160.00"
Cambridge City Council,David Powell t/a D J Kitchens,10137900,28/03/21,84871,1762,Barnwell Drive-excl Barnwell House,60503,Grounds Maintenance,"5,480.00"
Cambridge City Council,Dennis Eagle Ltd,10036900,04/05/21,84511,1031,Fleet Management - Operational,61703,"Purchase - Equipment, Furniture And Materials",563.89
Cambridge City Council,Dennis Eagle Ltd,10036900,19/05/21,86376,1032,Garage- External Work,61703,"Purchase - Equipment, Furniture And Materials",862.42
Cambridge City Council,Dennis Eagle Ltd,10036900,20/05/21,86376,1031,Fleet Management - Operational,61703,"Purchase - Equipment, Furniture And Materials",563.89
Cambridge City Council,Dennis Eagle Ltd,10036900,17/05/21,85799,1031,Fleet Management - Operational,61703,"Purchase - Equipment, Furniture And Materials","1,092.64"
Cambridge City Council,Dennis Eagle Ltd,10036900,25/05/21,86552,1031,Fleet Management - Operational,61703,"Purchase - Equipment, Furniture And Materials",893.68
Cambridge City Council,Dennis Eagle Ltd,10036900,07/05/21,85459,1031,Fleet Management - Operational,61703,"Purchase - Equipment, Furniture And Materials",563.89
Cambridge City Council,Drainco Services Ltd,10038800,15/04/21,83326,6207,Repairs Day to Day,60233,Housing Repairs - Work Given To External Contractors,840.00
Cambridge City Council,Drainco Services Ltd,10038800,21/04/21,85289,6207,Repairs Day to Day,60233,Housing Repairs - Work Given To External Contractors,615.00
Cambridge City Council,DSB Engineering Supplies,10039000,22/04/21,84301,1031,Fleet Management - Operational,61500,Consumables,584.42
Cambridge City Council,DSB Engineering Supplies,10039000,06/05/21,86608,1031,Fleet Management - Operational,61500,Consumables,512.47
Cambridge City Council,DTZ,10039100,16/04/21,85266,1651,Grand Arcade Car Park,60303,Electricity,"35,806.78"
Cambridge City Council,Eastfield Guest House Ltd,10262600,19/04/21,83867,1502,Homelessness Costs,64401,B&B Accommodation,"1,065.00"
Cambridge City Council,Eastfield Guest House Ltd,10262600,26/04/21,83327,1502,Homelessness Costs,64401,B&B Accommodation,750.00
Cambridge City Council,Eastfield Guest House Ltd,10262600,17/05/21,85699,1502,Homelessness Costs,64401,B&B Accommodation,975.00
Cambridge City Council,Eddie Barcan t/a Splendid Events,10215402,18/05/21,85731,780002,,62400,Consultancy Fees,"1,250.00"
Cambridge City Council,Edmundson Electrical Ltd,10040600,17/05/21,85969,9900,General Fund Balance Sheet,11600,Consumable Stores,"1,211.70"
Cambridge City Council,Edmundson Electrical Ltd,10040600,17/05/21,85969,9900,General Fund Balance Sheet,11600,Consumable Stores,723.12
Cambridge City Council,Edmundson Electrical Ltd,10040600,30/04/21,84989,9900,General Fund Balance Sheet,11600,Consumable Stores,500.73
Cambridge City Council,Edmundson Electrical Ltd,10040600,12/05/21,86372,9900,General Fund Balance Sheet,11600,Consumable Stores,500.73
Cambridge City Council,Edmundson Electrical Ltd,10040600,25/05/21,86550,9900,General Fund Balance Sheet,11600,Consumable Stores,560.72
Cambridge City Council,Elior UK PLC,10040900,30/04/21,84802,6123,Ditchburn Place,61902,Catering Services,"17,227.20"
Cambridge City Council,EMAP Publishing Ltd,10041200,29/04/21,84835,1200,Corporate Management,64800,Membership And Subscriptions,"1,476.02"
Cambridge City Council,Emma Smith,10254500,02/04/21,85783,100234,S106 Public art grant - Faith and Hope,70015,CAPEX - Grants Paid,"2,000.00"
Cambridge City Council,Emma Smith,10254500,18/05/21,85785,100234,S106 Public art grant - Faith and Hope,70015,CAPEX - Grants Paid,"2,947.61"
Cambridge City Council,EMS Lifts Ltd,10041800,28/02/21,84758,6205,Citywide Schemes,60227,Housing Repairs - Lift Maintenance (Disabled),"1,002.10"
Cambridge City Council,EMS Lifts Ltd,10041800,30/04/21,84765,6207,Repairs Day to Day,60234,Housing Repairs - Servicing Specialist Disabled Equipment,"1,688.00"
Cambridge City Council,EMS Lifts Ltd,10041800,30/04/21,84760,6205,Citywide Schemes,60227,Housing Repairs - Lift Maintenance (Disabled),604.20
Cambridge City Council,Enchanted Cinema Ltd,10311200,24/05/21,86288,9900,General Fund Balance Sheet,20118,Receipts In Advance - Other Entities And Individuals,"4,421.00"
Cambridge City Council,Ermine Construction Services Ltd,10462100,30/04/21,85469,100308,S106 Chesterton Rec pavilion,70001,CAPEX - Acquisition of Land & Existing Building,"29,452.44"
Cambridge City Council,Ernest Doe & Sons Ltd,10043400,20/05/21,86006,1850,Grounds Maintenance & Street Cleaning,61703,"Purchase - Equipment, Furniture And Materials",920.00
Cambridge City Council,Ernest Doe & Sons Ltd,10043400,20/05/21,86006,1850,Grounds Maintenance & Street Cleaning,61703,"Purchase - Equipment, Furniture And Materials",617.50
Cambridge City Council,Ernest Doe & Sons Ltd,10043400,20/05/21,86006,1850,Grounds Maintenance & Street Cleaning,61703,"Purchase - Equipment, Furniture And Materials","3,105.00"
Cambridge City Council,Ernst & Young LLP,10043500,14/04/21,84407,1453,Finance General Recharges,62100,Audit Fees,"10,006.00"
Cambridge City Council,Ernst & Young LLP,10043500,14/04/21,84407,1453,Finance General Recharges,62100,Audit Fees,"10,006.00"
Cambridge City Council,Ernst & Young LLP,10043500,14/04/21,84407,1453,Finance General Recharges,62100,Audit Fees,"10,006.00"
Cambridge City Council,Ernst & Young LLP,10043500,20/04/21,84408,1453,Finance General Recharges,62100,Audit Fees,"10,006.00"
Cambridge City Council,ESPO,10043700,27/04/21,83895,100324,City centre recovery - Combined Authority grant funding,70002,CAPEX - Building Contractor/Works,"1,062.00"
Cambridge City Council,ESPO,10043700,28/04/21,84961,5024,E_invoicing Suspense Accounts,69100,Expenditure In Holding Account Awaiting Allocation,"28,733.45"
Cambridge City Council,Evolve Guards Ltd,10506900,02/05/21,83928,1524,COVID-19 Rough Sleepers Services,64401,B&B Accommodation,"12,390.00"
Cambridge City Council,Evolve Guards Ltd,10506900,02/05/21,83929,1524,COVID-19 Rough Sleepers Services,64401,B&B Accommodation,870.00
Cambridge City Council,Evolve Guards Ltd,10506900,09/05/21,84878,1524,COVID-19 Rough Sleepers Services,64401,B&B Accommodation,783.00
Cambridge City Council,Evolve Guards Ltd,10506900,16/05/21,85670,1524,COVID-19 Rough Sleepers Services,64401,B&B Accommodation,783.00
Cambridge City Council,Evolve Guards Ltd,10506900,16/05/21,85545,1524,COVID-19 Rough Sleepers Services,64401,B&B Accommodation,"10,920.00"
Cambridge City Council,Evolve Guards Ltd,10506900,09/05/21,84877,1524,COVID-19 Rough Sleepers Services,64401,B&B Accommodation,"12,480.00"
Cambridge City Council,Evolve Guards Ltd,10506900,23/05/21,86319,1524,COVID-19 Rough Sleepers Services,64401,B&B Accommodation,783.00
Cambridge City Council,Evolve Guards Ltd,10506900,23/05/21,86318,1524,COVID-19 Rough Sleepers Services,64401,B&B Accommodation,"10,920.00"
Cambridge City Council,Facultatieve Technologies Ltd,10118300,21/05/21,86061,1001,Cambridge Crematorium,60202,Cyclical/Planned Maintenance - Fixed Plant,"3,531.11"
Cambridge City Council,Faithfull Floor Coverings,10266500,07/05/21,85448,9900,General Fund Balance Sheet,11600,Consumable Stores,"2,268.00"
Cambridge City Council,FCE Ltd,10045500,26/05/21,86388,1752,Dales Brewery,60266,Rechargeable Repairs,650.00
Cambridge City Council,FCE Ltd,10045500,26/05/21,86388,1759,Gwydir St Workshops/Offices,60266,Rechargeable Repairs,975.00
Cambridge City Council,Feilden + Mawson LLP,10760600,30/04/21,84476,6008,Housing Transformation,62400,Consultancy Fees,"7,291.67"
Cambridge City Council,Fenners Chambers,10045600,30/04/21,84452,1408,Food and Occupational Safety,63200,Legal Fees,"1,750.00"
Cambridge City Council,Fenners Chambers,10045600,13/05/21,85534,1050,Community Safety,62400,Consultancy Fees,750.00
Cambridge City Council,Fenners Chambers,10045600,17/05/21,86332,1408,Food and Occupational Safety,63200,Legal Fees,"1,750.00"
Cambridge City Council,Five Rivers Environmental Contracting Ltd,10045800,19/05/21,86514,1883,Flood Risk Management,60501,Cleaning Services,"3,613.98"
Cambridge City Council,Foster Property Maintenance Ltd,10046700,05/05/21,84456,300038,Wall Structure,70002,CAPEX - Building Contractor/Works,"68,238.19"
Cambridge City Council,Foster Property Maintenance Ltd,10046700,13/05/21,85355,5024,E_invoicing Suspense Accounts,69100,Expenditure In Holding Account Awaiting Allocation,"537,984.93"
Cambridge City Council,Foster Property Maintenance Ltd,10046700,08/04/21,86291,300038,Wall Structure,70002,CAPEX - Building Contractor/Works,"138,278.18"
Cambridge City Council,Freeths LLP,10128501,30/03/21,86060,300089,Clerk Maxwell Road,70010,CAPEX - Other Professional Fees,"2,750.86"
Cambridge City Council,Freeths LLP,10128501,30/03/21,86484,300098,New Build - Histon Road,70010,CAPEX - Other Professional Fees,"2,070.50"
Cambridge City Council,Freeths LLP,10128501,11/05/21,85894,6007,Departmental Overheads-Client,63300,Professional Services - General,"4,514.63"
Cambridge City Council,Friends of Midsummer Common,10182100,05/05/21,84420,1057,Community Development Voluntary Support,64600,Grants And Contributions,900.00
Cambridge City Council,"Friends, Families and Travellers",10290700,21/04/21,84518,1203,Corporate Policy,60115,Staff Development And Training,840.00
Cambridge City Council,Frontline Fabrication & Ironwork Co Ltd,10128000,27/04/21,84489,1868,Play Maintenance,61702,"Maintenance - Equipment, Furniture And Materials","4,500.00"
Cambridge City Council,Frontline Fabrication & Ironwork Co Ltd,10128000,27/04/21,84492,1870,Public Toilets,60501,Cleaning Services,"4,950.00"
Cambridge City Council,Frontline Fabrication & Ironwork Co Ltd,10128000,03/05/21,84493,1866,Open Space Asset Maintenance,61703,"Purchase - Equipment, Furniture And Materials","3,500.00"
Cambridge City Council,Frontline Fabrication & Ironwork Co Ltd,10128000,03/05/21,84494,1871,Allotments,60201,Cyclical/Planned Maintenance - Building,"3,550.00"
Cambridge City Council,Futurebright Solutions Ltd,10761500,26/04/21,83947,1862,Open Space Asset Management,62400,Consultancy Fees,"2,000.00"
Cambridge City Council,Gaskin Brothers Ltd,10118700,29/04/21,83959,1871,Allotments,60201,Cyclical/Planned Maintenance - Building,"1,990.00"
Cambridge City Council,Gaskin Brothers Ltd,10118700,07/05/21,84784,1100,Sport & Recreation Administration,60201,Cyclical/Planned Maintenance - Building,500.00
Cambridge City Council,Gaskin Brothers Ltd,10118700,07/05/21,84785,1100,Sport & Recreation Administration,60201,Cyclical/Planned Maintenance - Building,825.00
Cambridge City Council,Gaskin Brothers Ltd,10118700,07/05/21,84786,1100,Sport & Recreation Administration,60201,Cyclical/Planned Maintenance - Building,"1,850.00"
Cambridge City Council,Gaskin Brothers Ltd,10118700,26/05/21,86454,1100,Sport & Recreation Administration,60201,Cyclical/Planned Maintenance - Building,625.47
Cambridge City Council,Gaskin Brothers Ltd,10118700,07/05/21,85602,1868,Play Maintenance,61702,"Maintenance - Equipment, Furniture And Materials","1,495.00"
Cambridge City Council,Gaskin Brothers Ltd,10118700,26/05/21,86444,1102,Leisure Contract Client Costs,60201,Cyclical/Planned Maintenance - Building,900.00
Cambridge City Council,Gaskin Brothers Ltd,10118700,26/05/21,86453,1100,Sport & Recreation Administration,60201,Cyclical/Planned Maintenance - Building,610.32
Cambridge City Council,Gaskin Brothers Ltd,10118700,26/05/21,86517,1868,Play Maintenance,61702,"Maintenance - Equipment, Furniture And Materials",685.00
Cambridge City Council,Gaskin Brothers Ltd,10118700,26/05/21,86516,1868,Play Maintenance,61702,"Maintenance - Equipment, Furniture And Materials",600.00
Cambridge City Council,Gaskin Brothers Ltd,10118700,25/05/21,86362,1935,Markets,60207,Health And Safety Supplies And Services,"1,462.50"
Cambridge City Council,Gaskin Brothers Ltd,10118700,26/05/21,86515,1866,Open Space Asset Maintenance,61702,"Maintenance - Equipment, Furniture And Materials","1,525.00"
Cambridge City Council,Gaskin Brothers Ltd,10118700,26/05/21,86455,1100,Sport & Recreation Administration,60201,Cyclical/Planned Maintenance - Building,615.75
Cambridge City Council,Gatenbysanderson Limited,10048500,26/04/21,83168,8012,Procurement,60011,Agency Staff,"2,320.00"
Cambridge City Council,Gatenbysanderson Limited,10048500,29/04/21,83824,8012,Procurement,60011,Agency Staff,"5,943.00"
Cambridge City Council,Gatenbysanderson Limited,10048500,30/04/21,84008,8012,Procurement,60011,Agency Staff,"1,856.00"
Cambridge City Council,Gawn Associates Ltd,10048600,30/04/21,84881,300038,Wall Structure,70009,CAPEX - Engineers Fees,"1,145.00"
Cambridge City Council,GB Sport & Leisure UK Ltd,10048700,27/05/21,86486,1100,Sport & Recreation Administration,60201,Cyclical/Planned Maintenance - Building,"2,332.33"
Cambridge City Council,Glo-Bell London Ltd,10119000,30/04/21,83944,1300,Customer Access Strategy - Customer Service Centre,60207,Health And Safety Supplies And Services,"1,240.00"
Cambridge City Council,Glo-Bell London Ltd,10119000,27/05/21,86607,1071,Clay Farm Community Centre,60271,Security Of Premises,"1,650.24"
Cambridge City Council,Goshen Multi-Services Ltd,10793300,02/05/21,84401,5024,E_invoicing Suspense Accounts,69100,Expenditure In Holding Account Awaiting Allocation,"20,120.79"
Cambridge City Council,Goshen Multi-Services Ltd,10793300,02/05/21,84401,5024,E_invoicing Suspense Accounts,69100,Expenditure In Holding Account Awaiting Allocation,"4,024.16"
Cambridge City Council,Goshen Multi-Services Ltd,10793300,03/05/21,85292,1870,Public Toilets,60502,Cleaning Contract,"23,053.11"
Cambridge City Council,Goshen Multi-Services Ltd,10793300,18/05/21,85324,1353,Elections,63900,Miscellaneous Expenses,826.50
Cambridge City Council,Greenham,10051700,14/05/21,85794,9900,General Fund Balance Sheet,11600,Consumable Stores,873.46
Cambridge City Council,Greenwich Leisure Limited (GLL),10051900,18/05/21,85827,1101,Leisure Contract Management Fees,61800,Contract Charges,"41,161.80"
Cambridge City Council,Hayward Moon,10846500,17/05/21,86614,300042,Acquisitions & Disposals,70001,CAPEX - Acquisition of Land & Existing Building,"200,000.00"
Cambridge City Council,Heales Health Services Ltd,10054100,30/04/21,84266,8001,Human Resources Operations (Staff-General),60111,Occupational Health,"1,576.00"
Cambridge City Council,Hill Partnerships Limited,10214300,12/05/21,85869,300087,New Build Colville Road (Phase 2),70002,CAPEX - Building Contractor/Works,"308,167.61"
Cambridge City Council,Hill Partnerships Limited,10214300,12/05/21,85773,300091,Campkin Road Phase 2,70002,CAPEX - Building Contractor/Works,"647,064.12"
Cambridge City Council,HM Revenue & Customs,10144208,30/04/21,83878,9900,General Fund Balance Sheet,21004,Payroll Control Account,"643,589.42"
Cambridge City Council,HM Revenue & Customs,10144208,13/05/21,85353,9900,General Fund Balance Sheet,21003,Construction Industry Tax (Cis),"18,229.11"
Cambridge City Council,HM Revenue & Customs (SDLT),10144205,17/05/21,85581,300042,Acquisitions & Disposals,70001,CAPEX - Acquisition of Land & Existing Building,"8,100.00"
Cambridge City Council,HM Revenue & Customs (SDLT),10144205,24/05/21,86617,300042,Acquisitions & Disposals,70001,CAPEX - Acquisition of Land & Existing Building,"6,000.00"
Cambridge City Council,Home Group Ltd,10055400,08/04/21,82042,1502,Homelessness Costs,60400,Rents Payable,"34,500.00"
Cambridge City Council,Homeless Link,10055600,28/04/21,83798,1509,Grants to Housing Agencies,69150,Other Services,"12,493.00"
Cambridge City Council,Huntingdonshire District Council,10056901,30/03/21,81319,1100,Sport & Recreation Administration,64077,Telephone And Mobile Phone Costs,987.00
Cambridge City Council,Huntingdonshire District Council,10056901,06/05/21,84393,8021,IT Contract Costs,64060,Shared Service Contribution,"56,405.00"
Cambridge City Council,Huntingdonshire District Council,10056901,06/05/21,84766,1033,CCTV,64060,Shared Service Contribution,"121,047.05"
Cambridge City Council,Huntingdonshire District Council,10056901,12/05/21,85558,6214,Estate Investment Scheme,60235,Housing Repairs - Other Premises Related Costs,"6,355.00"
Cambridge City Council,Idox Software Limited,10057600,24/05/21,86322,1353,Elections,64073,ICT Maintenance and Support,807.00
Cambridge City Council,Idox Software Limited,10057600,24/05/21,86322,5064,Elections-County Council,64073,ICT Maintenance and Support,968.40
Cambridge City Council,Idox Software Limited,10057600,24/05/21,86322,5069,Police & Crime Commissioner Election,64073,ICT Maintenance and Support,968.40
Cambridge City Council,Idox Software Limited,10057600,24/05/21,86322,5079,Combined Authority Mayoral Elections,64073,ICT Maintenance and Support,968.40
Cambridge City Council,Institute of Cemetery & Crematorium Management,10058800,24/05/21,86518,1003,Bereavement Services Central Costs,64300,Conference Expenses,"2,150.00"
Cambridge City Council,Institute of Licensing (Events) Ltd,10058901,18/05/21,86335,1419,Environmental Health Operational Support,64300,Conference Expenses,950.00
Cambridge City Council,Institute of Licensing (Events) Ltd,10058901,25/05/21,86583,1419,Environmental Health Operational Support,64300,Conference Expenses,950.00
Cambridge City Council,Intentcity,10821200,30/04/21,84415,1263,Cambridge Live - Central,61702,"Maintenance - Equipment, Furniture And Materials",741.67
Cambridge City Council,It Takes a City (Cambridge),10452200,07/05/21,84892,1524,COVID-19 Rough Sleepers Services,64401,B&B Accommodation,"6,000.00"
Cambridge City Council,It Takes a City (Cambridge),10452200,17/05/21,85824,1516,CLG Supplementary Homelessness Grants,64600,Grants And Contributions,"3,000.00"
Cambridge City Council,Jimmys Cambridge,10061600,05/05/21,84421,1509,Grants to Housing Agencies,64600,Grants And Contributions,"13,750.00"
Cambridge City Council,Jimmys Cambridge,10061600,05/05/21,84421,1509,Grants to Housing Agencies,64600,Grants And Contributions,"2,500.00"
Cambridge City Council,Jimmys Cambridge,10061600,05/05/21,84421,1509,Grants to Housing Agencies,64600,Grants And Contributions,"1,125.00"
Cambridge City Council,Jones Lang LaSalle Ltd,10364800,29/04/21,86172,1654,Grafton Centre East Car Park,60600,Premises Insurance Premiums,"4,426.28"
Cambridge City Council,Junction CDC Ltd,10062700,30/04/21,83896,1057,Community Development Voluntary Support,64600,Grants And Contributions,"13,750.00"
Cambridge City Council,Kestrel Fencing,10119900,24/05/21,86336,6110,City Homes Estate Management,60503,Grounds Maintenance,"1,242.75"
Cambridge City Council,Koala & Tree Ltd,10521300,10/05/21,84882,1502,Homelessness Costs,63900,Miscellaneous Expenses,"1,000.00"
Cambridge City Council,Kompan Ltd,10120100,10/05/21,85672,1868,Play Maintenance,61703,"Purchase - Equipment, Furniture And Materials",583.86
Cambridge City Council,LABC East Anglia,10190900,30/04/21,83945,1701,3C Building Control,64800,Membership And Subscriptions,855.00
Cambridge City Council,Level Water,10333400,30/04/21,83899,1057,Community Development Voluntary Support,64600,Grants And Contributions,"3,500.00"
Cambridge City Council,LGSS - Cambridgeshire Pension Fund,10022801,30/04/21,83875,9900,General Fund Balance Sheet,21004,Payroll Control Account,"489,218.06"
Cambridge City Council,M Watson Construction Ltd,10122200,24/05/21,86292,300000,Disabled Adaptions,70002,CAPEX - Building Contractor/Works,"3,191.42"
Cambridge City Council,M Watson Construction Ltd,10122200,24/05/21,86293,300000,Disabled Adaptions,70002,CAPEX - Building Contractor/Works,957.30
Cambridge City Council,Mace Ltd,10290900,30/04/21,84074,1779,Market Square Project,62400,Consultancy Fees,"10,415.00"
Cambridge City Council,Mace Ltd,10290900,30/04/21,84074,1779,Market Square Project,62400,Consultancy Fees,"9,170.00"
Cambridge City Council,Mace Ltd,10290900,31/05/21,86072,300038,Wall Structure,70010,CAPEX - Other Professional Fees,"7,421.00"
Cambridge City Council,Mace Ltd,10290900,31/05/21,86071,300038,Wall Structure,70010,CAPEX - Other Professional Fees,"6,843.00"
Cambridge City Council,Magnum Tyres Ltd,10190000,10/04/21,85799,1032,Garage- External Work,61703,"Purchase - Equipment, Furniture And Materials",574.00
Cambridge City Council,Mallard Consultancy Ltd,10136400,25/05/21,86397,1858,Public Realm Enforcement,61703,"Purchase - Equipment, Furniture And Materials",990.00
Cambridge City Council,Me Learning Ltd,10841800,21/05/21,86295,8003,Human Resources - Organisational Development,64300,Conference Expenses,"8,950.00"
Cambridge City Council,Mears Ltd,10121400,13/04/21,81907,6211,Heat and Hot Water Servicing,60225,Housing Repairs - Gas Maintenance Contract,"78,672.56"
Cambridge City Council,Mercer Tree Services Ltd,10071200,01/05/21,84391,1876,Arboriculture,64040,Tree Works,"7,500.00"
Cambridge City Council,Mercer Tree Services Ltd,10071200,01/05/21,84391,1885,Reverse Agency (formerly Unclassified Routine),64040,Tree Works,"7,500.00"
Cambridge City Council,Mercer Tree Services Ltd,10071200,20/05/21,86048,1876,Arboriculture,64040,Tree Works,"1,407.50"
Cambridge City Council,Mercer Tree Services Ltd,10071200,20/05/21,85932,1890,2 Seas,64040,Tree Works,895.00
Cambridge City Council,Mill Road Winter Fair,10072000,27/05/21,86476,1057,Community Development Voluntary Support,64600,Grants And Contributions,"2,500.00"
Cambridge City Council,Mishcon de Reya LLP,10343200,30/04/21,84417,8006,Accountancy and Support Services,62400,Consultancy Fees,"1,700.00"
Cambridge City Council,Morgan Lambert Ltd,10620300,30/04/21,84519,6211,Heat and Hot Water Servicing,60225,Housing Repairs - Gas Maintenance Contract,"1,182.60"
Cambridge City Council,Mowell & Co Ltd,10121800,20/05/21,86049,100022,[Completed] Clay Farm Community Centre -Phase 2,70002,CAPEX - Building Contractor/Works,"2,650.00"
Cambridge City Council,Mr B L Hargrove t/a Bear Architecture,10263200,09/04/21,84218,300088,Estate Investment,70008,CAPEX - Architects Fees,"4,475.00"
Cambridge City Council,Nationwide Training & Safety Services Ltd,10251000,18/05/21,86523,6201,Building Services - Indirect,60115,Staff Development And Training,"1,050.00"
Cambridge City Council,Nemco Utilities Ltd,10075300,24/05/21,86524,1263,Cambridge Live - Central,60115,Staff Development And Training,625.00
Cambridge City Council,Neopost Ltd,10137601,10/05/21,84859,5063,Postal Franking,64100,Postage And Courier Services,"10,000.00"
Cambridge City Council,New International Encounter,10161400,30/04/21,83900,1057,Community Development Voluntary Support,64600,Grants And Contributions,"2,000.00"
Cambridge City Council,Newnham Bowls Club,10075700,18/05/21,85759,1102,Leisure Contract Client Costs,64600,Grants And Contributions,"5,380.00"
Cambridge City Council,Norse Commercial Services Ltd t/a N-Able,10130000,30/04/21,84827,300000,Disabled Adaptions,70007,CAPEX - Building Contractor/Works - Major Adaptations (HRA),"4,407.00"
Cambridge City Council,Norse Commercial Services Ltd t/a N-Able,10130000,19/05/21,86415,200001,Mandatory Disabled Facilities Grants (Tenants),70015,CAPEX - Grants Paid,"4,150.00"
Cambridge City Council,North Cambridge Community Partnership,10131301,13/05/21,85472,1057,Community Development Voluntary Support,64600,Grants And Contributions,"8,500.00"
Cambridge City Council,Northgate Public Services (UK) Ltd,,20/05/21,86051,5107,Test & Trace Payment Scheme,64073,ICT Maintenance and Support,900.00
Cambridge City Council,Northgate Public Services (UK) Ltd,,19/05/21,86050,1802,Housing Benefits,64071,ICT Software,650.00
Cambridge City Council,Northgate Vehicle Hire Ltd,10076800,16/04/21,82375,1052,Children & Young People's Service,60909,Vehicle Hire,594.16
Cambridge City Council,Northgate Vehicle Hire Ltd,10076800,14/05/21,85712,1052,Children & Young People's Service,60909,Vehicle Hire,594.16
Cambridge City Council,Nurture Landscapes Ltd,10132000,30/04/21,83965,1768,Other Industrial Properties,60503,Grounds Maintenance,856.65
Cambridge City Council,Nurture Landscapes Ltd,10132000,30/04/21,84009,1774,"Cambridge Road Retail Park, Haverhill",60503,Grounds Maintenance,851.89
Cambridge City Council,OASIS - Offsite Storage & Integrated Services UK Ltd,10155800,30/04/21,84947,8023,Business Support - Centralised Overheads,63700,Removal Services,962.91
Cambridge City Council,Office Watercoolers Ltd,10195900,28/02/21,84832,1071,Clay Farm Community Centre,61701,Lease - Equipment Furniture And Materials,"1,032.00"
Cambridge City Council,Oggi Tomic Films Ltd,10839100,10/05/21,85313,1862,Open Space Asset Management,62400,Consultancy Fees,"1,500.00"
Cambridge City Council,Old Chesterton Allotment Society Ltd,10285301,30/04/21,85507,1871,Allotments,60201,Cyclical/Planned Maintenance - Building,658.43
Cambridge City Council,Outspoken Delivery LLP,10078900,30/04/21,83953,5064,Elections-County Council,64100,Postage And Courier Services,511.20
Cambridge City Council,Outspoken Delivery LLP,10078900,30/04/21,83953,5069,Police & Crime Commissioner Election,64100,Postage And Courier Services,511.20
Cambridge City Council,Outspoken Delivery LLP,10078900,30/04/21,83953,5079,Combined Authority Mayoral Elections,64100,Postage And Courier Services,511.20
Cambridge City Council,Outspoken Delivery LLP,10078900,30/04/21,86345,1203,Corporate Policy,62005,"Advertising, Publicity And Marketing",900.00
Cambridge City Council,Panoramic Associates Ltd,10619400,12/05/21,85314,8012,Procurement,60011,Agency Staff,741.00
Cambridge City Council,Panoramic Associates Ltd,10619400,20/04/21,85316,8012,Procurement,60011,Agency Staff,741.00
Cambridge City Council,Panoramic Associates Ltd,10619400,05/05/21,86414,8012,Procurement,60011,Agency Staff,741.00
Cambridge City Council,Panoramic Associates Ltd,10619400,19/05/21,85874,8012,Procurement,60011,Agency Staff,741.00
Cambridge City Council,Panther Taxis Ltd,10079600,30/04/21,85603,1712,Taxicard Service,63900,Miscellaneous Expenses,"2,154.60"
Cambridge City Council,PEL UK Rentals Ltd,10761700,27/04/21,85594,1862,Open Space Asset Management,61200,Refuse Containers/Litter Bins,"5,370.00"
Cambridge City Council,Pembroke College,10154200,19/05/21,86111,9900,General Fund Balance Sheet,20118,Receipts In Advance - Other Entities And Individuals,"1,105.00"
Cambridge City Council,Penna PLC,10080400,30/04/21,85347,1303,Corporate Business Processing,62005,"Advertising, Publicity And Marketing",536.00
Cambridge City Council,Penna PLC,10080400,14/04/21,85317,1419,Environmental Health Operational Support,60116,Staff Recruitment Costs,857.00
Cambridge City Council,Penna PLC,10080400,12/05/21,85838,1303,Corporate Business Processing,62005,"Advertising, Publicity And Marketing",693.92
Cambridge City Council,Penna PLC,10080400,26/05/21,86525,1303,Corporate Business Processing,62005,"Advertising, Publicity And Marketing",693.92
Cambridge City Council,Penna PLC,10080400,25/03/21,86603,1303,Corporate Business Processing,62005,"Advertising, Publicity And Marketing",588.37
Cambridge City Council,Penna PLC,10080400,19/05/21,85996,1206,Strategic Director#1,62005,"Advertising, Publicity And Marketing","4,835.40"
Cambridge City Council,Pennon Water Services Ltd t/a Source for Business,10080500,04/05/21,86160,5024,E_invoicing Suspense Accounts,69100,Expenditure In Holding Account Awaiting Allocation,"2,846.55"
Cambridge City Council,People Asset Management Ltd,10145100,30/04/21,84276,8001,Human Resources Operations (Staff-General),60111,Occupational Health,680.00
Cambridge City Council,People Asset Management Ltd,10145100,30/04/21,84276,8001,Human Resources Operations (Staff-General),60111,Occupational Health,"1,455.00"
Cambridge City Council,Petersfield Area Community Trust PACT,10197000,26/05/21,86385,1057,Community Development Voluntary Support,64600,Grants And Contributions,"1,096.00"
Cambridge City Council,Petersfield Mutual Aid Group c/o Romsey Mill Trust Ltd,10090204,21/05/21,85962,1077,Community Resilience,64600,Grants And Contributions,500.00
Cambridge City Council,PHS Group Ltd,10082000,27/04/21,86324,1001,Cambridge Crematorium,60501,Cleaning Services,633.65
Cambridge City Council,PortalPlanQuest Ltd,10239400,14/05/21,85563,1702,City Development,54102,Planning Applications Income - Minor,924.00
Cambridge City Council,Potter Raper Partnership,10294300,30/04/21,83897,300089,Clerk Maxwell Road,70010,CAPEX - Other Professional Fees,"3,908.00"
Cambridge City Council,Potter Raper Partnership,10294300,30/04/21,84822,1506,Housing Development Agency,62400,Consultancy Fees,625.00
Cambridge City Council,Potter Raper Partnership,10294300,30/04/21,85348,300097,New Build - Colville Road III,70010,CAPEX - Other Professional Fees,"47,328.00"
Cambridge City Council,Potter Raper Partnership,10294300,30/04/21,85895,300087,New Build Colville Road (Phase 2),70010,CAPEX - Other Professional Fees,"2,935.28"
Cambridge City Council,Potter Raper Partnership,10294300,30/04/21,85612,300087,New Build Colville Road (Phase 2),70010,CAPEX - Other Professional Fees,"2,935.28"
Cambridge City Council,Price Bailey,10321900,31/03/21,84473,1263,Cambridge Live - Central,62400,Consultancy Fees,"1,250.00"
Cambridge City Council,Price Bailey,10321900,31/03/21,84474,1263,Cambridge Live - Central,62400,Consultancy Fees,950.00
Cambridge City Council,Print.UK.Com,10083800,30/04/21,85766,1353,Elections,62001,Printing,"3,316.10"
Cambridge City Council,Print.UK.Com,10083800,30/04/21,85766,5064,Elections-County Council,62001,Printing,"3,955.32"
Cambridge City Council,Print.UK.Com,10083800,30/04/21,85766,5069,Police & Crime Commissioner Election,62001,Printing,"3,811.32"
Cambridge City Council,Print.UK.Com,10083800,30/04/21,85766,5079,Combined Authority Mayoral Elections,62001,Printing,"3,811.32"
Cambridge City Council,Print.UK.Com,10083800,30/04/21,85766,1353,Elections,62001,Printing,"2,941.74"
Cambridge City Council,Print.UK.Com,10083800,30/04/21,85572,1353,Elections,62001,Printing,582.92
Cambridge City Council,Print.UK.Com,10083800,30/04/21,85572,5064,Elections-County Council,62001,Printing,699.50
Cambridge City Council,Print.UK.Com,10083800,30/04/21,85572,5079,Combined Authority Mayoral Elections,62001,Printing,699.50
Cambridge City Council,Print.UK.Com,10083800,30/04/21,85573,1353,Elections,62001,Printing,890.75
Cambridge City Council,Print.UK.Com,10083800,30/04/21,85573,5064,Elections-County Council,62001,Printing,761.46
Cambridge City Council,Print.UK.Com,10083800,30/04/21,85573,5069,Police & Crime Commissioner Election,62001,Printing,761.46
Cambridge City Council,Print.UK.Com,10083800,30/04/21,85573,5079,Combined Authority Mayoral Elections,62001,Printing,761.46
Cambridge City Council,Priority Hire Ltd,10084100,15/05/21,85571,1850,Grounds Maintenance & Street Cleaning,60909,Vehicle Hire,570.00
Cambridge City Council,Proactive Personnel Ltd,10367100,28/04/21,83904,1031,Fleet Management - Operational,60011,Agency Staff,695.50
Cambridge City Council,Proactive Personnel Ltd,10367100,19/05/21,86085,1031,Fleet Management - Operational,60011,Agency Staff,702.00
Cambridge City Council,Proactive Personnel Ltd,10367100,30/04/21,84838,1031,Fleet Management - Operational,60011,Agency Staff,689.00
Cambridge City Council,Pro-Flat Specialist Services Ltd,10123200,30/04/21,84114,6207,Repairs Day to Day,60233,Housing Repairs - Work Given To External Contractors,725.00
Cambridge City Council,Pro-lec Electrical Solutions Ltd t/a Prolec Electrical,10778000,07/05/21,85318,1760,Robert Davies Court,60201,Cyclical/Planned Maintenance - Building,522.52
Cambridge City Council,Prolectric Services Ltd,10445000,12/05/21,85359,300088,Estate Investment,70002,CAPEX - Building Contractor/Works,"1,812.00"
Cambridge City Council,Prompt Glazing Ltd,10283900,26/04/21,84100,6208,Voids,60233,Housing Repairs - Work Given To External Contractors,929.89
Cambridge City Council,Prompt Glazing Ltd,10283900,07/05/21,84851,300012,External Doors,70003,CAPEX - Building Contractor/Works - Voids & Emergencies,712.50
Cambridge City Council,Prompt Glazing Ltd,10283900,07/05/21,84887,300012,External Doors,70003,CAPEX - Building Contractor/Works - Voids & Emergencies,712.50
Cambridge City Council,Prompt Glazing Ltd,10283900,15/04/21,84904,300012,External Doors,70003,CAPEX - Building Contractor/Works - Voids & Emergencies,769.17
Cambridge City Council,Prompt Glazing Ltd,10283900,07/05/21,84849,300012,External Doors,70003,CAPEX - Building Contractor/Works - Voids & Emergencies,769.17
Cambridge City Council,Prompt Glazing Ltd,10283900,07/05/21,84853,300012,External Doors,70003,CAPEX - Building Contractor/Works - Voids & Emergencies,712.50
Cambridge City Council,Prompt Glazing Ltd,10283900,13/05/21,85474,300012,External Doors,70003,CAPEX - Building Contractor/Works - Voids & Emergencies,"1,399.89"
Cambridge City Council,Prompt Glazing Ltd,10283900,07/05/21,84850,300012,External Doors,70003,CAPEX - Building Contractor/Works - Voids & Emergencies,769.17
Cambridge City Council,Prompt Glazing Ltd,10283900,07/05/21,84850,300012,External Doors,70003,CAPEX - Building Contractor/Works - Voids & Emergencies,712.50
Cambridge City Council,Prompt Glazing Ltd,10283900,14/05/21,85585,300012,External Doors,70003,CAPEX - Building Contractor/Works - Voids & Emergencies,888.33
Cambridge City Council,Prompt Glazing Ltd,10283900,24/05/21,86344,300012,External Doors,70003,CAPEX - Building Contractor/Works - Voids & Emergencies,"1,399.89"
Cambridge City Council,Prompt Glazing Ltd,10283900,18/05/21,85820,300012,External Doors,70003,CAPEX - Building Contractor/Works - Voids & Emergencies,712.50
Cambridge City Council,Pro-Serv (Cambridge) Ltd,10622900,04/02/21,84803,1102,Leisure Contract Client Costs,61702,"Maintenance - Equipment, Furniture And Materials",520.50
Cambridge City Council,Pro-Serv (Cambridge) Ltd,10622900,06/05/21,84940,1102,Leisure Contract Client Costs,61702,"Maintenance - Equipment, Furniture And Materials",799.10
Cambridge City Council,Protector Insurance UK,10565800,18/05/21,85797,8009,Insurance Fund,67302,Insurance,"2,061.75"
Cambridge City Council,Prudential,10510500,21/05/21,86066,9900,General Fund Balance Sheet,23020,Union Subscriptions,"7,715.25"
Cambridge City Council,Quadient UK Ltd,10137600,11/04/21,81638,8011,Corporate Business Support,61702,"Maintenance - Equipment, Furniture And Materials","1,182.49"
Cambridge City Council,R J Warren Ltd,10123500,22/03/21,83918,1864,Closed Churchyards,60503,Grounds Maintenance,"3,960.00"
Cambridge City Council,R J Warren Ltd,10123500,19/05/21,86054,1868,Play Maintenance,61702,"Maintenance - Equipment, Furniture And Materials","1,800.00"
Cambridge City Council,Radcliffe Chambers,10455700,04/05/21,84941,1935,Markets,68640,Recharged Costs - Legal Services,"1,500.00"
Cambridge City Council,Realife Trust,10086900,20/05/21,86090,1766,Orwell House Offices-Internal,62004,General Office Expenses,"1,520.84"
Cambridge City Council,Reliance High Tech Ltd,10087500,24/05/21,86568,1858,Public Realm Enforcement,60207,Health And Safety Supplies And Services,767.04
Cambridge City Council,Richard Herrmann Associates Ltd,10637400,18/05/21,85762,300028,Commercial Property,70010,CAPEX - Other Professional Fees,"5,000.00"
Cambridge City Council,Richard Herrmann Associates Ltd,10637400,18/05/21,85814,1758,Other Commercial Properties,62400,Consultancy Fees,"4,400.00"
Cambridge City Council,Richard Jardine Ltd,10138500,01/07/20,83913,1858,Public Realm Enforcement,61703,"Purchase - Equipment, Furniture And Materials",707.00
Cambridge City Council,Ridgeons Ltd,10089200,20/05/21,86372,9900,General Fund Balance Sheet,11600,Consumable Stores,545.70
Cambridge City Council,Rightmove Group Ltd,10089400,21/04/21,83915,1516,CLG Supplementary Homelessness Grants,62005,"Advertising, Publicity And Marketing",887.00
Cambridge City Council,Rightmove Group Ltd,10089400,19/05/21,86496,1516,CLG Supplementary Homelessness Grants,62005,"Advertising, Publicity And Marketing",887.00
Cambridge City Council,Robin J Gammon,10843700,08/05/21,85856,1701,3C Building Control,63900,Miscellaneous Expenses,600.00
Cambridge City Council,Robin J Gammon,10843700,11/04/21,85855,1701,3C Building Control,63900,Miscellaneous Expenses,"1,425.00"
Cambridge City Council,Rowan Humberstone,10090401,05/05/21,84425,1057,Community Development Voluntary Support,64600,Grants And Contributions,"1,500.00"
Cambridge City Council,Royal Mail Group Ltd,10128401,26/04/21,84127,5069,Police & Crime Commissioner Election,64100,Postage And Courier Services,969.80
Cambridge City Council,Royal Mail Group Ltd,10128401,26/04/21,84127,5079,Combined Authority Mayoral Elections,64100,Postage And Courier Services,969.80
Cambridge City Council,Royal Mail Group Ltd,10128401,26/04/21,84127,1353,Elections,64100,Postage And Courier Services,830.41
Cambridge City Council,Royal Mail Group Ltd,10128401,26/04/21,84127,5064,Elections-County Council,64100,Postage And Courier Services,996.48
Cambridge City Council,Royal Mail Group Ltd,10128401,20/04/21,83145,8023,Business Support - Centralised Overheads,64100,Postage And Courier Services,"1,150.52"
Cambridge City Council,Royal Mail Group Ltd,10128401,27/04/21,83998,8023,Business Support - Centralised Overheads,64100,Postage And Courier Services,"2,531.73"
Cambridge City Council,Royal Mail Group Ltd,10128401,26/04/21,83997,8023,Business Support - Centralised Overheads,64100,Postage And Courier Services,"1,149.07"
Cambridge City Council,Royal Mail Group Ltd,10128401,19/04/21,83079,8023,Business Support - Centralised Overheads,64100,Postage And Courier Services,"2,398.80"
Cambridge City Council,Royal Mail Group Ltd,10128401,02/02/21,85487,8023,Business Support - Centralised Overheads,64100,Postage And Courier Services,"21,010.65"
Cambridge City Council,Royal Mail Group Ltd,10128401,30/04/21,85845,1353,Elections,64100,Postage And Courier Services,"1,357.32"
Cambridge City Council,Royal Mail Group Ltd,10128401,30/04/21,85845,5064,Elections-County Council,64100,Postage And Courier Services,"1,628.77"
Cambridge City Council,Royal Mail Group Ltd,10128401,30/04/21,85845,5069,Police & Crime Commissioner Election,64100,Postage And Courier Services,"1,604.96"
Cambridge City Council,Royal Mail Group Ltd,10128401,30/04/21,85845,5079,Combined Authority Mayoral Elections,64100,Postage And Courier Services,"1,604.96"
Cambridge City Council,Royal Mail Group Ltd,10128401,14/05/21,86076,1353,Elections,64100,Postage And Courier Services,730.51
Cambridge City Council,Royal Mail Group Ltd,10128401,14/05/21,86076,5064,Elections-County Council,64100,Postage And Courier Services,876.60
Cambridge City Council,Royal Mail Group Ltd,10128401,14/05/21,86076,5069,Police & Crime Commissioner Election,64100,Postage And Courier Services,839.48
Cambridge City Council,Royal Mail Group Ltd,10128401,14/05/21,86076,5079,Combined Authority Mayoral Elections,64100,Postage And Courier Services,839.48
Cambridge City Council,Royal Mail Group Ltd,10128401,03/05/21,85570,8023,Business Support - Centralised Overheads,64100,Postage And Courier Services,"1,046.53"
Cambridge City Council,Royal Mail Group Ltd,10128401,07/05/21,85846,1353,Elections,64100,Postage And Courier Services,756.27
Cambridge City Council,Royal Mail Group Ltd,10128401,07/05/21,85846,5064,Elections-County Council,64100,Postage And Courier Services,907.51
Cambridge City Council,Royal Mail Group Ltd,10128401,07/05/21,85846,5069,Police & Crime Commissioner Election,64100,Postage And Courier Services,919.15
Cambridge City Council,Royal Mail Group Ltd,10128401,07/05/21,85846,5079,Combined Authority Mayoral Elections,64100,Postage And Courier Services,919.15
Cambridge City Council,Royal Mail Group Ltd,10128401,11/05/21,86080,8023,Business Support - Centralised Overheads,64100,Postage And Courier Services,"1,692.21"
Cambridge City Council,RSM Risk Assurance Services LLP,10207000,25/05/21,86312,8006,Accountancy and Support Services,64072,ICT Licences,"2,500.00"
Cambridge City Council,S & B Commercials Ltd,10078700,11/05/21,84990,1032,Garage- External Work,61703,"Purchase - Equipment, Furniture And Materials",857.00
Cambridge City Council,S & B Commercials Ltd,10078700,26/04/21,84990,1032,Garage- External Work,61703,"Purchase - Equipment, Furniture And Materials","1,240.00"
Cambridge City Council,S & B Commercials Ltd,10078700,17/05/21,85799,1032,Garage- External Work,61703,"Purchase - Equipment, Furniture And Materials",680.00
Cambridge City Council,S & B Commercials Ltd,10078700,18/05/21,85983,1032,Garage- External Work,61703,"Purchase - Equipment, Furniture And Materials","1,209.00"
Cambridge City Council,S P Landscapes & Tree Contractors Ltd,10124100,09/03/21,84229,1883,Flood Risk Management,60501,Cleaning Services,675.00
Cambridge City Council,S P Landscapes & Tree Contractors Ltd,10124100,30/04/21,84497,1883,Flood Risk Management,60501,Cleaning Services,"1,925.00"
Cambridge City Council,S P Landscapes & Tree Contractors Ltd,10124100,11/05/21,84978,1876,Arboriculture,64040,Tree Works,"2,700.00"
Cambridge City Council,S P Landscapes & Tree Contractors Ltd,10124100,27/04/21,86526,1876,Arboriculture,64040,Tree Works,735.00
Cambridge City Council,S P Landscapes & Tree Contractors Ltd,10124100,11/05/21,85275,1883,Flood Risk Management,60501,Cleaning Services,"2,100.00"
Cambridge City Council,Saint Andrews Bureau Ltd,10551500,21/05/21,86075,1526,Homelessness Prevention Grant,63900,Miscellaneous Expenses,"1,000.00"
Cambridge City Council,Sharpe Pritchard LLP,10093300,31/03/21,86529,1071,Clay Farm Community Centre,63200,Legal Fees,732.00
Cambridge City Council,Shredder Skate School,10473800,12/05/21,85875,1103,Active Lifestyles - Communities (ex Sports Development),61703,"Purchase - Equipment, Furniture And Materials",668.50
Cambridge City Council,Siemens Financial Services Limited,10093900,29/04/21,83845,1066,Brown's Field Youth and Community Centre,61700,Hire - Equipment Furniture And Materials,527.15
Cambridge City Council,Siemens Financial Services Limited,10093900,16/04/21,83844,1031,Fleet Management - Operational,64076,ICT Rental And Leases,529.55
Cambridge City Council,Siemens Financial Services Limited,10093900,17/05/21,86165,1031,Fleet Management - Operational,60906,Purchase Of Vehicles Related Costs,529.55
Cambridge City Council,SJW Building Contracts Ltd,10137300,06/05/21,84807,6207,Repairs Day to Day,60233,Housing Repairs - Work Given To External Contractors,"1,810.00"
Cambridge City Council,SJW Building Contracts Ltd,10137300,06/05/21,84806,6204,Client and Third Party Repairs,60219,Housing Repairs - Insurances,"1,632.00"
Cambridge City Council,SJW Building Contracts Ltd,10137300,06/05/21,84805,6207,Repairs Day to Day,60233,Housing Repairs - Work Given To External Contractors,"1,560.00"
Cambridge City Council,Smith & Ouzman Ltd,,16/04/21,82479,1801,Local Taxation,62001,Printing,"1,565.20"
Cambridge City Council,Smith & Ouzman Ltd,,30/04/21,84262,1802,Housing Benefits,62001,Printing,969.05
Cambridge City Council,Smith & Ouzman Ltd,,30/04/21,84267,1801,Local Taxation,62001,Printing,648.20
Cambridge City Council,Smith & Ouzman Ltd,,26/04/21,84223,1801,Local Taxation,62001,Printing,"1,702.41"
Cambridge City Council,Smith & Ouzman Ltd,,14/05/21,85553,1801,Local Taxation,62001,Printing,692.57
Cambridge City Council,South Cambridgeshire District Council,10096103,28/04/21,84121,1714,Greater Cambridge Planning Service,64060,Shared Service Contribution,"63,600.00"
Cambridge City Council,South Cambridgeshire District Council,10096103,07/05/21,84840,1714,Greater Cambridge Planning Service,64060,Shared Service Contribution,"80,233.00"
Cambridge City Council,South Cambridgeshire District Council,10096103,07/05/21,84841,1714,Greater Cambridge Planning Service,64060,Shared Service Contribution,"651,185.00"
Cambridge City Council,South Cambridgeshire District Council,10096103,10/03/21,84955,1063,The Meadows Community Centre,60403,Business Rates Payable,"12,475.00"
Cambridge City Council,South Staffordshire Water PLC,10134701,24/03/21,86320,5024,E_invoicing Suspense Accounts,69100,Expenditure In Holding Account Awaiting Allocation,"8,209.06"
Cambridge City Council,Southend on Sea Borough Council,10836500,20/05/21,85939,1890,2 Seas,62400,Consultancy Fees,"8,418.81"
Cambridge City Council,Spaldings Ltd,10096300,20/05/21,86401,1031,Fleet Management - Operational,61703,"Purchase - Equipment, Furniture And Materials",537.52
Cambridge City Council,St Andrew the Great Church,10152700,01/04/21,84888,1935,Markets,60400,Rents Payable,"15,000.00"
Cambridge City Council,St Martins Church,10098300,12/05/21,85320,1057,Community Development Voluntary Support,64600,Grants And Contributions,860.00
Cambridge City Council,Stepney Brothers Limited,10098600,23/04/21,86333,8009,Insurance Fund,67302,Insurance,958.31
Cambridge City Council,Stepney Brothers Limited,10098600,03/03/21,85749,9900,General Fund Balance Sheet,11708,Vat Debtor (Input Tax),"1,121.76"
Cambridge City Council,Storecheckers UK Ltd,10843600,25/03/21,85535,1426,Delivery of COVID-19 Prevention & Outbreak Mgt Intervention,63900,Miscellaneous Expenses,"2,657.42"
Cambridge City Council,Strategic Leisure Ltd,10463900,23/02/21,86420,1102,Leisure Contract Client Costs,62400,Consultancy Fees,"4,850.00"
Cambridge City Council,Stripe Consulting Limited,10099000,05/05/21,84437,100237,Crematorium - cafe facilities,70010,CAPEX - Other Professional Fees,"9,833.00"
Cambridge City Council,Sutcliffe Play Limited,10100400,24/05/21,86342,100319,S106 Holbrook Road play area improvements,70002,CAPEX - Building Contractor/Works,"14,567.46"
Cambridge City Council,Sutcliffe Play Limited,10100400,05/05/21,85772,100319,S106 Holbrook Road play area improvements,70002,CAPEX - Building Contractor/Works,"19,958.73"
Cambridge City Council,Sutcliffe Play Limited,10100400,07/05/21,85793,100319,S106 Holbrook Road play area improvements,70002,CAPEX - Building Contractor/Works,"2,028.60"
Cambridge City Council,Tait Technologies,10325500,17/05/21,85753,1260,Corn Exchange and Guildhalls,60209,R & M Minor Works,672.72
Cambridge City Council,Thames Laboratories Ltd,10101600,31/03/21,83919,6215,Risk and Compliance,60237,Asbestos Investigation/Surveys,972.77
Cambridge City Council,Thames Laboratories Ltd,10101600,30/04/21,86008,6215,Risk and Compliance,60237,Asbestos Investigation/Surveys,"2,779.33"
Cambridge City Council,The Academy Of Ancient Music,10303300,21/05/21,86112,9900,General Fund Balance Sheet,20118,Receipts In Advance - Other Entities And Individuals,"1,497.00"
Cambridge City Council,The Beck Co Ltd,10101800,21/04/21,85805,9900,General Fund Balance Sheet,11600,Consumable Stores,"1,021.49"
Cambridge City Council,The BSS Group PLC t/a PTS Plumbing Trade Supplies,10102000,28/04/21,84088,9900,General Fund Balance Sheet,11600,Consumable Stores,"1,229.95"
Cambridge City Council,The BSS Group PLC t/a PTS Plumbing Trade Supplies,10102000,19/05/21,85969,9900,General Fund Balance Sheet,11600,Consumable Stores,596.54
Cambridge City Council,The BSS Group PLC t/a PTS Plumbing Trade Supplies,10102000,13/05/21,85794,9900,General Fund Balance Sheet,11600,Consumable Stores,"1,229.95"
Cambridge City Council,The BSS Group PLC t/a PTS Plumbing Trade Supplies,10102000,13/05/21,85794,9900,General Fund Balance Sheet,11600,Consumable Stores,720.00
Cambridge City Council,The BSS Group PLC t/a PTS Plumbing Trade Supplies,10102000,19/05/21,86372,9900,General Fund Balance Sheet,11600,Consumable Stores,519.80
Cambridge City Council,The Combined Services Provider Ltd,10770200,29/04/21,83957,1935,Markets,60000,Salaries,"2,212.13"
Cambridge City Council,The Combined Services Provider Ltd,10770200,18/05/21,85729,1935,Markets,60000,Salaries,"1,179.80"
Cambridge City Council,The Netherhall School & Sixth From Centre,,30/04/21,84917,1101,Leisure Contract Management Fees,64600,Grants And Contributions,"15,000.00"
Cambridge City Council,The Riverside Group Ltd - ECHG,10105001,26/03/21,86418,1502,Homelessness Costs,64401,B&B Accommodation,"2,069.08"
Cambridge City Council,The Technology Forge Ltd,10629800,26/05/21,86473,100243,Property Management software,70023,CAPEX - ICT Software,"1,050.00"
Cambridge City Council,The Technology Forge Ltd,10629800,12/05/21,85677,100243,Property Management software,70023,CAPEX - ICT Software,650.00
Cambridge City Council,The Tess Group,10836600,14/05/21,85575,1260,Corn Exchange and Guildhalls,60115,Staff Development And Training,600.00
Cambridge City Council,The Tess Group,10836600,14/05/21,85575,1935,Markets,60115,Staff Development And Training,"1,196.80"
Cambridge City Council,The Urban Forest Consultancy Ltd,10105700,20/05/21,86009,1876,Arboriculture,62400,Consultancy Fees,"4,000.00"
Cambridge City Council,The Workplace Depot Ltd,10025300,15/04/21,83962,8018,Admin Building Allocation,61703,"Purchase - Equipment, Furniture And Materials",963.48
Cambridge City Council,The Workplace Depot Ltd,10025300,16/04/21,84510,8018,Admin Building Allocation,61703,"Purchase - Equipment, Furniture And Materials","1,072.50"
Cambridge City Council,Thinkproject UK Ltd,10031200,21/04/21,84077,5062,3C ICT,64073,ICT Maintenance and Support,"1,100.00"
Cambridge City Council,Thistle Insurance Services Ltd,10105900,10/05/21,84884,6502,Holding Accounts,69343,Insurance Premium - Other,"1,535.16"
Cambridge City Council,Thomson Webb & Corfield,10221801,05/05/21,84824,300042,Acquisitions & Disposals,70001,CAPEX - Acquisition of Land & Existing Building,"270,000.00"
Cambridge City Council,Thurlow Nunn Standen Ltd,10106100,10/05/21,85618,1856,Streets & Open Spaces (Operations) - Indirect Costs,61703,"Purchase - Equipment, Furniture And Materials","1,998.00"
Cambridge City Council,Thurlow Nunn Standen Ltd,10106100,20/04/21,86612,1856,Streets & Open Spaces (Operations) - Indirect Costs,61703,"Purchase - Equipment, Furniture And Materials",690.00
Cambridge City Council,Total Gas & Power Ltd,10134800,16/03/21,84759,5024,E_invoicing Suspense Accounts,69100,Expenditure In Holding Account Awaiting Allocation,"70,246.18"
Cambridge City Council,Total Gas & Power Ltd,10134800,15/04/21,84763,5024,E_invoicing Suspense Accounts,69100,Expenditure In Holding Account Awaiting Allocation,"74,395.25"
Cambridge City Council,Total Gas & Power Ltd,10134800,11/05/21,85692,5024,E_invoicing Suspense Accounts,69100,Expenditure In Holding Account Awaiting Allocation,"72,355.84"
Cambridge City Council,TP Surfacing and Coatings,10840400,30/04/21,85491,300020,Other Health and Safety Works,70002,CAPEX - Building Contractor/Works,"1,332.80"
Cambridge City Council,Trown Housing Consultancy Ltd,10249000,26/04/21,83158,1504,Housing Advice Service,62400,Consultancy Fees,"2,000.00"
Cambridge City Council,Trown Housing Consultancy Ltd,10249000,13/05/21,85536,1504,Housing Advice Service,63900,Miscellaneous Expenses,"1,200.00"
Cambridge City Council,Tructyre Fleet Management Ltd,10364500,30/04/21,85849,1032,Garage- External Work,61703,"Purchase - Equipment, Furniture And Materials",764.87
Cambridge City Council,Trumpington Bowls Club,10520200,18/05/21,85760,1102,Leisure Contract Client Costs,64600,Grants And Contributions,"5,380.00"
Cambridge City Council,TSG Building Services PLC,10125300,23/04/21,83244,5024,E_invoicing Suspense Accounts,69100,Expenditure In Holding Account Awaiting Allocation,"620,546.56"
Cambridge City Council,TSG Building Services PLC,10125300,16/04/21,83243,5024,E_invoicing Suspense Accounts,69100,Expenditure In Holding Account Awaiting Allocation,"94,621.45"
Cambridge City Council,TSG Building Services PLC,10125300,14/05/21,85808,5024,E_invoicing Suspense Accounts,69100,Expenditure In Holding Account Awaiting Allocation,"58,207.10"
Cambridge City Council,TSG Building Services PLC,10125300,14/05/21,85807,5024,E_invoicing Suspense Accounts,69100,Expenditure In Holding Account Awaiting Allocation,"287,147.30"
Cambridge City Council,Tucker Gardner Countrywide Residential Lettings,10200400,13/05/21,85576,1526,Homelessness Prevention Grant,60400,Rents Payable,"5,550.00"
Cambridge City Council,UK Fuels Limited,10192900,18/04/21,82548,5001,City Services Holding Account,69100,Expenditure In Holding Account Awaiting Allocation,"4,540.02"
Cambridge City Council,UK Fuels Limited,10192900,25/04/21,83829,5001,City Services Holding Account,69100,Expenditure In Holding Account Awaiting Allocation,"5,621.67"
Cambridge City Council,UK Fuels Limited,10192900,02/05/21,84428,5001,City Services Holding Account,69100,Expenditure In Holding Account Awaiting Allocation,"3,900.40"
Cambridge City Council,UK Fuels Limited,10192900,09/05/21,85478,5001,City Services Holding Account,69100,Expenditure In Holding Account Awaiting Allocation,"5,555.95"
Cambridge City Council,UK Fuels Limited,10192900,16/05/21,86079,5001,City Services Holding Account,69100,Expenditure In Holding Account Awaiting Allocation,"5,126.55"
Cambridge City Council,Unison,10173200,30/04/21,84097,9900,General Fund Balance Sheet,23020,Union Subscriptions,"2,487.40"
Cambridge City Council,Urban Planters Chelmsford,10230500,30/04/21,84433,1300,Customer Access Strategy - Customer Service Centre,61702,"Maintenance - Equipment, Furniture And Materials",630.00
Cambridge City Council,VEOLIA ES (UK) LIMITED,10566500,30/04/21,84985,6200,Building Maintenance Response - Direct,64050,Waste Disposal Costs,"1,361.00"
Cambridge City Council,Versapak International Ltd,10286700,07/04/21,83964,1353,Elections,61703,"Purchase - Equipment, Furniture And Materials","1,778.70"
Cambridge City Council,Versapak International Ltd,10286700,07/04/21,83964,1353,Elections,61703,"Purchase - Equipment, Furniture And Materials","3,230.70"
Cambridge City Council,VIP System Limited,10110800,21/05/21,86533,1421,Public Control - Taxis,60300,Signs Erecting & Removal,585.00
Cambridge City Council,VIP System Limited,10110800,21/05/21,86533,1420,Public Control - Private Hire Vehicles,60300,Signs Erecting & Removal,585.00
Cambridge City Council,VIP System Limited,10110800,21/05/21,86533,1421,Public Control - Taxis,60300,Signs Erecting & Removal,"1,249.70"
Cambridge City Council,VIP System Limited,10110800,21/05/21,86533,1420,Public Control - Private Hire Vehicles,60300,Signs Erecting & Removal,"1,249.70"
Cambridge City Council,VIP System Limited,10110800,21/05/21,86533,1421,Public Control - Taxis,60300,Signs Erecting & Removal,"1,221.10"
Cambridge City Council,VIP System Limited,10110800,21/05/21,86533,1420,Public Control - Private Hire Vehicles,60300,Signs Erecting & Removal,501.32
Cambridge City Council,Virido Management Company Limited,10041902,11/05/21,85285,6135,"Virido, Clay Farm New Build",60401,Service Charges,"22,038.41"
Cambridge City Council,Virido Management Company Limited,10041902,11/05/21,85286,6135,"Virido, Clay Farm New Build",60401,Service Charges,995.62
Cambridge City Council,Virido Management Company Limited,10041902,11/05/21,85281,6135,"Virido, Clay Farm New Build",60401,Service Charges,"18,011.23"
Cambridge City Council,Virido Management Company Limited,10041902,11/05/21,85283,6135,"Virido, Clay Farm New Build",60401,Service Charges,"9,602.05"
Cambridge City Council,Virido Management Company Limited,10041902,11/05/21,85288,6135,"Virido, Clay Farm New Build",60401,Service Charges,946.86
Cambridge City Council,Virido Management Company Limited,10041902,11/05/21,85284,6135,"Virido, Clay Farm New Build",60401,Service Charges,"15,939.32"
Cambridge City Council,Virido Management Company Limited,10041902,11/05/21,85287,6135,"Virido, Clay Farm New Build",60401,Service Charges,522.22
Cambridge City Council,Volvo Group UK Ltd,10111400,10/05/21,84990,1031,Fleet Management - Operational,61703,"Purchase - Equipment, Furniture And Materials",817.70
Cambridge City Council,Wesley Media,10112900,10/05/21,85271,1001,Cambridge Crematorium,63900,Miscellaneous Expenses,"10,150.00"
Cambridge City Council,WFL (UK) Ltd t/a Watson Fuels,10113200,19/04/21,82449,1031,Fleet Management - Operational,60306,Heating Oil,659.50
Cambridge City Council,Wintercomfort for the Homeless,10113600,30/04/21,85538,1524,COVID-19 Rough Sleepers Services,64401,B&B Accommodation,800.00
Cambridge City Council,Wiser Recycling Ltd,10215500,30/04/21,84792,6200,Building Maintenance Response - Direct,64050,Waste Disposal Costs,"1,227.72"
Cambridge City Council,Witham Oil & Paint (Soham) Ltd,10113800,18/05/21,85840,1032,Garage- External Work,61703,"Purchase - Equipment, Furniture And Materials",625.13
Cambridge City Council,Witham Oil & Paint (Soham) Ltd,10113800,18/05/21,85840,1032,Garage- External Work,61703,"Purchase - Equipment, Furniture And Materials",726.33
Cambridge City Council,Witham Oil & Paint (Soham) Ltd,10113800,18/05/21,85840,1032,Garage- External Work,61703,"Purchase - Equipment, Furniture And Materials","1,014.18"
Cambridge City Council,Wood Green Animal Shelters,10114100,30/04/21,84085,1858,Public Realm Enforcement,62401,Subcontractors,"1,416.67"
Cambridge City Council,Woodberry of Leamington Spa,10791500,12/05/21,85405,100324,City centre recovery - Combined Authority grant funding,70002,CAPEX - Building Contractor/Works,"7,110.00"
Cambridge City Council,Zellis UK Ltd,10076900,30/04/21,85264,8008,Shared Payroll Service,62001,Printing,"1,608.56"
Cambridge City Council,10:AM,10302900,02/06/21,87227,780002,,62800,Design And Photographic Costs,800.00
Cambridge City Council,11KBW Ltd,10855000,09/06/21,87866,1408,Food and Occupational Safety,63200,Legal Fees,700.00
Cambridge City Council,ADT Fire & Security PLC,10002800,01/06/21,87189,1754,Barnwell House Offices,60202,Cyclical/Planned Maintenance - Fixed Plant,930.64
Cambridge City Council,Air Monitors Limited,10356600,02/06/21,87282,1404,Scientific Team,50000,Government Grants Revenue Income - Ringfenced,"3,840.00"
Cambridge City Council,AKW Medi-Care Ltd,10003700,21/06/21,88278,9900,General Fund Balance Sheet,11600,Consumable Stores,556.47
Cambridge City Council,Albany Beck Consultancy Services Ltd,10476400,09/06/21,87363,1207,Programme Office,62400,Consultancy Fees,"16,150.00"
Cambridge City Council,Albany Beck Consultancy Services Ltd,10476400,07/04/21,86680,1207,Programme Office,62400,Consultancy Fees,"8,525.00"
Cambridge City Council,Albany Beck Consultancy Services Ltd,10476400,09/06/21,87362,1207,Programme Office,62400,Consultancy Fees,"16,875.00"
Cambridge City Council,Albany Beck Consultancy Services Ltd,10476400,09/06/21,87364,1207,Programme Office,62400,Consultancy Fees,"13,400.00"
Cambridge City Council,Alboro Developments Ltd,10133300,31/05/21,87251,1031,Fleet Management - Operational,60303,Electricity,821.18
Cambridge City Council,Alliance Asbestos Services Ltd,10115400,14/05/21,87628,1100,Sport & Recreation Administration,60238,Asbestos Removal,795.00
Cambridge City Council,Alliance Asbestos Services Ltd,10115400,17/05/21,87592,300007,Asbestos Removal,70002,CAPEX - Building Contractor/Works,"1,841.00"
Cambridge City Council,Amulet (Churchill Security Solutions) Ltd,10220900,09/06/21,88020,5024,E_invoicing Suspense Accounts,69100,Expenditure In Holding Account Awaiting Allocation,"1,500.00"
Cambridge City Council,Amulet (Churchill Security Solutions) Ltd,10220900,15/06/21,88250,5024,E_invoicing Suspense Accounts,69100,Expenditure In Holding Account Awaiting Allocation,"10,525.68"
Cambridge City Council,Amulet (Churchill Security Solutions) Ltd,10220900,31/05/21,87990,5024,E_invoicing Suspense Accounts,69100,Expenditure In Holding Account Awaiting Allocation,"10,523.28"
Cambridge City Council,Amulet (Churchill Security Solutions) Ltd,10220900,18/06/21,88121,5024,E_invoicing Suspense Accounts,69100,Expenditure In Holding Account Awaiting Allocation,"1,543.50"
Cambridge City Council,Amulet (Churchill Security Solutions) Ltd,10220900,31/05/21,87961,5024,E_invoicing Suspense Accounts,69100,Expenditure In Holding Account Awaiting Allocation,"12,410.03"
Cambridge City Council,Anglian Water Business (National) Ltd T/A Wave,10006400,26/05/21,87335,1870,Public Toilets,60302,Water And Sewerage,"1,287.19"
Cambridge City Council,Anglian Water Business (National) Ltd T/A Wave,10006400,26/05/21,87735,1870,Public Toilets,60302,Water And Sewerage,"1,287.19"
Cambridge City Council,Anglotach,10006600,11/06/21,87539,1856,Streets & Open Spaces (Operations) - Indirect Costs,60115,Staff Development And Training,"1,150.00"
Cambridge City Council,AON UK Limited,10006800,06/04/21,86897,8009,Insurance Fund,67302,Insurance,"2,000.00"
Cambridge City Council,AON UK Limited,10006800,06/04/21,86895,8009,Insurance Fund,67302,Insurance,"1,562.40"
Cambridge City Council,AON UK Limited,10006800,06/04/21,86880,8009,Insurance Fund,67302,Insurance,"4,521.44"
Cambridge City Council,AON UK Limited,10006800,06/04/21,86904,8009,Insurance Fund,67302,Insurance,"1,848.38"
Cambridge City Council,AON UK Limited,10006800,06/04/21,86873,8009,Insurance Fund,67302,Insurance,"163,438.02"
Cambridge City Council,AON UK Limited,10006800,06/04/21,86878,8009,Insurance Fund,67302,Insurance,"18,088.00"
Cambridge City Council,AON UK Limited,10006800,06/04/21,86871,8009,Insurance Fund,67302,Insurance,"1,075.20"
Cambridge City Council,AON UK Limited,10006800,06/04/21,86876,8009,Insurance Fund,67302,Insurance,"59,348.50"
Cambridge City Council,AON UK Limited,10006800,06/04/21,86881,8009,Insurance Fund,67302,Insurance,"50,563.52"
Cambridge City Council,AON UK Limited,10006800,06/04/21,86887,8009,Insurance Fund,67302,Insurance,"1,540.32"
Cambridge City Council,AON UK Limited,10006800,06/04/21,86870,8009,Insurance Fund,67302,Insurance,"1,996.96"
Cambridge City Council,Apex Training Centres (UK) Ltd,10007000,28/07/20,86325,1031,Fleet Management - Operational,60115,Staff Development And Training,952.50
Cambridge City Council,Apply4 Technology Ltd,10285100,30/04/21,87284,1865,Lettings & Events on Open Spaces,63900,Miscellaneous Expenses,"2,000.00"
Cambridge City Council,APT Skidata Ltd,10115700,04/05/21,86787,1651,Grand Arcade Car Park,64073,ICT Maintenance and Support,"1,470.41"
Cambridge City Council,APT Skidata Ltd,10115700,14/06/21,87822,1653,Grafton Centre West Car Park,61702,"Maintenance - Equipment, Furniture And Materials","1,064.37"
Cambridge City Council,APT Skidata Ltd,10115700,14/06/21,87821,1654,Grafton Centre East Car Park,61702,"Maintenance - Equipment, Furniture And Materials","1,791.46"
Cambridge City Council,APT Skidata Ltd,10115700,14/06/21,87823,1655,Queen Anne Terrace Car Park,61702,"Maintenance - Equipment, Furniture And Materials","1,074.41"
Cambridge City Council,APT Skidata Ltd,10115700,17/06/21,88360,1651,Grand Arcade Car Park,61702,"Maintenance - Equipment, Furniture And Materials","3,323.54"
Cambridge City Council,Barker Storey Matthews,10011401,24/06/21,87350,1776,"4 Cyrus Way, Cygnet Park, Peterborough",60401,Service Charges,"1,398.04"
Cambridge City Council,Bevan Brittan LLP,10012600,30/04/21,86905,300099,New Build - Fen Road,70010,CAPEX - Other Professional Fees,900.00
Cambridge City Council,Bevan Brittan LLP,10012600,29/04/21,87192,300085,New Build Cromwell Road Redevelopment (HRA),70010,CAPEX - Other Professional Fees,500.00
Cambridge City Council,Bidwells LLP  No 1 Account,10161001,31/05/21,87584,1867,Grazing Management,63900,Miscellaneous Expenses,984.25
Cambridge City Council,Bidwells LLP  No 2 Account,10161000,28/05/21,86658,1750,Property Services,62400,Consultancy Fees,"16,440.00"
Cambridge City Council,Bidwells LLP  No 2 Account,10161000,28/05/21,86658,1453,Finance General Recharges,62400,Consultancy Fees,"4,110.00"
Cambridge City Council,Bidwells LLP  No 2 Account,10161000,31/05/21,87475,1878,Local Nature Reserves,62400,Consultancy Fees,984.25
Cambridge City Council,Boldfield Computing Ltd,10306300,01/06/21,87203,1263,Cambridge Live - Central,64077,Telephone And Mobile Phone Costs,797.94
Cambridge City Council,Boldfield Computing Ltd,10306300,01/06/21,87204,1263,Cambridge Live - Central,64073,ICT Maintenance and Support,"1,366.01"
Cambridge City Council,Borley Brothers Engineering,10116600,17/05/21,87286,1656,Adam & Eve Street Car Park,60804,Other Premises Related Costs,560.00
Cambridge City Council,Borley Brothers Engineering,10116600,07/06/21,87253,6214,Estate Investment Scheme,60235,Housing Repairs - Other Premises Related Costs,770.00
Cambridge City Council,Borley Brothers Engineering,10116600,07/06/21,87254,6214,Estate Investment Scheme,60235,Housing Repairs - Other Premises Related Costs,858.97
Cambridge City Council,Breckland Maintenance Services Ltd T/A Bury Pumps,10014900,20/05/21,86645,1870,Public Toilets,60201,Cyclical/Planned Maintenance - Building,"1,700.00"
Cambridge City Council,British Gas UK Business,10015200,24/05/21,87134,1759,Gwydir St Workshops/Offices,60303,Electricity,637.25
Cambridge City Council,Bsg Property Services Ltd,10015900,25/01/21,86921,200001,Mandatory Disabled Facilities Grants (Tenants),70015,CAPEX - Grants Paid,936.00
Cambridge City Council,Bsg Property Services Ltd,10015900,05/05/21,87902,1525,Safer Street Project,60271,Security Of Premises,"1,814.40"
Cambridge City Council,Bsg Property Services Ltd,10015900,29/06/21,88469,1525,Safer Street Project,60271,Security Of Premises,"5,826.00"
Cambridge City Council,Businessclean (Cambridge) Ltd,10016800,31/05/21,86716,1502,Homelessness Costs,60501,Cleaning Services,618.00
Cambridge City Council,Businessclean (Cambridge) Ltd,10016800,31/05/21,86697,6102,Temporary Accommodation,60501,Cleaning Services,558.00
Cambridge City Council,Businessclean (Cambridge) Ltd,10016800,28/05/21,86715,6208,Voids,60220,Housing Repairs - Work To Void Properties,"1,873.00"
Cambridge City Council,C Silverman Office Furniture Centre,10244200,17/05/21,87287,1031,Fleet Management - Operational,61703,"Purchase - Equipment, Furniture And Materials",802.00
Cambridge City Council,Calfordseaden LLP,10339400,26/05/21,86923,300090,Meadows and Buchan Street,70010,CAPEX - Other Professional Fees,"6,817.18"
Cambridge City Council,Calfordseaden LLP,10339400,26/05/21,87333,300090,Meadows and Buchan Street,70010,CAPEX - Other Professional Fees,"1,999.19"
Cambridge City Council,Calfordseaden LLP,10339400,23/06/21,88473,300090,Meadows and Buchan Street,70010,CAPEX - Other Professional Fees,"1,999.18"
Cambridge City Council,Cambridge & District Citizen's Advice Bureau,10017500,31/03/21,88238,1802,Housing Benefits,63900,Miscellaneous Expenses,"9,812.75"
Cambridge City Council,Cambridge African Network,10017700,18/06/21,87929,1057,Community Development Voluntary Support,64600,Grants And Contributions,"1,850.00"
Cambridge City Council,Cambridge Arts & Sciences Ltd,10017800,01/06/21,87873,1524,COVID-19 Rough Sleepers Services,64401,B&B Accommodation,"41,125.44"
Cambridge City Council,Cambridge Bid Limited,10017900,10/06/21,87522,5025,Business Improvement District (BID) Collection Fund,58702,BID Levy - Payment to BID Company,"107,256.67"
Cambridge City Council,Cambridge Cycling Campaign,10018600,27/05/21,86948,1050,Community Safety,64600,Grants And Contributions,"1,000.00"
Cambridge City Council,Cambridge Dial a Ride Ltd,10018900,19/05/21,87853,1713,Transport Initiatives for Disabled,64600,Grants And Contributions,"20,000.00"
Cambridge City Council,Cambridge Housing Society Ltd,10019600,03/06/21,87073,1526,Homelessness Prevention Grant,63900,Miscellaneous Expenses,500.00
Cambridge City Council,Cambridge Housing Society Ltd,10019600,17/06/21,87916,1526,Homelessness Prevention Grant,63900,Miscellaneous Expenses,500.00
Cambridge City Council,Cambridge Housing Society Ltd,10019600,23/06/21,88167,1516,CLG Supplementary Homelessness Grants,64600,Grants And Contributions,"32,085.00"
Cambridge City Council,Cambridge Sustainable Food,10162900,08/06/21,87585,1077,Community Resilience,64600,Grants And Contributions,"1,200.00"
Cambridge City Council,Cambridge Tool Hire,10021600,10/05/21,87035,9900,General Fund Balance Sheet,11600,Consumable Stores,900.00
Cambridge City Council,Cambridgeshire County Council,10022802,16/06/21,87805,1510,Housing Strategy,62900,Events,"13,020.00"
Cambridge City Council,Cambridgeshire County Council,10022802,16/06/21,87814,1509,Grants to Housing Agencies,64600,Grants And Contributions,"16,000.00"
Cambridge City Council,Cambridgeshire County Council,10022802,09/06/21,88470,100050,Minor Highway Improvement Programme,70010,CAPEX - Other Professional Fees,"4,796.00"
Cambridge City Council,Cambridgeshire County Council,10022802,30/03/21,87848,1450,Central Provisions to be Allocated,64600,Grants And Contributions,"901,000.00"
Cambridge City Council,Cambridgeshire County Council,10022802,10/06/21,87813,1888,Open Space Mgt Salaries,62400,Consultancy Fees,"2,894.00"
Cambridge City Council,Caroline Wright,10190500,26/05/21,86707,100203,S106 To the River - artist in residence,70010,CAPEX - Other Professional Fees,"3,500.00"
Cambridge City Council,Carter Jonas LLP,10141403,29/03/21,87540,1506,Housing Development Agency,62400,Consultancy Fees,"1,100.00"
Cambridge City Council,Carter Jonas LLP,10141403,01/07/21,88240,6125,"Scholars Court, Homerton Gardens",60401,Service Charges,741.40
Cambridge City Council,Carter Jonas LLP,10141403,14/06/21,87765,1750,Property Services,62400,Consultancy Fees,750.00
Cambridge City Council,Carter Jonas LLP,10141403,01/07/21,88242,6125,"Scholars Court, Homerton Gardens",60401,Service Charges,856.63
Cambridge City Council,CCPM Ltd,10283000,16/05/21,86806,100300,Park Street car park development,70010,CAPEX - Other Professional Fees,"1,650.00"
Cambridge City Council,CCPM Ltd,10283000,31/05/21,88340,100300,Park Street car park development,70010,CAPEX - Other Professional Fees,"1,100.00"
Cambridge City Council,CCR Property Services Ltd,10840600,09/06/21,87353,6207,Repairs Day to Day,60233,Housing Repairs - Work Given To External Contractors,715.00
Cambridge City Council,CGM Group (East Anglia) Ltd,10117300,09/06/21,88428,1876,Arboriculture,64040,Tree Works,850.00
Cambridge City Council,CGM Group (East Anglia) Ltd,10117300,31/03/20,87742,1876,Arboriculture,64040,Tree Works,"1,385.16"
Cambridge City Council,CGM Group (East Anglia) Ltd,10117300,31/03/20,87742,1885,Reverse Agency (formerly Unclassified Routine),64040,Tree Works,"1,451.84"
Cambridge City Council,CGM Group (East Anglia) Ltd,10117300,26/05/21,87634,1876,Arboriculture,64040,Tree Works,850.00
Cambridge City Council,"Change, Grow, Live",10026000,16/06/21,87810,1509,Grants to Housing Agencies,64600,Grants And Contributions,"90,990.00"
Cambridge City Council,Changing Social Ltd,10723300,04/06/21,87636,1207,Programme Office,64300,Conference Expenses,"5,000.00"
Cambridge City Council,Chassis Cab Ltd,10027000,08/06/21,87525,1032,Garage- External Work,61703,"Purchase - Equipment, Furniture And Materials",623.92
Cambridge City Council,Chassis Cab Ltd,10027000,17/06/21,88281,1031,Fleet Management - Operational,61703,"Purchase - Equipment, Furniture And Materials",630.87
Cambridge City Council,Chassis Cab Ltd,10027000,03/06/21,87879,1031,Fleet Management - Operational,61703,"Purchase - Equipment, Furniture And Materials",620.00
Cambridge City Council,Chassis Cab Ltd,10027000,07/05/21,87753,1031,Fleet Management - Operational,61703,"Purchase - Equipment, Furniture And Materials",585.00
Cambridge City Council,Cheffins,10451900,29/06/21,88513,9900,General Fund Balance Sheet,30004,Capital Receipts Reserve,"2,325.00"
Cambridge City Council,Cherwell District Council,10841400,10/06/21,87474,1203,Corporate Policy,64800,Membership And Subscriptions,"13,500.00"
Cambridge City Council,Childcare Vouchers Limited,10028300,10/06/21,87586,5000,Salary Sacrifice Schemes Holding Account,60106,Childcare Admin Vouchers,"4,088.00"
Cambridge City Council,Chubb Fire & Security Limited,10029100,09/06/21,87476,6205,Citywide Schemes,60223,Housing Repairs - Door Entry Maintenance,"5,320.50"
Cambridge City Council,Chubb Fire & Security Limited,10029100,15/06/21,88289,1260,Corn Exchange and Guildhalls,60209,R & M Minor Works,626.36
Cambridge City Council,Churchill Contract Services Ltd,10029300,30/04/21,88226,5024,E_invoicing Suspense Accounts,69100,Expenditure In Holding Account Awaiting Allocation,"35,561.81"
Cambridge City Council,Churchill Contract Services Ltd,10029300,30/04/21,88226,5024,E_invoicing Suspense Accounts,69100,Expenditure In Holding Account Awaiting Allocation,"7,112.37"
Cambridge City Council,Churchill Contract Services Ltd,10029300,31/05/21,88227,5024,E_invoicing Suspense Accounts,69100,Expenditure In Holding Account Awaiting Allocation,"35,587.46"
Cambridge City Council,Churchill Contract Services Ltd,10029300,31/05/21,88227,5024,E_invoicing Suspense Accounts,69100,Expenditure In Holding Account Awaiting Allocation,"7,117.50"
Cambridge City Council,CIP (Cromwell Road) LLP,10366900,01/06/21,87590,300085,New Build Cromwell Road Redevelopment (HRA),70002,CAPEX - Building Contractor/Works,"322,350.00"
Cambridge City Council,CIP (Cromwell Road) LLP,10366900,01/06/21,87590,100225,Cromwell Road Redevelopment (GF),70001,CAPEX - Acquisition of Land & Existing Building,"270,392.00"
Cambridge City Council,CIP (Mill Road Development) LLP,10474400,03/06/21,87613,300077,New Build - Mill Road,70002,CAPEX - Building Contractor/Works,"235,237.00"
Cambridge City Council,CIP (Mill Road Development) LLP,10474400,03/06/21,87614,300077,New Build - Mill Road,70002,CAPEX - Building Contractor/Works,"250,000.00"
Cambridge City Council,Clanpress (Kings Lynn) Ltd,10030500,23/06/21,88200,6002,Resident Involvement,62001,Printing,"1,376.00"
Cambridge City Council,ClimateView,10581300,31/03/21,87230,1208,Sustainable City,68300,Unallocated Budget,"4,000.00"
Cambridge City Council,CN Security Ltd,10291400,02/06/21,86832,1938,Reopening of the High Street Grant,63800,Security Services (Excluding Premises),"6,779.17"
Cambridge City Council,CN Security Ltd,10291400,02/06/21,86831,1938,Reopening of the High Street Grant,63800,Security Services (Excluding Premises),"8,198.00"
Cambridge City Council,CN Security Ltd,10291400,02/06/21,86949,1938,Reopening of the High Street Grant,63800,Security Services (Excluding Premises),"1,200.00"
Cambridge City Council,CN Security Ltd,10291400,10/06/21,87486,1938,Reopening of the High Street Grant,63800,Security Services (Excluding Premises),"5,911.50"
Cambridge City Council,CN Security Ltd,10291400,17/06/21,87865,1938,Reopening of the High Street Grant,63800,Security Services (Excluding Premises),"4,504.50"
Cambridge City Council,CN Security Ltd,10291400,23/06/21,88202,1938,Reopening of the High Street Grant,63800,Security Services (Excluding Premises),"5,725.03"
Cambridge City Council,Comensura Ltd,10031900,02/06/21,86797,5024,E_invoicing Suspense Accounts,69100,Expenditure In Holding Account Awaiting Allocation,"55,509.89"
Cambridge City Council,Comensura Ltd,10031900,09/06/21,87473,5024,E_invoicing Suspense Accounts,69100,Expenditure In Holding Account Awaiting Allocation,"49,756.69"
Cambridge City Council,Comensura Ltd,10031900,23/06/21,88161,5024,E_invoicing Suspense Accounts,69100,Expenditure In Holding Account Awaiting Allocation,"46,997.77"
Cambridge City Council,Comensura Ltd,10031900,16/06/21,87747,5024,E_invoicing Suspense Accounts,69100,Expenditure In Holding Account Awaiting Allocation,"45,632.56"
Cambridge City Council,Cooleraid Ltd,10033001,14/06/21,87624,8018,Admin Building Allocation,64200,Subsistence,"2,242.00"
Cambridge City Council,Cooleraid Ltd,10033001,03/06/21,87104,8018,Admin Building Allocation,64200,Subsistence,581.00
Cambridge City Council,Cooleraid Ltd,10033001,14/06/21,87685,8018,Admin Building Allocation,64200,Subsistence,581.00
Cambridge City Council,Cooleraid Ltd,10033001,14/06/21,87626,8018,Admin Building Allocation,64200,Subsistence,581.00
Cambridge City Council,Cooleraid Ltd,10033001,23/06/21,88241,8018,Admin Building Allocation,64200,Subsistence,581.00
Cambridge City Council,Cornerstone (East Anglia) Ltd,10033600,28/05/21,86709,300006,Insulation / Energy Efficiency,70002,CAPEX - Building Contractor/Works,"136,686.74"
Cambridge City Council,Cornerstone (East Anglia) Ltd,10033600,28/05/21,86708,300006,Insulation / Energy Efficiency,70002,CAPEX - Building Contractor/Works,"43,863.25"
Cambridge City Council,Cornerstone Barristers,10073801,23/06/21,88229,1419,Environmental Health Operational Support,63200,Legal Fees,"1,650.00"
Cambridge City Council,Countryside Properties (UK) Ltd,10033800,28/05/21,86663,100020,Development Of land at Clay Farm,70002,CAPEX - Building Contractor/Works,962.77
Cambridge City Council,Countryside Properties (UK) Ltd,10033800,28/05/21,86663,100020,Development Of land at Clay Farm,70002,CAPEX - Building Contractor/Works,616.22
Cambridge City Council,Countryside Properties (UK) Ltd,10033800,28/05/21,86663,100020,Development Of land at Clay Farm,70010,CAPEX - Other Professional Fees,588.79
Cambridge City Council,Countryside Properties (UK) Ltd,10033800,28/05/21,86663,100020,Development Of land at Clay Farm,70017,CAPEX - Purchase of Plant Machinery & Equipment,588.00
Cambridge City Council,County Life Ltd,10033900,21/06/21,88206,1202,Corporate Marketing,62005,"Advertising, Publicity And Marketing","2,166.00"
Cambridge City Council,Cubiq Design Ltd,10623600,31/05/21,87673,100324,City centre recovery - Combined Authority grant funding,70010,CAPEX - Other Professional Fees,"2,437.50"
Cambridge City Council,CWRP Relocation Ltd,10504300,21/05/21,87062,5104,Housing Infrastructure Fund,64600,Grants And Contributions,"353,194.48"
Cambridge City Council,D & M Pest Control,10035200,01/05/21,86590,1001,Cambridge Crematorium,60501,Cleaning Services,"1,380.00"
Cambridge City Council,D Carman BSSR Ltd,10118100,20/05/21,86700,8017,Mandela House,60201,Cyclical/Planned Maintenance - Building,"1,186.00"
Cambridge City Council,D Carman BSSR Ltd,10118100,20/05/21,86702,8017,Mandela House,60201,Cyclical/Planned Maintenance - Building,786.00
Cambridge City Council,D Carman BSSR Ltd,10118100,10/06/21,87647,300093,POD Homes,70010,CAPEX - Other Professional Fees,"1,207.50"
Cambridge City Council,D Carman BSSR Ltd,10118100,07/06/21,87182,100259,Environmental Improvements Programme,70013,CAPEX - Landscaping,"4,530.00"
Cambridge City Council,D Carman BSSR Ltd,10118100,29/06/21,88459,8019,Parsons Court,60201,Cyclical/Planned Maintenance - Building,"4,125.00"
Cambridge City Council,Dash Information Systems Ltd,10204900,20/05/21,87193,1003,Bereavement Services Central Costs,64073,ICT Maintenance and Support,"1,341.31"
Cambridge City Council,David Powell t/a D J Kitchens,10137900,07/06/21,87138,6207,Repairs Day to Day,60233,Housing Repairs - Work Given To External Contractors,"3,350.00"
Cambridge City Council,Dennis Eagle Ltd,10036900,26/05/21,86762,1031,Fleet Management - Operational,61703,"Purchase - Equipment, Furniture And Materials",525.26
Cambridge City Council,Dennis Eagle Ltd,10036900,26/05/21,86762,1031,Fleet Management - Operational,61703,"Purchase - Equipment, Furniture And Materials",563.89
Cambridge City Council,Dennis Eagle Ltd,10036900,28/05/21,87022,1032,Garage- External Work,61703,"Purchase - Equipment, Furniture And Materials",711.71
Cambridge City Council,Dennis Eagle Ltd,10036900,04/06/21,87525,1031,Fleet Management - Operational,61703,"Purchase - Equipment, Furniture And Materials",634.54
Cambridge City Council,Dennis Eagle Ltd,10036900,07/06/21,87525,1031,Fleet Management - Operational,61703,"Purchase - Equipment, Furniture And Materials",794.44
Cambridge City Council,Dennis Eagle Ltd,10036900,22/06/21,88281,1031,Fleet Management - Operational,61703,"Purchase - Equipment, Furniture And Materials",727.38
Cambridge City Council,Dennis Eagle Ltd,10036900,14/06/21,87879,1031,Fleet Management - Operational,61703,"Purchase - Equipment, Furniture And Materials",653.89
Cambridge City Council,Dennis Eagle Ltd,10036900,16/06/21,88152,1031,Fleet Management - Operational,61703,"Purchase - Equipment, Furniture And Materials",709.37
Cambridge City Council,Dennis Eagle Ltd,10036900,17/06/21,88152,1032,Garage- External Work,61703,"Purchase - Equipment, Furniture And Materials",561.65
Cambridge City Council,Dennis Eagle Ltd,10036900,17/06/21,88152,1032,Garage- External Work,61703,"Purchase - Equipment, Furniture And Materials",561.65
Cambridge City Council,Dennis Eagle Ltd,10036900,08/06/21,87753,1032,Garage- External Work,61703,"Purchase - Equipment, Furniture And Materials",525.26
Cambridge City Council,Digital ID Limited,10309900,20/05/21,87294,8018,Admin Building Allocation,61703,"Purchase - Equipment, Furniture And Materials","1,548.00"
Cambridge City Council,Direct Healthcare Group Ltd,10199600,07/06/21,87463,200001,Mandatory Disabled Facilities Grants (Tenants),70015,CAPEX - Grants Paid,"1,889.00"
Cambridge City Council,Disability Cambridgeshire Ltd,10527600,01/06/21,86714,1057,Community Development Voluntary Support,64600,Grants And Contributions,"6,000.00"
Cambridge City Council,Dr Karen Skinner,10187700,12/06/21,87616,1504,Housing Advice Service,63300,Professional Services - General,"2,380.00"
Cambridge City Council,DSB Engineering Supplies,10039000,03/06/21,88026,1031,Fleet Management - Operational,61500,Consumables,520.51
Cambridge City Council,DTZ,10039100,03/06/21,87053,1651,Grand Arcade Car Park,60401,Service Charges,"30,368.64"
Cambridge City Council,DTZ,10039100,19/04/21,87969,1651,Grand Arcade Car Park,60303,Electricity,"14,834.51"
Cambridge City Council,E.On Energy/Powergen,10039700,07/06/21,87327,1870,Public Toilets,60302,Water And Sewerage,531.76
Cambridge City Council,East Anglian Chambers,10599000,10/02/21,87920,1050,Community Safety,62400,Consultancy Fees,"1,250.00"
Cambridge City Council,East Anglian Chambers,10599000,02/10/20,87922,1050,Community Safety,62400,Consultancy Fees,"1,250.00"
Cambridge City Council,East of England Local Government Association,10040000,24/05/21,87219,8005,Depot Management - Indirect,62400,Consultancy Fees,"11,857.50"
Cambridge City Council,Eastfield Guest House Ltd,10262600,24/05/21,86304,1502,Homelessness Costs,64401,B&B Accommodation,650.00
Cambridge City Council,Eastfield Guest House Ltd,10262600,07/06/21,87224,1502,Homelessness Costs,64401,B&B Accommodation,"1,170.00"
Cambridge City Council,Eastfield Guest House Ltd,10262600,28/06/21,88431,1502,Homelessness Costs,64401,B&B Accommodation,"1,300.00"
Cambridge City Council,EcoOnline AS Ltd,10517600,08/06/21,87231,1205,Quality/Health & Safety Management - Indirect,62400,Consultancy Fees,"2,450.00"
Cambridge City Council,Eddie Barcan t/a Splendid Events,10215402,09/06/21,87907,780002,,62400,Consultancy Fees,"1,250.00"
Cambridge City Council,Eddisons Commercial Ltd,10420000,25/06/21,88342,9900,General Fund Balance Sheet,30004,Capital Receipts Reserve,"4,705.00"
Cambridge City Council,Edmundson Electrical Ltd,10040600,01/06/21,87256,9900,General Fund Balance Sheet,11600,Consumable Stores,827.01
Cambridge City Council,Edmundson Electrical Ltd,10040600,27/05/21,87256,9900,General Fund Balance Sheet,11600,Consumable Stores,834.55
Cambridge City Council,Edmundson Electrical Ltd,10040600,18/06/21,88278,9900,General Fund Balance Sheet,11600,Consumable Stores,723.11
Cambridge City Council,Elior UK PLC,10040900,31/05/21,87587,6123,Ditchburn Place,61902,Catering Services,"17,169.00"
Cambridge City Council,EMS Lifts Ltd,10041800,31/05/21,87096,6205,Citywide Schemes,60227,Housing Repairs - Lift Maintenance (Disabled),650.52
Cambridge City Council,Enchanted Cinema Ltd,10311200,28/05/21,86839,9900,General Fund Balance Sheet,20118,Receipts In Advance - Other Entities And Individuals,"1,410.00"
Cambridge City Council,Enchanted Cinema Ltd,10311200,29/05/21,86846,9900,General Fund Balance Sheet,20118,Receipts In Advance - Other Entities And Individuals,966.00
Cambridge City Council,Enchanted Cinema Ltd,10311200,27/05/21,86835,9900,General Fund Balance Sheet,20118,Receipts In Advance - Other Entities And Individuals,"1,116.00"
Cambridge City Council,Enchanted Cinema Ltd,10311200,12/06/21,87669,9900,General Fund Balance Sheet,20118,Receipts In Advance - Other Entities And Individuals,901.00
Cambridge City Council,Enchanted Cinema Ltd,10311200,11/06/21,87666,9900,General Fund Balance Sheet,20118,Receipts In Advance - Other Entities And Individuals,"1,122.00"
Cambridge City Council,Enchanted Cinema Ltd,10311200,13/06/21,87671,9900,General Fund Balance Sheet,20118,Receipts In Advance - Other Entities And Individuals,"1,207.00"
Cambridge City Council,Enchanted Cinema Ltd,10311200,25/06/21,88372,9900,General Fund Balance Sheet,20118,Receipts In Advance - Other Entities And Individuals,"1,207.00"
Cambridge City Council,Enchanted Cinema Ltd,10311200,26/06/21,88375,9901,Housing Revenue Account Balance Sheet,20118,Receipts In Advance - Other Entities And Individuals,952.00
Cambridge City Council,Encompass Network,10163100,21/04/21,87144,1203,Corporate Policy,62400,Consultancy Fees,"2,000.00"
Cambridge City Council,Engineering & Design Plastics Ltd,10042100,23/06/21,88291,1860,Bill Posting & Distribution,61703,"Purchase - Equipment, Furniture And Materials",810.30
Cambridge City Council,Entertee Hire Services Ltd,10311400,18/06/21,87926,1935,Markets,61700,Hire - Equipment Furniture And Materials,968.50
Cambridge City Council,Ermine Construction Services Ltd,10462100,07/06/21,87744,100308,S106 Chesterton Rec pavilion,70001,CAPEX - Acquisition of Land & Existing Building,"21,329.89"
Cambridge City Council,Ernest Doe & Sons Ltd,10043400,31/05/21,87572,1862,Open Space Asset Management,61703,"Purchase - Equipment, Furniture And Materials",804.70
Cambridge City Council,Ernest Doe & Sons Ltd,10043400,30/06/21,88500,1862,Open Space Asset Management,61703,"Purchase - Equipment, Furniture And Materials","1,270.59"
Cambridge City Council,ESPO,10043700,27/05/21,87109,5024,E_invoicing Suspense Accounts,69100,Expenditure In Holding Account Awaiting Allocation,"22,557.90"
Cambridge City Council,Euro Municipal Ltd,10342900,07/06/21,87194,1032,Garage- External Work,61703,"Purchase - Equipment, Furniture And Materials",900.00
Cambridge City Council,Eurosafe Solutions Ltd,10044600,31/05/21,86747,1102,Leisure Contract Client Costs,60201,Cyclical/Planned Maintenance - Building,541.50
Cambridge City Council,Evolve Guards Ltd,10506900,30/05/21,86675,1524,COVID-19 Rough Sleepers Services,64401,B&B Accommodation,522.00
Cambridge City Council,Evolve Guards Ltd,10506900,06/06/21,87166,1524,COVID-19 Rough Sleepers Services,64401,B&B Accommodation,"8,340.00"
Cambridge City Council,Evolve Guards Ltd,10506900,30/05/21,86674,1524,COVID-19 Rough Sleepers Services,64401,B&B Accommodation,"10,920.00"
Cambridge City Council,Evolve Guards Ltd,10506900,06/06/21,87167,1524,COVID-19 Rough Sleepers Services,64401,B&B Accommodation,783.00
Cambridge City Council,Evolve Guards Ltd,10506900,13/06/21,87615,1524,COVID-19 Rough Sleepers Services,64401,B&B Accommodation,522.00
Cambridge City Council,Evolve Guards Ltd,10506900,14/06/21,87598,1524,COVID-19 Rough Sleepers Services,64401,B&B Accommodation,"6,090.00"
Cambridge City Council,Evolve Guards Ltd,10506900,20/06/21,87985,1524,COVID-19 Rough Sleepers Services,64401,B&B Accommodation,"6,090.00"
Cambridge City Council,Evolve Guards Ltd,10506900,27/06/21,88353,1524,COVID-19 Rough Sleepers Services,64401,B&B Accommodation,652.50
Cambridge City Council,Evolve Guards Ltd,10506900,20/06/21,87986,1524,COVID-19 Rough Sleepers Services,64401,B&B Accommodation,783.00
Cambridge City Council,Evolve Guards Ltd,10506900,27/06/21,88352,1524,COVID-19 Rough Sleepers Services,64401,B&B Accommodation,"6,090.00"
Cambridge City Council,Facultatieve Technologies Ltd,10118300,31/05/21,87127,1001,Cambridge Crematorium,60202,Cyclical/Planned Maintenance - Fixed Plant,"23,150.21"
Cambridge City Council,Facultatieve Technologies Ltd,10118300,24/06/21,88325,1001,Cambridge Crematorium,60202,Cyclical/Planned Maintenance - Fixed Plant,784.52
Cambridge City Council,Feilden + Mawson LLP,10760600,28/05/21,87297,6008,Housing Transformation,62400,Consultancy Fees,"3,791.66"
Cambridge City Council,Feilden + Mawson LLP,10760600,28/05/21,87297,6008,Housing Transformation,62400,Consultancy Fees,"1,000.00"
Cambridge City Council,Fenners Chambers,10045600,01/06/21,87867,1408,Food and Occupational Safety,63200,Legal Fees,"4,250.00"
Cambridge City Council,Fenners Chambers,10045600,15/06/21,87808,1758,Other Commercial Properties,63200,Legal Fees,500.00
Cambridge City Council,Fool's Paradise Ltd,10312700,22/05/21,88118,1862,Open Space Asset Management,62005,"Advertising, Publicity And Marketing","4,550.00"
Cambridge City Council,Fortismere Associates Ltd,10358300,05/06/21,87145,1351,Members Support,64300,Conference Expenses,"2,125.00"
Cambridge City Council,Foster Property Maintenance Ltd,10046700,09/06/21,87468,300038,Wall Structure,70002,CAPEX - Building Contractor/Works,"129,971.55"
Cambridge City Council,Foster Property Maintenance Ltd,10046700,10/06/21,87535,5024,E_invoicing Suspense Accounts,69100,Expenditure In Holding Account Awaiting Allocation,"417,041.77"
Cambridge City Council,Freeths LLP,10128501,19/03/21,86647,300098,New Build - Histon Road,70010,CAPEX - Other Professional Fees,661.41
Cambridge City Council,Freeths LLP,10128501,27/05/21,87711,300096,New Build - L2,70010,CAPEX - Other Professional Fees,"1,479.00"
Cambridge City Council,Frontline Fabrication & Ironwork Co Ltd,10128000,10/05/21,86929,1868,Play Maintenance,61703,"Purchase - Equipment, Furniture And Materials","3,780.00"
Cambridge City Council,Frontline Fabrication & Ironwork Co Ltd,10128000,06/05/21,86925,1866,Open Space Asset Maintenance,61703,"Purchase - Equipment, Furniture And Materials","4,980.00"
Cambridge City Council,Frontline Fabrication & Ironwork Co Ltd,10128000,24/05/21,86931,1866,Open Space Asset Maintenance,61703,"Purchase - Equipment, Furniture And Materials","3,500.00"
Cambridge City Council,Frontline Fabrication & Ironwork Co Ltd,10128000,28/05/21,86935,1866,Open Space Asset Maintenance,61703,"Purchase - Equipment, Furniture And Materials","4,750.00"
Cambridge City Council,Frontline Fabrication & Ironwork Co Ltd,10128000,24/05/21,86930,1866,Open Space Asset Maintenance,61703,"Purchase - Equipment, Furniture And Materials","3,240.00"
Cambridge City Council,Futurebright Solutions Ltd,10761500,21/06/21,88147,1862,Open Space Asset Management,62400,Consultancy Fees,"2,000.00"
Cambridge City Council,Gallagher Bassett International Ltd,10048202,21/05/21,87558,8009,Insurance Fund,67302,Insurance,945.00
Cambridge City Council,Gaskin Brothers Ltd,10118700,27/05/21,87064,1878,Local Nature Reserves,60503,Grounds Maintenance,700.00
Cambridge City Council,Gawn Associates Ltd,10048600,30/04/21,86818,1883,Flood Risk Management,60501,Cleaning Services,550.00
Cambridge City Council,GB Sport & Leisure UK Ltd,10048700,28/05/21,86725,1868,Play Maintenance,61703,"Purchase - Equipment, Furniture And Materials",545.80
Cambridge City Council,Geodesys,10049200,01/04/21,87129,8014,3C Legal Practice,63200,Legal Fees,591.90
Cambridge City Council,Global Go! Ltd,10439600,01/04/21,88152,1031,Fleet Management - Operational,61703,"Purchase - Equipment, Furniture And Materials",538.08
Cambridge City Council,Goshen Multi-Services Ltd,10793300,31/05/21,87107,5024,E_invoicing Suspense Accounts,69100,Expenditure In Holding Account Awaiting Allocation,"20,120.79"
Cambridge City Council,Goshen Multi-Services Ltd,10793300,31/05/21,87107,5024,E_invoicing Suspense Accounts,69100,Expenditure In Holding Account Awaiting Allocation,"4,024.16"
Cambridge City Council,Goshen Multi-Services Ltd,10793300,31/05/21,87845,1870,Public Toilets,60502,Cleaning Contract,"4,322.82"
Cambridge City Council,Goshen Multi-Services Ltd,10793300,31/05/21,87846,1870,Public Toilets,60502,Cleaning Contract,"23,053.11"
Cambridge City Council,Green Energy Switch Ltd,10051400,31/05/21,87329,6209,Energy Rating,62400,Consultancy Fees,850.00
Cambridge City Council,Greenwich Leisure Limited (GLL),10051900,07/06/21,87172,1101,Leisure Contract Management Fees,61800,Contract Charges,"41,161.80"
Cambridge City Council,Greenwich Leisure Limited (GLL),10051900,29/04/21,88033,1101,Leisure Contract Management Fees,53402,"Hire Of Rooms, Halls And Open Spaces Income (E)","8,000.00"
Cambridge City Council,Greenwich Leisure Limited (GLL),10051900,01/06/21,88032,1101,Leisure Contract Management Fees,53402,"Hire Of Rooms, Halls And Open Spaces Income (E)","8,000.00"
Cambridge City Council,Greenwich Leisure Limited (GLL),10051900,17/03/20,88034,1102,Leisure Contract Client Costs,60201,Cyclical/Planned Maintenance - Building,"1,500.00"
Cambridge City Council,Hayward Moon,10846500,15/06/21,87762,300091,Campkin Road Phase 2,70001,CAPEX - Acquisition of Land & Existing Building,"1,804.20"
Cambridge City Council,Healthmatic Ltd,10434900,10/12/20,87776,1870,Public Toilets,60201,Cyclical/Planned Maintenance - Building,"5,400.97"
Cambridge City Council,Henry Riley LLP,10288400,27/05/21,87065,1506,Housing Development Agency,62400,Consultancy Fees,750.00
Cambridge City Council,Henry Riley LLP,10288400,26/04/21,87589,1506,Housing Development Agency,62400,Consultancy Fees,750.00
Cambridge City Council,Henry Riley LLP,10288400,23/06/21,88450,1506,Housing Development Agency,62400,Consultancy Fees,750.00
Cambridge City Council,Hill Partnerships Limited,10214300,27/05/21,86937,100258,Meadows Community Hub and Buchan St retail outlet,70001,CAPEX - Acquisition of Land & Existing Building,"7,744.20"
Cambridge City Council,Hill Partnerships Limited,10214300,27/05/21,86936,100258,Meadows Community Hub and Buchan St retail outlet,70001,CAPEX - Acquisition of Land & Existing Building,"243,300.23"
Cambridge City Council,Hill Partnerships Limited,10214300,27/05/21,86938,300090,Meadows and Buchan Street,70002,CAPEX - Building Contractor/Works,"135,932.71"
Cambridge City Council,Hill Partnerships Limited,10214300,09/06/21,88218,300091,Campkin Road Phase 2,70002,CAPEX - Building Contractor/Works,"171,888.70"
Cambridge City Council,Hill Partnerships Limited,10214300,10/06/21,88216,300087,New Build Colville Road (Phase 2),70002,CAPEX - Building Contractor/Works,"312,746.83"
Cambridge City Council,Hilton Cambridge City Centre,10653600,04/06/21,87095,9900,General Fund Balance Sheet,20119,Other Creditors - Other Entities And Individuals,689.92
Cambridge City Council,HM Revenue & Customs,10144208,08/06/21,87216,9900,General Fund Balance Sheet,21003,Construction Industry Tax (Cis),"39,693.88"
Cambridge City Council,HM Revenue & Customs,10144208,21/05/21,87210,9900,General Fund Balance Sheet,21004,Payroll Control Account,"627,638.26"
Cambridge City Council,HM Revenue & Customs,10144208,23/06/21,88196,9900,General Fund Balance Sheet,21004,Payroll Control Account,"645,988.46"
Cambridge City Council,HM Revenue & Customs (SDLT),10144205,29/06/21,88472,300097,New Build - Colville Road III,70001,CAPEX - Acquisition of Land & Existing Building,"7,628.00"
Cambridge City Council,HQN Ltd,10056500,18/06/21,88003,1510,Housing Strategy,64800,Membership And Subscriptions,"2,500.00"
Cambridge City Council,Indian Community & Culture Association,10058200,09/06/21,87336,1057,Community Development Voluntary Support,64600,Grants And Contributions,"1,500.00"
Cambridge City Council,Industrial Site Maintenance Ltd,10793100,30/04/21,88190,5024,E_invoicing Suspense Accounts,69100,Expenditure In Holding Account Awaiting Allocation,"20,898.60"
Cambridge City Council,Industrial Site Maintenance Ltd,10793100,30/04/21,88190,5024,E_invoicing Suspense Accounts,69100,Expenditure In Holding Account Awaiting Allocation,"4,179.69"
Cambridge City Council,Industrial Site Maintenance Ltd,10793100,31/05/21,88191,5024,E_invoicing Suspense Accounts,69100,Expenditure In Holding Account Awaiting Allocation,"20,898.58"
Cambridge City Council,Industrial Site Maintenance Ltd,10793100,31/05/21,88191,5024,E_invoicing Suspense Accounts,69100,Expenditure In Holding Account Awaiting Allocation,"4,179.71"
Cambridge City Council,It Takes a City (Cambridge),10452200,09/06/21,87490,1524,COVID-19 Rough Sleepers Services,64401,B&B Accommodation,"3,220.00"
Cambridge City Council,Ivett & Reed Ltd,10059400,23/04/21,86626,1004,Commemoration,61400,Goods For Resale,"1,127.50"
Cambridge City Council,J & J Maintenance Services,10237200,02/06/21,87591,1003,Bereavement Services Central Costs,60207,Health And Safety Supplies And Services,567.92
Cambridge City Council,J Shevlin Limited,10119700,28/05/21,86773,1758,Other Commercial Properties,60503,Grounds Maintenance,"8,818.30"
Cambridge City Council,JAM Removals Ltd,10060500,10/05/21,84924,8015,Guildhall,60500,Refuse Collection /Skips,"1,100.00"
Cambridge City Council,KCS Asbestos,10063801,10/06/21,87542,300007,Asbestos Removal,70002,CAPEX - Building Contractor/Works,900.00
Cambridge City Council,Kestrel Fencing,10119900,31/05/21,87593,6012,City Homes Expenditure,60503,Grounds Maintenance,584.30
Cambridge City Council,Key Conveyancing LLP,10803000,16/06/21,88233,300042,Acquisitions & Disposals,70001,CAPEX - Acquisition of Land & Existing Building,"243,095.68"
Cambridge City Council,LDA Design Consulting Ltd,10066000,11/06/21,87560,1779,Market Square Project,62400,Consultancy Fees,557.00
Cambridge City Council,Lee James Interiors,10695700,09/05/21,87562,200000,Repairs Assistance (Owner Occupiers),70015,CAPEX - Grants Paid,"4,750.00"
Cambridge City Council,LGSS - Cambridgeshire Pension Fund,10022801,21/05/21,87209,9900,General Fund Balance Sheet,21004,Payroll Control Account,"486,137.25"
Cambridge City Council,LGSS - Cambridgeshire Pension Fund,10022801,02/06/21,87566,8006,Accountancy and Support Services,62400,Consultancy Fees,"1,675.00"
Cambridge City Council,LGSS - Cambridgeshire Pension Fund,10022801,23/06/21,88255,9900,General Fund Balance Sheet,21004,Payroll Control Account,"489,955.58"
Cambridge City Council,M & M Heating (Cambs) Ltd,10121700,15/06/21,87752,1100,Sport & Recreation Administration,60201,Cyclical/Planned Maintenance - Building,"1,452.50"
Cambridge City Council,M & M Heating (Cambs) Ltd,10121700,15/06/21,87934,1100,Sport & Recreation Administration,60201,Cyclical/Planned Maintenance - Building,"1,452.50"
Cambridge City Council,M & M Heating (Cambs) Ltd,10121700,24/06/21,88269,1071,Clay Farm Community Centre,60200,Facilities Management,652.00
Cambridge City Council,M & M Heating (Cambs) Ltd,10121700,22/06/21,88248,1059,Community Facilities (formerly St Lukes Community School),60201,Cyclical/Planned Maintenance - Building,"2,800.00"
Cambridge City Council,M K A Ecology Ltd,10364300,09/06/21,87366,1856,Streets & Open Spaces (Operations) - Indirect Costs,62400,Consultancy Fees,"4,000.00"
Cambridge City Council,Mace Ltd,10290900,31/05/21,86711,300038,Wall Structure,70002,CAPEX - Building Contractor/Works,"19,540.00"
Cambridge City Council,Mace Ltd,10290900,31/05/21,86746,300038,Wall Structure,70002,CAPEX - Building Contractor/Works,"24,740.00"
Cambridge City Council,Mace Ltd,10290900,31/05/21,86734,300038,Wall Structure,70010,CAPEX - Other Professional Fees,"7,560.00"
Cambridge City Council,Mace Ltd,10290900,26/03/21,86823,300038,Wall Structure,70010,CAPEX - Other Professional Fees,"5,730.00"
Cambridge City Council,Mace Ltd,10290900,26/03/21,86824,300038,Wall Structure,70010,CAPEX - Other Professional Fees,772.00
Cambridge City Council,Mace Ltd,10290900,01/03/21,86822,300038,Wall Structure,70010,CAPEX - Other Professional Fees,"1,895.00"
Cambridge City Council,Madingley Mulch,10068300,15/06/21,87714,1868,Play Maintenance,61702,"Maintenance - Equipment, Furniture And Materials","1,041.25"
Cambridge City Council,Maintel Europe Ltd,10009800,18/05/21,87106,5024,E_invoicing Suspense Accounts,69100,Expenditure In Holding Account Awaiting Allocation,"2,278.68"
Cambridge City Council,Maintel Europe Ltd,10009800,17/06/21,88457,5024,E_invoicing Suspense Accounts,69100,Expenditure In Holding Account Awaiting Allocation,"2,068.60"
Cambridge City Council,Malling Health Ltd,10513300,01/04/21,87061,1516,CLG Supplementary Homelessness Grants,64600,Grants And Contributions,"13,250.00"
Cambridge City Council,Mark Massucco & Amanda Buttress,10547800,18/06/21,88232,300097,New Build - Colville Road III,70001,CAPEX - Acquisition of Land & Existing Building,"254,282.98"
